{"text_format":"3","workbook":"xlsx","n_sheets":8,"sheets":["Desert - Master List","Desert - Day","Desert - Night","Desert - Undead","Mountain - Master List","Mountain - Day","Mountain - Night","Mountain - Undead"],"read":"whole","date_system":"1900"}

{"sheet":"Desert - Master List","index":0,"n_rows":278,"n_cols":8,"rows_kept":278}
["RezRef","Name","Frequency","AR CR","AR HitDie","Faction","# Appearing","Activity"]
["antloid001","Antloid Larva","Uncommon",0.25,1,"Hostile","8 to 50","Any"]
["antloid002","Antloid Worker","Uncommon",3,3,"Hostile","1-100","Any"]
["antloid003","Antloid Soldier","Uncommon",7,6,"Hostile",44216,"Any"]
["antloid004","Antloid Dynamis","Rare",6,4,"Hostile","1 to 10","Any"]
["antloid005","Antloid Queen","Very Rare",8,8,"Hostile",1,"Any"]
["ar_aerservant001","Aerial Servant","Rare",18,16,"Hostile",1,"Any"]
["ar_aerservant002","Aerial Servant, Large","Very Rare",37,34,"Hostile",1,"Any"]
["ar_alabasent001","Marble Sentinel, Alabaster","Very Rare",21,16,null,1,"Any"]
["ar_bloodsent001","Marble Sentinel, Bloodstone","Rare",12,9,null,"3 - 5","Any"]
["ar_c_belgoi001","Belgoi, Common","Uncommon",3,5,"Belgoi","1 to 10","Any"]
["ar_c_belgoi002","Belgoi, Raider","Rare",6,10,"Belgoi","1 to 10","Any"]
["ar_c_belgoi003","Belgoi, Scout","Rare",6,10,"Belgoi",1,"Any"]
["ar_c_belgoi004","Belgoi, Flamewarder","Rare",14,15,"Belgoi",1,"Any"]
["ar_c_jathlagak","Jalath'gak","Uncommon",9,8,"Omnivore","3 - 30","Any"]
["ar_daggoran_001","Daggoran","Uncommon",5,4,"Omnivore","2 to 8","Any"]
["ar_defiler_001","Defiler, Apprentice","Rare",7,8,"Hostile","1 - 5","Any"]
["ar_defiler_002","Defiler, Journeyman","Very Rare",9,10,"Hostile",44564,"Any"]
["ar_desmast_001","Mastyrial, Desert","Uncommon",13,12,"Hostile","1 - 5","Any"]
["ar_ebonsent001","Marble Sentinel, Ebon","Rare",16,12,null,"2 - 4","Any"]
["ar_firenymph001","Fire Nymph","Very Rare",8,6,"Neutral 2",1,"Any"]
["ar_goodtari_001","Tari, Nactkeet Villager - Male","Uncommon",1,1,"Tari",44204,"Any"]
["ar_goodtari_002","Tari, Nactkeet Warrior","Rare",4,5,"Tari","1 to 4","Any"]
["ar_goodtari_003","Tari, Nactkeet Villager - Female","Uncommon",1,1,"Tari",44204,"Any"]
["ar_goodtari_004","Tari, Nactkeet Scout","Rare",4,5,"Tari","1 to 2","Any"]
["ar_goodtari_005","Tari, Trader","Very Rare",9,11,"Tari","1 to 4","Any"]
["ar_goodtari_006","Chief Biido","Unique",12,16,"Tari",1,"Any"]
["ar_goodtari_007","Tari, Priestess","Very Rare",8,11,"Tari",1,"Any"]
["ar_gulgslaver003","Gulgan Slaver - Half-elf","Very Rare",3,4,"Gulgan","1 - 5","Any"]
["ar_hellhound001","Hell Hound [AR]","Very Rare",5,4,"Omnivore",null,"Any"]
["ar_imp001","Imp [AR]","Very Rare",5,3,"Hostile","1","Any"]
["ar_invstalk001","Invisible Stalker [AR]","Very Rare",9,8,"Hostile","1","Any"]
["ar_kreen_001","Thri-kreen, Common","Uncommon",2,2,"Neutral 1",1,"Any"]
["ar_kreen_001","Thri-kreen, Common","Uncommon",2,2,"Neutral 1",1,"Any"]
["ar_kreen_002","Thri-kreen, Ranger","Rare",13,12,"Hostile",1,"Any"]
["ar_kreen_002","Thri-kreen, Ranger","Rare",13,12,"Hostile",1,"Any"]
["ar_kreen_003","Thri-kreen, Druid","Rare",14,12,"Hostile",1,"Any"]
["ar_kreen_003","Thri-kreen, Druid","Rare",14,12,"Hostile",1,"Any"]
["ar_mepsteam001","Mephit, Steam","Rare",4,3,"Fire?","1 - 12","Any"]
["ar_obsmino001","Obsidian Minotaur","Very Rare",16,12,"Hostile",1,"Any"]
["ar_onyxsent001","Marble Sentinel, Onyx","Rare",8,6,null,"3 - 6","Any"]
["ar_pakubrazi_001","Pakubrazi","Rare",5,6,"Hostile",1,"Any"]
["ar_rat001","Rat, Common","Common","1/6 CR",1,"Herbivore","10-100","Any"]
["ar_saltdrake001","Drake, Salt ","Rare",9,11,null,"1 - 5","Any"]
["ar_saltdrake002","Drake, Salt - Huge","Very Rare",17,20,null,1,"Any"]
["ar_scrbeetle_001","Screamer Beetle","Uncommon",4,3,"Hostile","2 to 8","Any"]
["ar_skyrossent001","Marble Sentinel, Skyros","Rare",5,3,null,"3 - 8","Any"]
["ar_wolfspider001","Wolf-spider","Rare",6,6,"Hostile","2 to 10","Any"]
["ashen001","Ashen","Rare",15,11,"Undead",1,"Any"]
["ashen002","Ashen, Evolved","Very Rare",24,20,"Undead",1,"Any"]
["atropal001","Atropal","Very Rare",75,60,"Undead",1,"Any"]
["atropalscion001","Atropal Scion","Very Rare",19,9,"Undead",1,"Any"]
["barbscorpion_001","Barbed Scorpion","Uncommon",11,9,"Omnivore","2 - 5","Any"]
["bonebat001","Bonebat","Uncommon",5,4,"Undead","2 to 8","Any"]
["crystalspider001","Crystal Spider","Very Rare",11,8,"Hostile",1,"Any"]
["crystalspider002","Crystal Spider, Greater","Very Rare",22,17,"Hostile",1,"Any"]
["devbeetle001","Devastation Beetle","Very Rare",177,60,"Hostile",1,"Any"]
["devscorpion001","Devastation Scorpion","Very Rare",139,60,"Hostile",1,"Any"]
["devspider001","Devastation Spider","Very Rare",121,60,"Hostile",1,"Any"]
["direrat_002","Rat, Dire - Greater","Uncommon",3,3,"Hostile","1 to 4","Any"]
["direrat_003","Rat, Dire - Elder","Rare",5,6,"Hostile",1,"Any"]
["drake_air001","Drake, Air","Very Rare",23,25,null,1,"Any"]
["drake_earth001","Drake, Earth","Very Rare",19,25,null,1,"Any"]
["drake_fire001","Drake, Fire","Very Rare",16,20,null,1,"Any"]
["drake_sun001","Drake, Sun","Very Rare",23,20,"Hostile",1,"Any"]
["drake_water001","Drake, Water","Very Rare",16,20,null,1,"Any"]
["ds_ashgolem001","Golem: Ash","Very Rare",12,9,"Hostile",1,"Any"]
["ds_ashgolem002","Golem: Ash, Greater","Very Rare",17,16,"Hostile",1,"Any"]
["ds_brohg001","Giant: B'rohg, Common","Uncommon",8,6,"Hostile","1 to 12","Any"]
["ds_claygolem001","Golem: Clay","Very Rare",13,11,"Hostile","2 to 10","Any"]
["ds_claygolem002","Golem: Clay, Greater","Very Rare",19,18,"Hostile","1 to 2","Any"]
["ds_claygolem003","Golem: Clay, Huge","Very Rare",28,24,"Hostile",1,"Any"]
["ds_dog005","Dog: Camp","Common",3,3,"Defender","1 to 2","Any"]
["ds_elvenrope001","Cactus: Elven Rope","Uncommon",2,4,"Mindless",1,"Any"]
["ds_fireeel001","Eel, Fire","Rare",7,8,"Hostile","1 to 2","Any"]
["ds_gaj_001","Gaj","Very Rare",11,7,"Hostile",1,"Any"]
["ds_kank001","Kank, Domestic Worker","Common",2,1,"Domestic","1 - 50","Any"]
["ds_kank002","Kank: Domestic Soldier","Common",3,2,"Domestic","1-50","Any"]
["ds_ntmrbeast001","Nightmare Beast","Very Rare",32,30,"Hostile",1,"Any"]
["ds_obretriever01","Obsidian Retriever","Very Rare",19,12,"Hostile",1,"Any"]
["ds_obretriever02","Obsidian Retriever, Greater","Very Rare",27,22,"Hostile",1,"Any"]
["ds_psionocus001","Psionocus","Very Rare",1,3,"Neutral 1",1,"Any"]
["ds_ratdire001","Rat: Dire","Common",1,1,null,"11 - 20","Any"]
["ds_rock_cactus01","Cactus: Rock","Uncommon",1,2,"Mindless","1 to 10","Any"]
["ds_rock_cactus01","Cactus: Rock","Uncommon",1,2,"Mindless","1 to 10","Any"]
["ds_sandgolem001","Golem: Sand","Very Rare",13,11,"Hostile",1,"Any"]
["ds_sandgolem002","Golem: Sand, Greater","Very Rare",19,20,"Hostile",1,"Any"]
["ds_shaqat001","Beetle: Shaqat","Rare",1,1,"Hostile","2 - 4","Any"]
["ds_siltweird001","Elemental Weird: Silt","Rare",11,8,"Hostile",1,"Any"]
["ds_spinewyrm001","Spinewyrm","Uncommon",10,8,"Hostile",1,"Any"]
["ds_stonegolem001","Golem: Stone","Very Rare",16,14,"Hostile","2 to 10","Any"]
["ds_stonegolem002","Golem: Stone, Greater","Very Rare",22,21,"Hostile","1 to 2","Any"]
["ds_styr001","Styr","Rare",11,14,"Hostile",1,"Any"]
["ds_trin001","Trin","Uncommon",5,5,"Hostile","1 to 12","Any"]
["ds_wezer001","Wezer: Worker","Rare",3,2,"Herbivore","1-100","Any"]
["ds_wezer002","Wezer: Soldier","Rare",3,2,"Hostile","1 - 10","Any"]
["ds_wezer003","Wezer: Queen","Rare",4,5,"Hostile",1,"Any"]
["ds_zik_trin_ak01","Zik-trin'ak","Very Rare",10,8,"Neutral 1","1 to 4","Any"]
["ds_zik_trin_ta01","Zik-trin’ta","Very Rare",12,7,"Neutral 1","1 to 4","Any"]
["dunebandit_001","Dune Bandit, Mul - Longsword","Very Rare",6,6,"Raider","1 - 8 or 10 - 24","Any"]
["dunebandit_002","Dune Bandit - Longbow","Uncommon",7,7,"Raider","1 - 5","Any"]
["dustdigger01","Dust Digger","Uncommon",4,4,null,"1 - 8","Any"]
["elem_air_el001","[AR] Air Elemental, Elder","Rare",37,24,"Air?",1,"Any"]
["elem_air_gr001","[AR] Air Elemental, Greater","Rare",33,21,"Air?",1,"Any"]
["elem_air_hg001","[AR] Air Elemental, Huge","Rare",25,16,"Air?",1,"Any"]
["elem_air_lg001","[AR] Air Elemental, Large","Rare",13,8,"Air?",1,"Any"]
["elem_air_md001","[AR] Air Elemental, Medium","Rare",7,4,"Air?",1,"Any"]
["elem_air_pr001","Air Elemental, Primal","Very  Rare",109,60,"Air?",1,"Any"]
["elem_air_sm001","[AR] Air Elemental, Small","Rare",4,2,"Air?",1,"Any"]
["elvenraider002","Elven Raider Defiler","Rare",11,12,"Raider","1","Any"]
["giantshadow001","Giant, Shadow","Very Rare",null,7,"Hostile","2 to 8","Any"]
["gold_scorp001","Gold Scorpion","Common",2,2,null,"1 - 5","Any"]
["golembone001","Golem: Bone","Rare",12,9,"Hostile",1,"Any"]
["golembone002","Golem: Bone, Greater","Very Rare",21,18,"Hostile",1,"Any"]
["golemjade001","Golem: Jade","Rare",13,12,"Hostile",1,"Any"]
["golemjade002","Golem: Jade, Greater","Very Rare",23,24,"Hostile",1,"Any"]
["golemmagma001","Golem: Magma","Rare",16,12,"Hostile",1,"Any"]
["golemmagma002","Golem: Magma, Greater","Very Rare",27,24,"Hostile",1,"Any"]
["golemobsidian001","Golem: Obsidian","Rare",17,15,"Hostile",1,"Any"]
["golemobsidian002","Golem: Obsidian, Greater","Very Rare",29,30,"Hostile",1,"Any"]
["golemrock001","Golem: Rock","Rare",11,10,"Hostile",1,"Any"]
["golemrock002","Golem: Rock, Greater","Very Rare",20,20,"Hostile",1,"Any"]
["golemsalt001","Golem: Salt","Rare",12,9,"Hostile",1,"Any"]
["golemsalt002","Golem: Salt, Greater","Very Rare",21,18,"Hostile",1,"Any"]
["golemwood001","Golem: Wood","Rare",10,8,"Hostile",1,"Any"]
["golemwood002","Golem: Wood, Greater","Very Rare",16,14,"Hostile",1,"Any"]
["idfiend_001","Id Fiend","Rare",9,7,"Hostile",1,"Any"]
["kaisharga001","Kaisharga - Elven Defiler","Rare",45,18,"Undead",1,"Any"]
["kaisharga002","Kaisharga - Human Preserver","Rare",39,18,"Undead",1,"Any"]
["leshay001","LeShay","Very Rare",180,50,"Commoner",1,"Any"]
["magera_001","Magera","Uncommon",5,6,"Hostile","2 - 8","Any"]
["magera_002","Magera Fighter","Rare",11,10,"Hostile","2 - 8","Any"]
["monst_scorp001","Monstrous Scorpion, Tiny","Common",0.5,0.5,null,"8 - 16","Any"]
["monst_scorp002","Monstrous Scorpion, Small","Common",1,1,null,"2 - 11","Any"]
["monst_scorp003","Monstrous Scorpion, Medium","Uncommon",2,2,null,"1 - 5","Any"]
["monst_scorp004","Monstrous Scorpion, Large","Uncommon",6,5,null,"1- 5","Any"]
["monst_scorp005","Monstrous Scorpion, Huge","Common",12,10,null,"1 - 5","Any"]
["monst_scorp006","Monstrous Scorpion, Gargantuan","Very Rare",21,20,null,1,"Any"]
["necrophidius","Necrophidius","Very Rare",7,6,null,"1 - 5","Any"]
["puddingdun001","Pudding, Dun","Uncommon",7,8,"Mindless",1,"Any"]
["ruve001","Ruve","Uncommon",7,4,"Defender","1 to 8","Any"]
["ruve002","Ruve, Greater","Rare",9,8,"Defender","1 to 2","Any"]
["sandhowler001","Sand Howler","Uncommon",4,4,"Omnivore","2 to 8","Any"]
["shardspider001","Shard Spider","Rare",7,6,"Hostile","1 to 2","Any"]
["slig001","Slig, Warrior - DO NOT SPAWN","Rare",6,6,"Hostile","1","Any"]
["slig002","Slig, Common","Uncommon",3,4,"Hostile","5 - 30","Any"]
["stonecolossus001","Colossus, Stone","Very Rare",78,60,null,1,"Any"]
["wildmul001","Mul, Wild - Battleaxe","Common",3,3,null,"2 to 7","Any"]
["wildmul002","Mul, Wild - Dragon's Paw","Uncommon",11,12,null,"2 to 7","Any"]
["wildmul003","Mul, Wild - Darts","Uncommon",17,17,null,"2 to 7","Any"]
["ar_axebeak001","Axe Beak","Rare",3,3,"Omnivore","1 - 6","Day"]
["ar_basilisk001","Basilisk","Uncommon",5,6,null,null,"Day"]
["ar_bladehood001","Blade Hood","Rare",5,6,null,1,"Day"]
["ar_bladehood002","Blade Hood, Greater","Rare",8,9,null,1,"Day"]
["ar_flamsnake_001","Flame Snake, Minor","Rare","1 / 2",1,null,"4 - 12","Day"]
["ar_flamsnake_002","Flame Snake, Lesser","Rare",9,8,null,"1 - 7","Day"]
["ar_flamsnake_003","Flame Snake, Greater","Very Rare",20,17,null,"1 - 2","Day"]
["ar_rocklizard001","Lizard, Rock-Horned","Uncommon",4,4,null,1,"Day"]
["athasianbear001","Bear, Athasian","Rare",19,18,null,"1 - 2","Day"]
["athasianbear002","Bear, Athasian - Greater","Rare",34,36,"Hostile","1 to 2","Day"]
["banditguard_001","Bandit Guard - Trikal","Uncommon",3,4,"Raider","1 - 5","Day"]
["banditguard_001","Bandit Guard, Mul - Short Swords","Very Rare",4,4,"Raider","1 - 8 or 10 - 24","Day"]
["desertviper_001","Desert Viper, Small","Common",0.5,1,"Omnivore",1,"Day"]
["dog003","Theor's Dog","Unique",8,8,"Raider",1,"Day"]
["ds_conashelae001","Conashellae","Uncommon",0.5,1,"Herbivore","2 to 12","Day"]
["ds_critic001","Lizard: Critic","Uncommon",0.5,1,"Domestic",1,"Day"]
["ds_des_viper002","Viper: Desert, Medium","Common",2,2,"Omnivore",1,"Day"]
["ds_des_viper003","Desert Viper, Large","Common",3,3,"Omnivore",1,"Day"]
["ds_desfalcon001","Falcon, Desert: 4 HD","Uncommon",4,4,"Hostile",1,"Day"]
["ds_desfalcon002","Falcon, Desert: 6 HD","Uncommon",6,6,"Hostile",1,"Day"]
["ds_dunecrab001","Dunecrab","Common",4,4,"Omnivore","1 to 2","Day"]
["ds_dunecrab002","Dunecrab, Greater","Uncommon",7,8,"Omnivore",1,"Day"]
["ds_dustglider001","Dust Glider","Uncommon",4,5,"Omnivore","1 to 2","Day"]
["ds_firelizard001","Lizard: Fire","Rare",9,10,"Hostile","1 to 4","Day"]
["ds_gargsnake001","Snake, Gargantua","Very Rare",45,50,"Hostile",1,"Day"]
["ds_gorak001","Gorak","Common",1,1,"Omnivore","10-50","Day"]
["ds_hunt_cactus01","Cactus: Hunting","Rare",5,5,"Omnivore","1 to 2","Day"]
["ds_inix001","Inix: Wild","Uncommon",6,6,"Omnivore","1 to 2","Day"]
["ds_kestrekel001","Kes'trekel","Uncommon",1,1,"Omnivore","3 - 30","Day"]
["ds_lirr001","Lirr","Uncommon",6,5,"Hostile","2 to 12","Day"]
["ds_lizstrider001","Lizard: Dune Strider, Domesticated","Uncommon",3,3,"Commoner",1,"Day"]
["ds_lizstrider002","Lizard: Dune Strider, Domesticated","Uncommon",3,3,"Commoner",1,"Day"]
["ds_mekilliot001","Mekillot, Wild","Uncommon",16,16,"Omnivore","1 to 2","Day"]
["ds_scrab001","Scrab: Commoner","Uncommon",5,3,"Hostile","1 to 12","Day"]
["ds_scrab002","Scrab: Hive Mother","Rare",7,9,"Hostile",1,"Day"]
["ds_siltrunner001","Silt Runner","Common",1,1,"Hostile","3-40","Day"]
["dunereaper001","Dune Reaper, Drone","Common",12,8,null,"5 - 15","Day"]
["dunestalker_001","Dune Stalker","Very Rare",7,6,null,1,"Day"]
["elem_sun_el001","Sun Paraelemental, Elder","Rare",36,24,"Sun?",1,"Day"]
["elem_sun_gr001","Sun Paraelemental, Greater","Rare",32,21,"Sun?",1,"Day"]
["elem_sun_hg001","Sun Paraelemental, Huge","Rare",24,16,"Sun?",1,"Day"]
["elem_sun_lg001","Sun Paraelemental, Large","Rare",13,8,"Sun?",1,"Day"]
["elem_sun_md001","Sun Paraelemental, Medium","Rare",6,4,"Sun?",1,"Day"]
["elem_sun_sm001","Sun Paraelemental, Small","Rare",4,2,"Sun?",1,"Day"]
["gia_lizard_001","Lizard, Giant","Common",3,3,"Omnivore","2 to 12","Day"]
["giantdesert001","Giant, Desert","Uncommon",15,14,"Hostile","3 to 12","Day"]
["halfbandit_001","Bandit, Halfling - Daggers","Rare",3,3,"Raider","1 - 3","Day"]
["humanbandit_001","Bandit, Human - Short Sword","Uncommon",3,3,"Raider","1 - 5","Day"]
["humanbandit_002","Bandit, Human - Psionic","Uncommon",3,3,"Raider","1 - 3","Day"]
["prismasaurus001","Prismasaurus","Very Rare",52,60,"Omnivore","1 to 2","Day"]
["sandwyvern001","Sand Wyvern, Male","Rare",5,4,null,"1 - 6","Day"]
["sandwyvern002","Sand Wyvern, Female","Rare",6,5,null,"1 - 6","Day"]
["tarek_001","Tarek","Uncommon",5,5,"Hostile","1 - 12","Day"]
["tarek_002","Tarek, Chieftain","Rare",10,12,"Hostile",1,"Day"]
["xerichou001","Xerichou","Uncommon",9,3,"Hostile","6-36","Day"]
["xerichou002","Xerichou, Greater","Rare",12,3,"Hostile","3 to 18","Day"]
["anakore1","Anakore","Uncommon",3,3,"Hostile","2 to 12","Night"]
["angelofdecay001","Angel of Decay","Very Rare",32,26,"Undead",1,"Night"]
["ar_bat001","Bat","Common",0.33,0.25,"Herbivore","10-100","Night"]
["ar_bat002","Bat, Dire","Rare",4,4,null,null,"Night"]
["ar_dragonne001","Dragonne","Very Rare",8,9,"Omnivore","1 to 10","Night"]
["ar_dragonne002","Dragonne, Greater","Very Rare",11,12,"Omnivore","2 to 10","Night"]
["ar_meorty001","Meorty","Very Rare",65,42,"Undead",1,"Night"]
["ar_namech003","Namech Cleric","Rare",59,40,"Undead",1,"Night"]
["ar_shadowrat001","Shadow Rat, Common","Rare",3,1,"Hostile","6 - 20","Night"]
["ar_shadowrat002","Shadow Rat, Dire","Very Rare",3,1,"Hostile","6 - 11","Night"]
["ar_sout_001","So-Ut (Rampager)","Very Rare",15,14,null,1,"Night"]
["ar_visage003","Visage, Evolved Greater","Rare",36,25,"Undead",1,"Night"]
["ar_wraith001","Wraith [AR]","Very Rare",7,5,"Undead","2 - 11","Night"]
["ar_wraith002","Wraith, Dread","Very Rare",23,16,"Undead",1,"Night"]
["bleakborn001","Bleakborn","Very Rare",11,8,"Undead",1,"Night"]
["boneclaw001","Boneklaw","Rare",16,10,"Undead",44207,"Night"]
["boneyard001","Boneyard","Rare",22,17,"Undead",1,"Night"]
["boneyard002","Boneyard, Evolved Greater","Rare",55,50,"Undead",1,"Night"]
["cinderspawn001","Cinderspawn","Very Rare",11,10,"Undead","1 - 5","Night"]
["cryptchanter001","Crypt Chanter","Very Rare",8,7,"Undead","1 - 11","Night"]
["cursed_dwarf001","Cursed Dwarf","Rare",12,6,"Undead","1 to 10","Night"]
["deathlock001","Deathlock","Very Rare",5,3,"Undead","1 - 3","Night"]
["dreamvestige001","Dream Vestige","Very Rare",23,17,"Undead",1,"Night"]
["ds_gr_fihyr001","Greater Fihyr","Very Rare",20,16,"Hostile",1,"Night"]
["ds_gr_fihyr002","Greater Fihyr, Advanced","Very Rare",28,25,"Hostile",1,"Night"]
["ds_jankx001","Jankx","Common",0.5,1,"Herbivore","1-100","Night"]
["ds_jhakar001","Jhakar","Uncommon",2,2,"Omnivore","2 to 10","Night"]
["ds_jozhal001","Jozhal","Rare",2,1,"Neutral 1","2 to 12","Night"]
["ds_psishadow001","Psi-Shadow","Very Rare",8,6,"Hostile",1,"Night"]
["dw_banshee001","Dwarven Banshee, Epic Stalker","Very Rare",37,30,"Undead","1 - 4","Night"]
["dw_ghost001","Dwarven Ghost, Epic Wizard","Very Rare",47,30,"Undead","1 - 4","Night"]
["dw_raaig001","Dwarven Raaig, Epic Cleric","Very Rare",47,30,"Undead","1 - 20","Night"]
["fael001","Fael","Rare",14,8,"Undead",1,"Night"]
["fallen001","Fallen Archer","Rare",48,35,"Undead",44216,"Night"]
["fallen002","Fallen Legionaire","Rare",37,25,"Undead",44216,"Night"]
["ghast001","Ghast","Rare",5,4,"Undead",44231,"Night"]
["ghast002","Ghast, Greater","Very Rare",10,8,"Undead","1 to 2","Night"]
["ghast003","Ancient Ghast","Very Rare",7,5,"Undead",1,"Night"]
["ghoul001","Ghoul","Uncommon",3,2,"Undead","1 to 12","Night"]
["hulkcorpse001","Hulking Corpse","Very Rare",17,20,"Undead","1 - 2","Night"]
["hunefer001","Hunefer","Very Rare",75,50,"Undead",1,"Night"]
["ioramh001","Ioramh","Rare",5,4,"Undead","1 to 12","Night"]
["krag_fire001","Krag, Fire","Rare",15,11,"Undead",1,"Night"]
["kragling_f001","Kragling, Fire","Uncommon",2,1,"Undead","1 to 4","Night"]
["malev_spirit001","Malevolent Spirit ","Very Rare",31,20,"Undead",1,"Night"]
["namech_rogue001","Namech, Rogue","Uncommon",11,9,"Undead","1 to 2","Night"]
["plagueblight001","Plague Blight","Very Rare",6,6,"Undead","1 - 6","Night"]
["pridemane001","Pridemane","Rare",14,9,"Undead",1,"Night"]
["pridemane002","Pridemane Ranger","Rare",26,19,"Undead",1,"Night"]
["pridemane003","Pridemane Barbarian","Rare",24,19,"Undead",1,"Night"]
["shadow001","Shadow [AR]","Uncommon",4,3,"Undead","2 - 20","Night"]
["shadow001","Shadow","Rare",4,3,"Undead","1 - 11","Night"]
["shadow002","Shadow, Greater","Rare",11,9,"Undead",1,"Night"]
["shadow003","Shadow, Lesser","Uncommon",3,1,"Undead","1 - 11","Night"]
["skeleguard001","Skeletal Guardian 1","Very Rare",11,10,"Undead",1,"Night"]
["skeleguard002","Skeletal Guardian 2","Very Rare",11,10,"Undead",1,"Night"]
["skeletondwarf001","Skeleton, Dwarf","Rare",1,1,"Undead","Any","Night"]
["skeletongiant001","Skeleton, Half-Giant","Uncommon",2,2,"Undead","Any","Night"]
["skeletonhuman001","Skeleton, Human","Uncommon",1,1,"Undead","Any","Night"]
["skeletonhuman002","Skeleton, Human Archer","Uncommon",1,1,"Undead","Any","Night"]
["slaughterwight01","Slaughter Wight","Very Rare",20,18,"Undead","1 to 10","Night"]
["tagster001","Tagster","Uncommon",3,2,"Omnivore",1,"Night"]
["tchowb_001","T'Chowb","Rare",5,4,"Hostile",1,"Night"]
["tembo001","Tembo","Uncommon",6,4,"Hostile",44204,"Night"]
["tembo002","Tembo, Greater","Rare",9,4,"Hostile","1 to 4","Night"]
["thinkzombie003","Thinking Zombie, Mul - Epic DwD","Very Rare",30,30,"Undead","1 - 4","Night"]
["tliz001","T'liz","Very Rare",37,16,"Undead",1,"Night"]
["voidwraith001","Voidwraith","Very Rare",9,6,"Undead","1 - 5","Night"]
["winterwight001","Winterwight","Very Rare",41,32,"Undead","1 to 2","Night"]
["zombie001","Zombie, Human - Drops Key","Unique",6,5,"Undead",1,"Night"]
["zombie002","Zombie, Mul","Uncommon",7,7,"Undead","1 - 4","Night"]
["zombie003","Zombie, Human","Uncommon",7,7,"Undead","1 - 8","Night"]

{"sheet":"Desert - Day","index":1,"n_rows":159,"n_cols":18,"rows_kept":159}
["Case","#","SpawnVar","RezRef","CR Var","CR",null,"iMinNum","Min",null,"iMaxNum","Max",null,"iWeight",null,null,"Name"]
["case ",0,":sChoice = \"","antloid001","\";  fCR = ",0.25,";  ","iMinNum = ",8,"; ","iMaxNum = ",50,"; ","iWeight = ",8,"; break; // ","Antloid Larva",{"$f":"CONCATENATE(A2,B2,C2,D2,E2,F2,G2,H2,I2,J2,K2,L2,M2, N2, O2, P2, Q2)","v":"case 0:sChoice = \"antloid001\";  fCR = 0.25;  iMinNum = 8; iMaxNum = 50; iWeight = 8; break; // Antloid Larva"}]
["case ",{"$f":"SUM(B2+1)","v":1},":sChoice = \"","ar_rat001","\";  fCR = ",0.15,";  ","iMinNum = ",5,"; ","iMaxNum = ",50,"; ","iWeight = ",16,"; break; // ","Rat, Common",{"$f":"CONCATENATE(A3,B3,C3,D3,E3,F3,G3,H3,I3,J3,K3,L3,M3, N3, O3, P3, Q3)","v":"case 1:sChoice = \"ar_rat001\";  fCR = 0.15;  iMinNum = 5; iMaxNum = 50; iWeight = 16; break; // Rat, Common"}]
["case ",2,":sChoice = \"","ar_flamsnake_001","\";  fCR = ",0.5,";  ","iMinNum = ",4,"; ","iMaxNum = ",12,"; ","iWeight = ",4,"; break; // ","Flame Snake, Minor","case 2:sChoice = \"ar_flamsnake_001\";  fCR = 0.5;  iMinNum = 4; iMaxNum = 12; iWeight = 4; break; // Flame Snake, Minor"]
["case ",3,":sChoice = \"","desertviper_001","\";  fCR = ",0.5,";  ","iMinNum = ",1,"; ","iMaxNum = ",1,"; ","iWeight = ",16,"; break; // ","Desert Viper, Small","case 3:sChoice = \"desertviper_001\";  fCR = 0.5;  iMinNum = 1; iMaxNum = 1; iWeight = 16; break; // Desert Viper, Small"]
["case ",4,":sChoice = \"","ds_conashelae001","\";  fCR = ",0.5,";  ","iMinNum = ",2,"; ","iMaxNum = ",12,"; ","iWeight = ",8,"; break; // ","Conashellae","case 4:sChoice = \"ds_conashelae001\";  fCR = 0.5;  iMinNum = 2; iMaxNum = 12; iWeight = 8; break; // Conashellae"]
["case ",5,":sChoice = \"","ds_critic001","\";  fCR = ",0.5,";  ","iMinNum = ",1,"; ","iMaxNum = ",1,"; ","iWeight = ",8,"; break; // ","Lizard: Critic","case 5:sChoice = \"ds_critic001\";  fCR = 0.5;  iMinNum = 1; iMaxNum = 1; iWeight = 8; break; // Lizard: Critic"]
["case ",6,":sChoice = \"","monst_scorp001","\";  fCR = ",0.5,";  ","iMinNum = ",8,"; ","iMaxNum = ",16,"; ","iWeight = ",16,"; break; // ","Monstrous Scorpion, Tiny","case 6:sChoice = \"monst_scorp001\";  fCR = 0.5;  iMinNum = 8; iMaxNum = 16; iWeight = 16; break; // Monstrous Scorpion, Tiny"]
["case ",7,":sChoice = \"","ds_gorak001","\";  fCR = ",1,".0;  ","iMinNum = ",10,"; ","iMaxNum = ",50,"; ","iWeight = ",16,"; break; // ","Gorak","case 7:sChoice = \"ds_gorak001\";  fCR = 1.0;  iMinNum = 10; iMaxNum = 50; iWeight = 16; break; // Gorak"]
["case ",8,":sChoice = \"","ds_kestrekel001","\";  fCR = ",1,".0;  ","iMinNum = ",3,"; ","iMaxNum = ",30,"; ","iWeight = ",8,"; break; // ","Kes'trekel","case 8:sChoice = \"ds_kestrekel001\";  fCR = 1.0;  iMinNum = 3; iMaxNum = 30; iWeight = 8; break; // Kes'trekel"]
["case ",9,":sChoice = \"","ds_psionocus001","\";  fCR = ",1,".0;  ","iMinNum = ",1,"; ","iMaxNum = ",1,"; ","iWeight = ",4,"; break; // ","Psionocus","case 9:sChoice = \"ds_psionocus001\";  fCR = 1.0;  iMinNum = 1; iMaxNum = 1; iWeight = 4; break; // Psionocus"]
["case ",10,":sChoice = \"","ds_ratdire001","\";  fCR = ",1,".0;  ","iMinNum = ",10,"; ","iMaxNum = ",20,"; ","iWeight = ",16,"; break; // ","Rat: Dire","case 10:sChoice = \"ds_ratdire001\";  fCR = 1.0;  iMinNum = 10; iMaxNum = 20; iWeight = 16; break; // Rat: Dire"]
["case ",11,":sChoice = \"","ds_rock_cactus01","\";  fCR = ",1,".0;  ","iMinNum = ",1,"; ","iMaxNum = ",10,"; ","iWeight = ",8,"; break; // ","Cactus: Rock","case 11:sChoice = \"ds_rock_cactus01\";  fCR = 1.0;  iMinNum = 1; iMaxNum = 10; iWeight = 8; break; // Cactus: Rock"]
["case ",12,":sChoice = \"","ds_shaqat001","\";  fCR = ",1,".0;  ","iMinNum = ",1,"; ","iMaxNum = ",1,"; ","iWeight = ",4,"; break; // ","Beetle: Shaqat","case 12:sChoice = \"ds_shaqat001\";  fCR = 1.0;  iMinNum = 1; iMaxNum = 1; iWeight = 4; break; // Beetle: Shaqat"]
["case ",13,":sChoice = \"","ds_siltrunner001","\";  fCR = ",1,".0;  ","iMinNum = ",3,"; ","iMaxNum = ",40,"; ","iWeight = ",16,"; break; // ","Silt Runner","case 13:sChoice = \"ds_siltrunner001\";  fCR = 1.0;  iMinNum = 3; iMaxNum = 40; iWeight = 16; break; // Silt Runner"]
["case ",14,":sChoice = \"","monst_scorp002","\";  fCR = ",1,".0;  ","iMinNum = ",2,"; ","iMaxNum = ",11,"; ","iWeight = ",16,"; break; // ","Monstrous Scorpion, Small","case 14:sChoice = \"monst_scorp002\";  fCR = 1.0;  iMinNum = 2; iMaxNum = 11; iWeight = 16; break; // Monstrous Scorpion, Small"]
["case ",15,":sChoice = \"","ar_kreen_001","\";  fCR = ",2,".0;  ","iMinNum = ",2,"; ","iMaxNum = ",12,"; ","iWeight = ",8,"; break; // ","Thri-kreen, Common","case 15:sChoice = \"ar_kreen_001\";  fCR = 2.0;  iMinNum = 2; iMaxNum = 12; iWeight = 8; break; // Thri-kreen, Common"]
["case ",16,":sChoice = \"","ds_des_viper002","\";  fCR = ",2,".0;  ","iMinNum = ",1,"; ","iMaxNum = ",1,"; ","iWeight = ",16,"; break; // ","Viper: Desert, Medium","case 16:sChoice = \"ds_des_viper002\";  fCR = 2.0;  iMinNum = 1; iMaxNum = 1; iWeight = 16; break; // Viper: Desert, Medium"]
["case ",17,":sChoice = \"","ds_elvenrope001","\";  fCR = ",2,".0;  ","iMinNum = ",1,"; ","iMaxNum = ",1,"; ","iWeight = ",8,"; break; // ","Cactus: Elven Rope","case 17:sChoice = \"ds_elvenrope001\";  fCR = 2.0;  iMinNum = 1; iMaxNum = 1; iWeight = 8; break; // Cactus: Elven Rope"]
["case ",18,":sChoice = \"","gold_scorp001","\";  fCR = ",2,".0;  ","iMinNum = ",1,"; ","iMaxNum = ",5,"; ","iWeight = ",16,"; break; // ","Gold Scorpion","case 18:sChoice = \"gold_scorp001\";  fCR = 2.0;  iMinNum = 1; iMaxNum = 5; iWeight = 16; break; // Gold Scorpion"]
["case ",19,":sChoice = \"","monst_scorp003","\";  fCR = ",2,".0;  ","iMinNum = ",1,"; ","iMaxNum = ",5,"; ","iWeight = ",8,"; break; // ","Monstrous Scorpion, Medium","case 19:sChoice = \"monst_scorp003\";  fCR = 2.0;  iMinNum = 1; iMaxNum = 5; iWeight = 8; break; // Monstrous Scorpion, Medium"]
["case ",20,":sChoice = \"","antloid002","\";  fCR = ",3,".0;  ","iMinNum = ",1,"; ","iMaxNum = ",50,"; ","iWeight = ",8,"; break; // ","Antloid Worker","case 20:sChoice = \"antloid002\";  fCR = 3.0;  iMinNum = 1; iMaxNum = 50; iWeight = 8; break; // Antloid Worker"]
["case ",21,":sChoice = \"","ar_axebeak001","\";  fCR = ",3,".0;  ","iMinNum = ",1,"; ","iMaxNum = ",6,"; ","iWeight = ",4,"; break; // ","Axe Beak","case 21:sChoice = \"ar_axebeak001\";  fCR = 3.0;  iMinNum = 1; iMaxNum = 6; iWeight = 4; break; // Axe Beak"]
["case ",22,":sChoice = \"","ar_c_belgoi001","\";  fCR = ",3,".0;  ","iMinNum = ",1,"; ","iMaxNum = ",10,"; ","iWeight = ",8,"; break; // ","Belgoi, Common","case 22:sChoice = \"ar_c_belgoi001\";  fCR = 3.0;  iMinNum = 1; iMaxNum = 10; iWeight = 8; break; // Belgoi, Common"]
["case ",23,":sChoice = \"","ar_gulgslaver003","\";  fCR = ",3,".0;  ","iMinNum = ",1,"; ","iMaxNum = ",5,"; ","iWeight = ",4,"; break; // ","Gulgan Slaver - Half-elf","case 23:sChoice = \"ar_gulgslaver003\";  fCR = 3.0;  iMinNum = 1; iMaxNum = 5; iWeight = 4; break; // Gulgan Slaver - Half-elf"]
["case ",24,":sChoice = \"","direrat_002","\";  fCR = ",3,".0;  ","iMinNum = ",1,"; ","iMaxNum = ",4,"; ","iWeight = ",8,"; break; // ","Rat, Dire - Greater","case 24:sChoice = \"direrat_002\";  fCR = 3.0;  iMinNum = 1; iMaxNum = 4; iWeight = 8; break; // Rat, Dire - Greater"]
["case ",25,":sChoice = \"","ds_des_viper003","\";  fCR = ",3,".0;  ","iMinNum = ",1,"; ","iMaxNum = ",1,"; ","iWeight = ",16,"; break; // ","Desert Viper, Large","case 25:sChoice = \"ds_des_viper003\";  fCR = 3.0;  iMinNum = 1; iMaxNum = 1; iWeight = 16; break; // Desert Viper, Large"]
["case ",26,":sChoice = \"","ds_lizstrider001","\";  fCR = ",3,".0;  ","iMinNum = ",1,"; ","iMaxNum = ",1,"; ","iWeight = ",8,"; break; // ","Lizard: Dune Strider, Domesticated","case 26:sChoice = \"ds_lizstrider001\";  fCR = 3.0;  iMinNum = 1; iMaxNum = 1; iWeight = 8; break; // Lizard: Dune Strider, Domesticated"]
["case ",27,":sChoice = \"","ds_wezer001","\";  fCR = ",3,".0;  ","iMinNum = ",1,"; ","iMaxNum = ",100,"; ","iWeight = ",4,"; break; // ","Wezer: Worker","case 27:sChoice = \"ds_wezer001\";  fCR = 3.0;  iMinNum = 1; iMaxNum = 100; iWeight = 4; break; // Wezer: Worker"]
["case ",28,":sChoice = \"","ds_wezer002","\";  fCR = ",3,".0;  ","iMinNum = ",1,"; ","iMaxNum = ",10,"; ","iWeight = ",4,"; break; // ","Wezer: Soldier","case 28:sChoice = \"ds_wezer002\";  fCR = 3.0;  iMinNum = 1; iMaxNum = 10; iWeight = 4; break; // Wezer: Soldier"]
["case ",29,":sChoice = \"","gia_lizard_001","\";  fCR = ",3,".0;  ","iMinNum = ",2,"; ","iMaxNum = ",12,"; ","iWeight = ",16,"; break; // ","Lizard, Giant","case 29:sChoice = \"gia_lizard_001\";  fCR = 3.0;  iMinNum = 2; iMaxNum = 12; iWeight = 16; break; // Lizard, Giant"]
["case ",30,":sChoice = \"","halfbandit_001","\";  fCR = ",3,".0;  ","iMinNum = ",1,"; ","iMaxNum = ",3,"; ","iWeight = ",4,"; break; // ","Bandit, Halfling - Daggers","case 30:sChoice = \"halfbandit_001\";  fCR = 3.0;  iMinNum = 1; iMaxNum = 3; iWeight = 4; break; // Bandit, Halfling - Daggers"]
["case ",31,":sChoice = \"","humanbandit_001","\";  fCR = ",3,".0;  ","iMinNum = ",1,"; ","iMaxNum = ",5,"; ","iWeight = ",8,"; break; // ","Bandit, Human - Short Sword","case 31:sChoice = \"humanbandit_001\";  fCR = 3.0;  iMinNum = 1; iMaxNum = 5; iWeight = 8; break; // Bandit, Human - Short Sword"]
["case ",32,":sChoice = \"","humanbandit_002","\";  fCR = ",3,".0;  ","iMinNum = ",1,"; ","iMaxNum = ",3,"; ","iWeight = ",8,"; break; // ","Bandit, Human - Psionic","case 32:sChoice = \"humanbandit_002\";  fCR = 3.0;  iMinNum = 1; iMaxNum = 3; iWeight = 8; break; // Bandit, Human - Psionic"]
["case ",{"$f":"SUM(B34+1)","v":33},":sChoice = \"","slig002","\";  fCR = ",3,".0;  ","iMinNum = ",5,"; ","iMaxNum = ",15,"; ","iWeight = ",8,"; break; // ","Slig, Common","case 33:sChoice = \"slig002\";  fCR = 3.0;  iMinNum = 5; iMaxNum = 15; iWeight = 8; break; // Slig, Common"]
["case ",34,":sChoice = \"","wildmul001","\";  fCR = ",3,".0;  ","iMinNum = ",2,"; ","iMaxNum = ",7,"; ","iWeight = ",16,"; break; // ","Mul, Wild - Battleaxe","case 34:sChoice = \"wildmul001\";  fCR = 3.0;  iMinNum = 2; iMaxNum = 7; iWeight = 16; break; // Mul, Wild - Battleaxe"]
["case ",35,":sChoice = \"","ar_mepsteam001","\";  fCR = ",4,".0;  ","iMinNum = ",1,"; ","iMaxNum = ",12,"; ","iWeight = ",4,"; break; // ","Mephit, Steam","case 35:sChoice = \"ar_mepsteam001\";  fCR = 4.0;  iMinNum = 1; iMaxNum = 12; iWeight = 4; break; // Mephit, Steam"]
["case ",36,":sChoice = \"","ar_rocklizard001","\";  fCR = ",4,".0;  ","iMinNum = ",1,"; ","iMaxNum = ",1,"; ","iWeight = ",8,"; break; // ","Lizard, Rock-Horned","case 36:sChoice = \"ar_rocklizard001\";  fCR = 4.0;  iMinNum = 1; iMaxNum = 1; iWeight = 8; break; // Lizard, Rock-Horned"]
["case ",37,":sChoice = \"","ar_scrbeetle_001","\";  fCR = ",4,".0;  ","iMinNum = ",2,"; ","iMaxNum = ",8,"; ","iWeight = ",8,"; break; // ","Screamer Beetle","case 37:sChoice = \"ar_scrbeetle_001\";  fCR = 4.0;  iMinNum = 2; iMaxNum = 8; iWeight = 8; break; // Screamer Beetle"]
["case ",38,":sChoice = \"","banditguard_001","\";  fCR = ",4,".0;  ","iMinNum = ",1,"; ","iMaxNum = ",8,"; ","iWeight = ",4,"; break; // ","Bandit Guard, Mul - Short Swords","case 38:sChoice = \"banditguard_001\";  fCR = 4.0;  iMinNum = 1; iMaxNum = 8; iWeight = 4; break; // Bandit Guard, Mul - Short Swords"]
["case ",39,":sChoice = \"","ds_desfalcon001","\";  fCR = ",4,".0;  ","iMinNum = ",1,"; ","iMaxNum = ",1,"; ","iWeight = ",8,"; break; // ","Falcon, Desert: 4 HD","case 39:sChoice = \"ds_desfalcon001\";  fCR = 4.0;  iMinNum = 1; iMaxNum = 1; iWeight = 8; break; // Falcon, Desert: 4 HD"]
["case ",40,":sChoice = \"","ds_dunecrab001","\";  fCR = ",4,".0;  ","iMinNum = ",1,"; ","iMaxNum = ",2,"; ","iWeight = ",16,"; break; // ","Dunecrab","case 40:sChoice = \"ds_dunecrab001\";  fCR = 4.0;  iMinNum = 1; iMaxNum = 2; iWeight = 16; break; // Dunecrab"]
["case ",41,":sChoice = \"","ds_dustglider001","\";  fCR = ",4,".0;  ","iMinNum = ",1,"; ","iMaxNum = ",2,"; ","iWeight = ",8,"; break; // ","Dust Glider","case 41:sChoice = \"ds_dustglider001\";  fCR = 4.0;  iMinNum = 1; iMaxNum = 2; iWeight = 8; break; // Dust Glider"]
["case ",42,":sChoice = \"","dustdigger01","\";  fCR = ",4,".0;  ","iMinNum = ",1,"; ","iMaxNum = ",8,"; ","iWeight = ",8,"; break; // ","Dust Digger","case 42:sChoice = \"dustdigger01\";  fCR = 4.0;  iMinNum = 1; iMaxNum = 8; iWeight = 8; break; // Dust Digger"]
["case ",43,":sChoice = \"","elem_air_sm001","\";  fCR = ",4,".0;  ","iMinNum = ",1,"; ","iMaxNum = ",1,"; ","iWeight = ",4,"; break; // ","[AR] Air Elemental, Small","case 43:sChoice = \"elem_air_sm001\";  fCR = 4.0;  iMinNum = 1; iMaxNum = 1; iWeight = 4; break; // [AR] Air Elemental, Small"]
["case ",44,":sChoice = \"","elem_sun_sm001","\";  fCR = ",4,".0;  ","iMinNum = ",1,"; ","iMaxNum = ",1,"; ","iWeight = ",4,"; break; // ","Sun Paraelemental, Small","case 44:sChoice = \"elem_sun_sm001\";  fCR = 4.0;  iMinNum = 1; iMaxNum = 1; iWeight = 4; break; // Sun Paraelemental, Small"]
["case ",45,":sChoice = \"","sandhowler001","\";  fCR = ",4,".0;  ","iMinNum = ",2,"; ","iMaxNum = ",8,"; ","iWeight = ",8,"; break; // ","Sand Howler","case 45:sChoice = \"sandhowler001\";  fCR = 4.0;  iMinNum = 2; iMaxNum = 8; iWeight = 8; break; // Sand Howler"]
["case ",46,":sChoice = \"","ar_basilisk001","\";  fCR = ",5,".0;  ","iMinNum = ",1,"; ","iMaxNum = ",2,"; ","iWeight = ",8,"; break; // ","Basilisk","case 46:sChoice = \"ar_basilisk001\";  fCR = 5.0;  iMinNum = 1; iMaxNum = 2; iWeight = 8; break; // Basilisk"]
["case ",47,":sChoice = \"","ar_bladehood001","\";  fCR = ",5,".0;  ","iMinNum = ",1,"; ","iMaxNum = ",1,"; ","iWeight = ",4,"; break; // ","Blade Hood","case 47:sChoice = \"ar_bladehood001\";  fCR = 5.0;  iMinNum = 1; iMaxNum = 1; iWeight = 4; break; // Blade Hood"]
["case ",48,":sChoice = \"","ar_daggoran_001","\";  fCR = ",5,".0;  ","iMinNum = ",2,"; ","iMaxNum = ",8,"; ","iWeight = ",8,"; break; // ","Daggoran","case 48:sChoice = \"ar_daggoran_001\";  fCR = 5.0;  iMinNum = 2; iMaxNum = 8; iWeight = 8; break; // Daggoran"]
["case ",49,":sChoice = \"","ar_hellhound001","\";  fCR = ",5,".0;  ","iMinNum = ",2,"; ","iMaxNum = ",8,"; ","iWeight = ",4,"; break; // ","Hell Hound [AR]","case 49:sChoice = \"ar_hellhound001\";  fCR = 5.0;  iMinNum = 2; iMaxNum = 8; iWeight = 4; break; // Hell Hound [AR]"]
["case ",50,":sChoice = \"","ar_imp001","\";  fCR = ",5,".0;  ","iMinNum = ",1,"; ","iMaxNum = ",1,"; ","iWeight = ",4,"; break; // ","Imp [AR]","case 50:sChoice = \"ar_imp001\";  fCR = 5.0;  iMinNum = 1; iMaxNum = 1; iWeight = 4; break; // Imp [AR]"]
["case ",51,":sChoice = \"","ar_pakubrazi_001","\";  fCR = ",5,".0;  ","iMinNum = ",1,"; ","iMaxNum = ",1,"; ","iWeight = ",4,"; break; // ","Pakubrazi","case 51:sChoice = \"ar_pakubrazi_001\";  fCR = 5.0;  iMinNum = 1; iMaxNum = 1; iWeight = 4; break; // Pakubrazi"]
["case ",52,":sChoice = \"","ar_skyrossent001","\";  fCR = ",5,".0;  ","iMinNum = ",3,"; ","iMaxNum = ",8,"; ","iWeight = ",4,"; break; // ","Marble Sentinel, Skyros","case 52:sChoice = \"ar_skyrossent001\";  fCR = 5.0;  iMinNum = 3; iMaxNum = 8; iWeight = 4; break; // Marble Sentinel, Skyros"]
["case ",53,":sChoice = \"","direrat_003","\";  fCR = ",5,".0;  ","iMinNum = ",1,"; ","iMaxNum = ",1,"; ","iWeight = ",4,"; break; // ","Rat, Dire - Elder","case 53:sChoice = \"direrat_003\";  fCR = 5.0;  iMinNum = 1; iMaxNum = 1; iWeight = 4; break; // Rat, Dire - Elder"]
["case ",54,":sChoice = \"","ds_hunt_cactus01","\";  fCR = ",5,".0;  ","iMinNum = ",1,"; ","iMaxNum = ",2,"; ","iWeight = ",4,"; break; // ","Cactus: Hunting","case 54:sChoice = \"ds_hunt_cactus01\";  fCR = 5.0;  iMinNum = 1; iMaxNum = 2; iWeight = 4; break; // Cactus: Hunting"]
["case ",55,":sChoice = \"","ds_scrab001","\";  fCR = ",5,".0;  ","iMinNum = ",1,"; ","iMaxNum = ",12,"; ","iWeight = ",8,"; break; // ","Scrab: Commoner","case 55:sChoice = \"ds_scrab001\";  fCR = 5.0;  iMinNum = 1; iMaxNum = 12; iWeight = 8; break; // Scrab: Commoner"]
["case ",56,":sChoice = \"","ds_trin001","\";  fCR = ",5,".0;  ","iMinNum = ",1,"; ","iMaxNum = ",12,"; ","iWeight = ",8,"; break; // ","Trin","case 56:sChoice = \"ds_trin001\";  fCR = 5.0;  iMinNum = 1; iMaxNum = 12; iWeight = 8; break; // Trin"]
["case ",57,":sChoice = \"","magera_001","\";  fCR = ",5,".0;  ","iMinNum = ",2,"; ","iMaxNum = ",8,"; ","iWeight = ",8,"; break; // ","Magera","case 57:sChoice = \"magera_001\";  fCR = 5.0;  iMinNum = 2; iMaxNum = 8; iWeight = 8; break; // Magera"]
["case ",58,":sChoice = \"","sandwyvern001","\";  fCR = ",5,".0;  ","iMinNum = ",1,"; ","iMaxNum = ",6,"; ","iWeight = ",4,"; break; // ","Sand Wyvern, Male","case 58:sChoice = \"sandwyvern001\";  fCR = 5.0;  iMinNum = 1; iMaxNum = 6; iWeight = 4; break; // Sand Wyvern, Male"]
["case ",59,":sChoice = \"","tarek_001","\";  fCR = ",5,".0;  ","iMinNum = ",1,"; ","iMaxNum = ",12,"; ","iWeight = ",8,"; break; // ","Tarek","case 59:sChoice = \"tarek_001\";  fCR = 5.0;  iMinNum = 1; iMaxNum = 12; iWeight = 8; break; // Tarek"]
["case ",60,":sChoice = \"","antloid004","\";  fCR = ",6,".0;  ","iMinNum = ",1,"; ","iMaxNum = ",10,"; ","iWeight = ",4,"; break; // ","Antloid Dynamis","case 60:sChoice = \"antloid004\";  fCR = 6.0;  iMinNum = 1; iMaxNum = 10; iWeight = 4; break; // Antloid Dynamis"]
["case ",61,":sChoice = \"","ar_c_belgoi002","\";  fCR = ",6,".0;  ","iMinNum = ",1,"; ","iMaxNum = ",10,"; ","iWeight = ",4,"; break; // ","Belgoi, Raider","case 61:sChoice = \"ar_c_belgoi002\";  fCR = 6.0;  iMinNum = 1; iMaxNum = 10; iWeight = 4; break; // Belgoi, Raider"]
["case ",62,":sChoice = \"","ar_c_belgoi003","\";  fCR = ",6,".0;  ","iMinNum = ",1,"; ","iMaxNum = ",1,"; ","iWeight = ",4,"; break; // ","Belgoi, Scout","case 62:sChoice = \"ar_c_belgoi003\";  fCR = 6.0;  iMinNum = 1; iMaxNum = 1; iWeight = 4; break; // Belgoi, Scout"]
["case ",63,":sChoice = \"","ar_wolfspider001","\";  fCR = ",6,".0;  ","iMinNum = ",2,"; ","iMaxNum = ",10,"; ","iWeight = ",4,"; break; // ","Wolf-spider","case 63:sChoice = \"ar_wolfspider001\";  fCR = 6.0;  iMinNum = 2; iMaxNum = 10; iWeight = 4; break; // Wolf-spider"]
["case ",64,":sChoice = \"","ds_desfalcon002","\";  fCR = ",6,".0;  ","iMinNum = ",1,"; ","iMaxNum = ",1,"; ","iWeight = ",8,"; break; // ","Falcon, Desert: 6 HD","case 64:sChoice = \"ds_desfalcon002\";  fCR = 6.0;  iMinNum = 1; iMaxNum = 1; iWeight = 8; break; // Falcon, Desert: 6 HD"]
["case ",{"$f":"SUM(B66+1)","v":65},":sChoice = \"","ds_inix001","\";  fCR = ",6,".0;  ","iMinNum = ",1,"; ","iMaxNum = ",2,"; ","iWeight = ",8,"; break; // ","Inix: Wild",{"$f":"CONCATENATE(A67,B67,C67,D67,E67,F67,G67,H67,I67,J67,K67,L67,M67, N67, O67, P67, Q67)","v":"case 65:sChoice = \"ds_inix001\";  fCR = 6.0;  iMinNum = 1; iMaxNum = 2; iWeight = 8; break; // Inix: Wild"}]
["case ",66,":sChoice = \"","ds_lirr001","\";  fCR = ",6,".0;  ","iMinNum = ",2,"; ","iMaxNum = ",12,"; ","iWeight = ",8,"; break; // ","Lirr","case 66:sChoice = \"ds_lirr001\";  fCR = 6.0;  iMinNum = 2; iMaxNum = 12; iWeight = 8; break; // Lirr"]
["case ",67,":sChoice = \"","dunebandit_001","\";  fCR = ",6,".0;  ","iMinNum = ",1,"; ","iMaxNum = ",8,"; ","iWeight = ",4,"; break; // ","Dune Bandit, Mul - Longsword","case 67:sChoice = \"dunebandit_001\";  fCR = 6.0;  iMinNum = 1; iMaxNum = 8; iWeight = 4; break; // Dune Bandit, Mul - Longsword"]
["case ",68,":sChoice = \"","elem_sun_md001","\";  fCR = ",6,".0;  ","iMinNum = ",1,"; ","iMaxNum = ",1,"; ","iWeight = ",4,"; break; // ","Sun Paraelemental, Medium","case 68:sChoice = \"elem_sun_md001\";  fCR = 6.0;  iMinNum = 1; iMaxNum = 1; iWeight = 4; break; // Sun Paraelemental, Medium"]
["case ",69,":sChoice = \"","monst_scorp004","\";  fCR = ",6,".0;  ","iMinNum = ",1,"; ","iMaxNum = ",5,"; ","iWeight = ",8,"; break; // ","Monstrous Scorpion, Large","case 69:sChoice = \"monst_scorp004\";  fCR = 6.0;  iMinNum = 1; iMaxNum = 5; iWeight = 8; break; // Monstrous Scorpion, Large"]
["case ",70,":sChoice = \"","sandwyvern002","\";  fCR = ",6,".0;  ","iMinNum = ",1,"; ","iMaxNum = ",6,"; ","iWeight = ",4,"; break; // ","Sand Wyvern, Female","case 70:sChoice = \"sandwyvern002\";  fCR = 6.0;  iMinNum = 1; iMaxNum = 6; iWeight = 4; break; // Sand Wyvern, Female"]
["case ",71,":sChoice = \"","antloid003","\";  fCR = ",7,".0;  ","iMinNum = ",2,"; ","iMaxNum = ",20,"; ","iWeight = ",8,"; break; // ","Antloid Soldier","case 71:sChoice = \"antloid003\";  fCR = 7.0;  iMinNum = 2; iMaxNum = 20; iWeight = 8; break; // Antloid Soldier"]
["case ",72,":sChoice = \"","ar_defiler_001","\";  fCR = ",7,".0;  ","iMinNum = ",1,"; ","iMaxNum = ",5,"; ","iWeight = ",4,"; break; // ","Defiler, Apprentice","case 72:sChoice = \"ar_defiler_001\";  fCR = 7.0;  iMinNum = 1; iMaxNum = 5; iWeight = 4; break; // Defiler, Apprentice"]
["case ",73,":sChoice = \"","ds_dunecrab002","\";  fCR = ",7,".0;  ","iMinNum = ",1,"; ","iMaxNum = ",1,"; ","iWeight = ",8,"; break; // ","Dunecrab, Greater","case 73:sChoice = \"ds_dunecrab002\";  fCR = 7.0;  iMinNum = 1; iMaxNum = 1; iWeight = 8; break; // Dunecrab, Greater"]
["case ",74,":sChoice = \"","ds_fireeel001","\";  fCR = ",7,".0;  ","iMinNum = ",1,"; ","iMaxNum = ",2,"; ","iWeight = ",4,"; break; // ","Eel, Fire","case 74:sChoice = \"ds_fireeel001\";  fCR = 7.0;  iMinNum = 1; iMaxNum = 2; iWeight = 4; break; // Eel, Fire"]
["case ",75,":sChoice = \"","ds_scrab002","\";  fCR = ",7,".0;  ","iMinNum = ",1,"; ","iMaxNum = ",1,"; ","iWeight = ",4,"; break; // ","Scrab: Hive Mother","case 75:sChoice = \"ds_scrab002\";  fCR = 7.0;  iMinNum = 1; iMaxNum = 1; iWeight = 4; break; // Scrab: Hive Mother"]
["case ",76,":sChoice = \"","dunebandit_002","\";  fCR = ",7,".0;  ","iMinNum = ",1,"; ","iMaxNum = ",5,"; ","iWeight = ",8,"; break; // ","Dune Bandit - Longbow","case 76:sChoice = \"dunebandit_002\";  fCR = 7.0;  iMinNum = 1; iMaxNum = 5; iWeight = 8; break; // Dune Bandit - Longbow"]
["case ",77,":sChoice = \"","dunestalker_001","\";  fCR = ",7,".0;  ","iMinNum = ",1,"; ","iMaxNum = ",1,"; ","iWeight = ",4,"; break; // ","Dune Stalker","case 77:sChoice = \"dunestalker_001\";  fCR = 7.0;  iMinNum = 1; iMaxNum = 1; iWeight = 4; break; // Dune Stalker"]
["case ",78,":sChoice = \"","elem_air_md001","\";  fCR = ",7,".0;  ","iMinNum = ",1,"; ","iMaxNum = ",1,"; ","iWeight = ",4,"; break; // ","[AR] Air Elemental, Medium","case 78:sChoice = \"elem_air_md001\";  fCR = 7.0;  iMinNum = 1; iMaxNum = 1; iWeight = 4; break; // [AR] Air Elemental, Medium"]
["case ",79,":sChoice = \"","giantshadow001","\";  fCR = ",7,".0;  ","iMinNum = ",2,"; ","iMaxNum = ",8,"; ","iWeight = ",4,"; break; // ","Giant, Shadow","case 79:sChoice = \"giantshadow001\";  fCR = 7.0;  iMinNum = 2; iMaxNum = 8; iWeight = 4; break; // Giant, Shadow"]
["case ",80,":sChoice = \"","necrophidius","\";  fCR = ",7,".0;  ","iMinNum = ",1,"; ","iMaxNum = ",5,"; ","iWeight = ",4,"; break; // ","Necrophidius","case 80:sChoice = \"necrophidius\";  fCR = 7.0;  iMinNum = 1; iMaxNum = 5; iWeight = 4; break; // Necrophidius"]
["case ",81,":sChoice = \"","puddingdun001","\";  fCR = ",7,".0;  ","iMinNum = ",1,"; ","iMaxNum = ",1,"; ","iWeight = ",8,"; break; // ","Pudding, Dun","case 81:sChoice = \"puddingdun001\";  fCR = 7.0;  iMinNum = 1; iMaxNum = 1; iWeight = 8; break; // Pudding, Dun"]
["case ",82,":sChoice = \"","ruve001","\";  fCR = ",7,".0;  ","iMinNum = ",1,"; ","iMaxNum = ",8,"; ","iWeight = ",8,"; break; // ","Ruve","case 82:sChoice = \"ruve001\";  fCR = 7.0;  iMinNum = 1; iMaxNum = 8; iWeight = 8; break; // Ruve"]
["case ",83,":sChoice = \"","shardspider001","\";  fCR = ",7,".0;  ","iMinNum = ",1,"; ","iMaxNum = ",2,"; ","iWeight = ",4,"; break; // ","Shard Spider","case 83:sChoice = \"shardspider001\";  fCR = 7.0;  iMinNum = 1; iMaxNum = 2; iWeight = 4; break; // Shard Spider"]
["case ",84,":sChoice = \"","antloid005","\";  fCR = ",8,".0;  ","iMinNum = ",1,"; ","iMaxNum = ",1,"; ","iWeight = ",4,"; break; // ","Antloid Queen","case 84:sChoice = \"antloid005\";  fCR = 8.0;  iMinNum = 1; iMaxNum = 1; iWeight = 4; break; // Antloid Queen"]
["case ",85,":sChoice = \"","ar_bladehood002","\";  fCR = ",8,".0;  ","iMinNum = ",1,"; ","iMaxNum = ",1,"; ","iWeight = ",4,"; break; // ","Blade Hood, Greater","case 85:sChoice = \"ar_bladehood002\";  fCR = 8.0;  iMinNum = 1; iMaxNum = 1; iWeight = 4; break; // Blade Hood, Greater"]
["case ",86,":sChoice = \"","ar_firenymph001","\";  fCR = ",8,".0;  ","iMinNum = ",1,"; ","iMaxNum = ",1,"; ","iWeight = ",4,"; break; // ","Fire Nymph","case 86:sChoice = \"ar_firenymph001\";  fCR = 8.0;  iMinNum = 1; iMaxNum = 1; iWeight = 4; break; // Fire Nymph"]
["case ",87,":sChoice = \"","ar_onyxsent001","\";  fCR = ",8,".0;  ","iMinNum = ",3,"; ","iMaxNum = ",6,"; ","iWeight = ",4,"; break; // ","Marble Sentinel, Onyx","case 87:sChoice = \"ar_onyxsent001\";  fCR = 8.0;  iMinNum = 3; iMaxNum = 6; iWeight = 4; break; // Marble Sentinel, Onyx"]
["case ",88,":sChoice = \"","ds_brohg001","\";  fCR = ",8,".0;  ","iMinNum = ",1,"; ","iMaxNum = ",12,"; ","iWeight = ",8,"; break; // ","Giant: B'rohg, Common","case 88:sChoice = \"ds_brohg001\";  fCR = 8.0;  iMinNum = 1; iMaxNum = 12; iWeight = 8; break; // Giant: B'rohg, Common"]
["case ",89,":sChoice = \"","ar_c_jathlagak","\";  fCR = ",9,".0;  ","iMinNum = ",3,"; ","iMaxNum = ",15,"; ","iWeight = ",8,"; break; // ","Jalath'gak","case 89:sChoice = \"ar_c_jathlagak\";  fCR = 9.0;  iMinNum = 3; iMaxNum = 15; iWeight = 8; break; // Jalath'gak"]
["case ",90,":sChoice = \"","ar_defiler_002","\";  fCR = ",9,".0;  ","iMinNum = ",1,"; ","iMaxNum = ",3,"; ","iWeight = ",4,"; break; // ","Defiler, Journeyman","case 90:sChoice = \"ar_defiler_002\";  fCR = 9.0;  iMinNum = 1; iMaxNum = 3; iWeight = 4; break; // Defiler, Journeyman"]
["case ",91,":sChoice = \"","ar_flamsnake_002","\";  fCR = ",9,".0;  ","iMinNum = ",1,"; ","iMaxNum = ",7,"; ","iWeight = ",4,"; break; // ","Flame Snake, Lesser","case 91:sChoice = \"ar_flamsnake_002\";  fCR = 9.0;  iMinNum = 1; iMaxNum = 7; iWeight = 4; break; // Flame Snake, Lesser"]
["case ",92,":sChoice = \"","ar_invstalk001","\";  fCR = ",9,".0;  ","iMinNum = ",1,"; ","iMaxNum = ",1,"; ","iWeight = ",4,"; break; // ","Invisible Stalker [AR]","case 92:sChoice = \"ar_invstalk001\";  fCR = 9.0;  iMinNum = 1; iMaxNum = 1; iWeight = 4; break; // Invisible Stalker [AR]"]
["case ",93,":sChoice = \"","ar_saltdrake001","\";  fCR = ",9,".0;  ","iMinNum = ",1,"; ","iMaxNum = ",5,"; ","iWeight = ",4,"; break; // ","Drake, Salt ","case 93:sChoice = \"ar_saltdrake001\";  fCR = 9.0;  iMinNum = 1; iMaxNum = 5; iWeight = 4; break; // Drake, Salt "]
["case ",94,":sChoice = \"","ds_firelizard001","\";  fCR = ",9,".0;  ","iMinNum = ",1,"; ","iMaxNum = ",4,"; ","iWeight = ",4,"; break; // ","Lizard: Fire","case 94:sChoice = \"ds_firelizard001\";  fCR = 9.0;  iMinNum = 1; iMaxNum = 4; iWeight = 4; break; // Lizard: Fire"]
["case ",95,":sChoice = \"","idfiend_001","\";  fCR = ",9,".0;  ","iMinNum = ",1,"; ","iMaxNum = ",1,"; ","iWeight = ",4,"; break; // ","Id Fiend","case 95:sChoice = \"idfiend_001\";  fCR = 9.0;  iMinNum = 1; iMaxNum = 1; iWeight = 4; break; // Id Fiend"]
["case ",96,":sChoice = \"","ruve002","\";  fCR = ",9,".0;  ","iMinNum = ",1,"; ","iMaxNum = ",4,"; ","iWeight = ",4,"; break; // ","Ruve, Greater","case 96:sChoice = \"ruve002\";  fCR = 9.0;  iMinNum = 1; iMaxNum = 4; iWeight = 4; break; // Ruve, Greater"]
["case ",{"$f":"SUM(B98+1)","v":97},":sChoice = \"","xerichou001","\";  fCR = ",9,".0;  ","iMinNum = ",6,"; ","iMaxNum = ",36,"; ","iWeight = ",8,"; break; // ","Xerichou","case 97:sChoice = \"xerichou001\";  fCR = 9.0;  iMinNum = 6; iMaxNum = 36; iWeight = 8; break; // Xerichou"]
["case ",98,":sChoice = \"","ds_spinewyrm001","\";  fCR = ",10,".0;  ","iMinNum = ",1,"; ","iMaxNum = ",1,"; ","iWeight = ",8,"; break; // ","Spinewyrm","case 98:sChoice = \"ds_spinewyrm001\";  fCR = 10.0;  iMinNum = 1; iMaxNum = 1; iWeight = 8; break; // Spinewyrm"]
["case ",99,":sChoice = \"","ds_zik_trin_ak01","\";  fCR = ",10,".0;  ","iMinNum = ",1,"; ","iMaxNum = ",4,"; ","iWeight = ",4,"; break; // ","Zik-trin'ak","case 99:sChoice = \"ds_zik_trin_ak01\";  fCR = 10.0;  iMinNum = 1; iMaxNum = 4; iWeight = 4; break; // Zik-trin'ak"]
["case ",100,":sChoice = \"","crystalspider001","\";  fCR = ",11,".0;  ","iMinNum = ",1,"; ","iMaxNum = ",1,"; ","iWeight = ",4,"; break; // ","Crystal Spider","case 100:sChoice = \"crystalspider001\";  fCR = 11.0;  iMinNum = 1; iMaxNum = 1; iWeight = 4; break; // Crystal Spider"]
["case ",101,":sChoice = \"","ds_gaj_001","\";  fCR = ",11,".0;  ","iMinNum = ",1,"; ","iMaxNum = ",1,"; ","iWeight = ",4,"; break; // ","Gaj","case 101:sChoice = \"ds_gaj_001\";  fCR = 11.0;  iMinNum = 1; iMaxNum = 1; iWeight = 4; break; // Gaj"]
["case ",102,":sChoice = \"","ds_siltweird001","\";  fCR = ",11,".0;  ","iMinNum = ",1,"; ","iMaxNum = ",1,"; ","iWeight = ",4,"; break; // ","Elemental Weird: Silt","case 102:sChoice = \"ds_siltweird001\";  fCR = 11.0;  iMinNum = 1; iMaxNum = 1; iWeight = 4; break; // Elemental Weird: Silt"]
["case ",103,":sChoice = \"","ds_styr001","\";  fCR = ",11,".0;  ","iMinNum = ",1,"; ","iMaxNum = ",1,"; ","iWeight = ",4,"; break; // ","Styr","case 103:sChoice = \"ds_styr001\";  fCR = 11.0;  iMinNum = 1; iMaxNum = 1; iWeight = 4; break; // Styr"]
["case ",104,":sChoice = \"","elvenraider002","\";  fCR = ","11",".0;  ","iMinNum = ",1,"; ","iMaxNum = ",4,"; ","iWeight = ",4,"; break; // ","Elven Raider Defiler","case 104:sChoice = \"elvenraider002\";  fCR = 11.0;  iMinNum = 1; iMaxNum = 4; iWeight = 4; break; // Elven Raider Defiler"]
["case ",105,":sChoice = \"","magera_002","\";  fCR = ",11,".0;  ","iMinNum = ",2,"; ","iMaxNum = ",4,"; ","iWeight = ",4,"; break; // ","Magera Fighter","case 105:sChoice = \"magera_002\";  fCR = 11.0;  iMinNum = 2; iMaxNum = 4; iWeight = 4; break; // Magera Fighter"]
["case ",106,":sChoice = \"","wildmul002","\";  fCR = ",11,".0;  ","iMinNum = ",2,"; ","iMaxNum = ",7,"; ","iWeight = ",8,"; break; // ","Mul, Wild - Dragon's Paw","case 106:sChoice = \"wildmul002\";  fCR = 11.0;  iMinNum = 2; iMaxNum = 7; iWeight = 8; break; // Mul, Wild - Dragon's Paw"]
["case ",107,":sChoice = \"","ar_bloodsent001","\";  fCR = ",12,".0;  ","iMinNum = ",3,"; ","iMaxNum = ",5,"; ","iWeight = ",4,"; break; // ","Marble Sentinel, Bloodstone","case 107:sChoice = \"ar_bloodsent001\";  fCR = 12.0;  iMinNum = 3; iMaxNum = 5; iWeight = 4; break; // Marble Sentinel, Bloodstone"]
["case ",108,":sChoice = \"","ds_ashgolem001","\";  fCR = ",12,".0;  ","iMinNum = ",1,"; ","iMaxNum = ",1,"; ","iWeight = ",4,"; break; // ","Golem: Ash","case 108:sChoice = \"ds_ashgolem001\";  fCR = 12.0;  iMinNum = 1; iMaxNum = 1; iWeight = 4; break; // Golem: Ash"]
["case ",109,":sChoice = \"","ds_zik_trin_ta01","\";  fCR = ",12,".0;  ","iMinNum = ",1,"; ","iMaxNum = ",4,"; ","iWeight = ",4,"; break; // ","Zik-trin’ta","case 109:sChoice = \"ds_zik_trin_ta01\";  fCR = 12.0;  iMinNum = 1; iMaxNum = 4; iWeight = 4; break; // Zik-trin’ta"]
["case ",110,":sChoice = \"","dunereaper001","\";  fCR = ",12,".0;  ","iMinNum = ",5,"; ","iMaxNum = ",15,"; ","iWeight = ",16,"; break; // ","Dune Reaper, Drone","case 110:sChoice = \"dunereaper001\";  fCR = 12.0;  iMinNum = 5; iMaxNum = 15; iWeight = 16; break; // Dune Reaper, Drone"]
["case ",111,":sChoice = \"","monst_scorp005","\";  fCR = ",12,".0;  ","iMinNum = ",1,"; ","iMaxNum = ",5,"; ","iWeight = ",16,"; break; // ","Monstrous Scorpion, Huge","case 111:sChoice = \"monst_scorp005\";  fCR = 12.0;  iMinNum = 1; iMaxNum = 5; iWeight = 16; break; // Monstrous Scorpion, Huge"]
["case ",112,":sChoice = \"","xerichou002","\";  fCR = ",12,".0;  ","iMinNum = ",3,"; ","iMaxNum = ",18,"; ","iWeight = ",4,"; break; // ","Xerichou, Greater","case 112:sChoice = \"xerichou002\";  fCR = 12.0;  iMinNum = 3; iMaxNum = 18; iWeight = 4; break; // Xerichou, Greater"]
["case ",113,":sChoice = \"","ar_desmast_001","\";  fCR = ",13,".0;  ","iMinNum = ",1,"; ","iMaxNum = ",5,"; ","iWeight = ",8,"; break; // ","Mastyrial, Desert","case 113:sChoice = \"ar_desmast_001\";  fCR = 13.0;  iMinNum = 1; iMaxNum = 5; iWeight = 8; break; // Mastyrial, Desert"]
["case ",114,":sChoice = \"","ar_kreen_002","\";  fCR = ",13,".0;  ","iMinNum = ",1,"; ","iMaxNum = ",1,"; ","iWeight = ",4,"; break; // ","Thri-kreen, Ranger","case 114:sChoice = \"ar_kreen_002\";  fCR = 13.0;  iMinNum = 1; iMaxNum = 1; iWeight = 4; break; // Thri-kreen, Ranger"]
["case ",115,":sChoice = \"","ds_claygolem001","\";  fCR = ",13,".0;  ","iMinNum = ",2,"; ","iMaxNum = ",10,"; ","iWeight = ",4,"; break; // ","Golem: Clay","case 115:sChoice = \"ds_claygolem001\";  fCR = 13.0;  iMinNum = 2; iMaxNum = 10; iWeight = 4; break; // Golem: Clay"]
["case ",116,":sChoice = \"","ds_sandgolem001","\";  fCR = ",13,".0;  ","iMinNum = ",1,"; ","iMaxNum = ",1,"; ","iWeight = ",4,"; break; // ","Golem: Sand","case 116:sChoice = \"ds_sandgolem001\";  fCR = 13.0;  iMinNum = 1; iMaxNum = 1; iWeight = 4; break; // Golem: Sand"]
["case ",117,":sChoice = \"","elem_air_lg001","\";  fCR = ",13,".0;  ","iMinNum = ",1,"; ","iMaxNum = ",1,"; ","iWeight = ",4,"; break; // ","[AR] Air Elemental, Large","case 117:sChoice = \"elem_air_lg001\";  fCR = 13.0;  iMinNum = 1; iMaxNum = 1; iWeight = 4; break; // [AR] Air Elemental, Large"]
["case ",118,":sChoice = \"","elem_sun_lg001","\";  fCR = ",13,".0;  ","iMinNum = ",1,"; ","iMaxNum = ",1,"; ","iWeight = ",4,"; break; // ","Sun Paraelemental, Large","case 118:sChoice = \"elem_sun_lg001\";  fCR = 13.0;  iMinNum = 1; iMaxNum = 1; iWeight = 4; break; // Sun Paraelemental, Large"]
["case ",119,":sChoice = \"","ar_c_belgoi004","\";  fCR = ",14,".0;  ","iMinNum = ",1,"; ","iMaxNum = ",1,"; ","iWeight = ",4,"; break; // ","Belgoi, Flamewarder","case 119:sChoice = \"ar_c_belgoi004\";  fCR = 14.0;  iMinNum = 1; iMaxNum = 1; iWeight = 4; break; // Belgoi, Flamewarder"]
["case ",120,":sChoice = \"","ar_kreen_003","\";  fCR = ",14,".0;  ","iMinNum = ",1,"; ","iMaxNum = ",1,"; ","iWeight = ",4,"; break; // ","Thri-kreen, Druid","case 120:sChoice = \"ar_kreen_003\";  fCR = 14.0;  iMinNum = 1; iMaxNum = 1; iWeight = 4; break; // Thri-kreen, Druid"]
["case ",121,":sChoice = \"","ashen001","\";  fCR = ",15,".0;  ","iMinNum = ",1,"; ","iMaxNum = ",1,"; ","iWeight = ",4,"; break; // ","Ashen","case 121:sChoice = \"ashen001\";  fCR = 15.0;  iMinNum = 1; iMaxNum = 1; iWeight = 4; break; // Ashen"]
["case ",122,":sChoice = \"","giantdesert001","\";  fCR = ",15,".0;  ","iMinNum = ",3,"; ","iMaxNum = ",12,"; ","iWeight = ",8,"; break; // ","Giant, Desert","case 122:sChoice = \"giantdesert001\";  fCR = 15.0;  iMinNum = 3; iMaxNum = 12; iWeight = 8; break; // Giant, Desert"]
["case ",123,":sChoice = \"","ar_ebonsent001","\";  fCR = ",16,".0;  ","iMinNum = ",2,"; ","iMaxNum = ",4,"; ","iWeight = ",4,"; break; // ","Marble Sentinel, Ebon","case 123:sChoice = \"ar_ebonsent001\";  fCR = 16.0;  iMinNum = 2; iMaxNum = 4; iWeight = 4; break; // Marble Sentinel, Ebon"]
["case ",124,":sChoice = \"","ar_obsmino001","\";  fCR = ",16,".0;  ","iMinNum = ",1,"; ","iMaxNum = ",1,"; ","iWeight = ",4,"; break; // ","Obsidian Minotaur","case 124:sChoice = \"ar_obsmino001\";  fCR = 16.0;  iMinNum = 1; iMaxNum = 1; iWeight = 4; break; // Obsidian Minotaur"]
["case ",125,":sChoice = \"","drake_fire001","\";  fCR = ",16,".0;  ","iMinNum = ",1,"; ","iMaxNum = ",1,"; ","iWeight = ",4,"; break; // ","Drake, Fire","case 125:sChoice = \"drake_fire001\";  fCR = 16.0;  iMinNum = 1; iMaxNum = 1; iWeight = 4; break; // Drake, Fire"]
["case ",126,":sChoice = \"","drake_water001","\";  fCR = ",16,".0;  ","iMinNum = ",1,"; ","iMaxNum = ",1,"; ","iWeight = ",4,"; break; // ","Drake, Water","case 126:sChoice = \"drake_water001\";  fCR = 16.0;  iMinNum = 1; iMaxNum = 1; iWeight = 4; break; // Drake, Water"]
["case ",127,":sChoice = \"","ds_mekilliot001","\";  fCR = ",16,".0;  ","iMinNum = ",1,"; ","iMaxNum = ",2,"; ","iWeight = ",8,"; break; // ","Mekillot, Wild","case 127:sChoice = \"ds_mekilliot001\";  fCR = 16.0;  iMinNum = 1; iMaxNum = 2; iWeight = 8; break; // Mekillot, Wild"]
["case ",128,":sChoice = \"","ar_saltdrake002","\";  fCR = ",17,".0;  ","iMinNum = ",1,"; ","iMaxNum = ",1,"; ","iWeight = ",4,"; break; // ","Drake, Salt - Huge","case 128:sChoice = \"ar_saltdrake002\";  fCR = 17.0;  iMinNum = 1; iMaxNum = 1; iWeight = 4; break; // Drake, Salt - Huge"]
["case ",{"$f":"SUM(B130+1)","v":129},":sChoice = \"","ds_ashgolem002","\";  fCR = ",17,".0;  ","iMinNum = ",1,"; ","iMaxNum = ",1,"; ","iWeight = ",4,"; break; // ","Golem: Ash, Greater",{"$f":"CONCATENATE(A131,B131,C131,D131,E131,F131,G131,H131,I131,J131,K131,L131,M131, N131, O131, P131, Q131)","v":"case 129:sChoice = \"ds_ashgolem002\";  fCR = 17.0;  iMinNum = 1; iMaxNum = 1; iWeight = 4; break; // Golem: Ash, Greater"}]
["case ",130,":sChoice = \"","wildmul003","\";  fCR = ",17,".0;  ","iMinNum = ",2,"; ","iMaxNum = ",7,"; ","iWeight = ",8,"; break; // ","Mul, Wild - Darts","case 130:sChoice = \"wildmul003\";  fCR = 17.0;  iMinNum = 2; iMaxNum = 7; iWeight = 8; break; // Mul, Wild - Darts"]
["case ",131,":sChoice = \"","ar_aerservant001","\";  fCR = ",18,".0;  ","iMinNum = ",1,"; ","iMaxNum = ",1,"; ","iWeight = ",4,"; break; // ","Aerial Servant","case 131:sChoice = \"ar_aerservant001\";  fCR = 18.0;  iMinNum = 1; iMaxNum = 1; iWeight = 4; break; // Aerial Servant"]
["case ",132,":sChoice = \"","athasianbear001","\";  fCR = ",19,".0;  ","iMinNum = ",1,"; ","iMaxNum = ",2,"; ","iWeight = ",4,"; break; // ","Bear, Athasian","case 132:sChoice = \"athasianbear001\";  fCR = 19.0;  iMinNum = 1; iMaxNum = 2; iWeight = 4; break; // Bear, Athasian"]
["case ",133,":sChoice = \"","drake_earth001","\";  fCR = ",19,".0;  ","iMinNum = ",1,"; ","iMaxNum = ",1,"; ","iWeight = ",4,"; break; // ","Drake, Earth","case 133:sChoice = \"drake_earth001\";  fCR = 19.0;  iMinNum = 1; iMaxNum = 1; iWeight = 4; break; // Drake, Earth"]
["case ",134,":sChoice = \"","ds_claygolem002","\";  fCR = ",19,".0;  ","iMinNum = ",1,"; ","iMaxNum = ",2,"; ","iWeight = ",4,"; break; // ","Golem: Clay, Greater","case 134:sChoice = \"ds_claygolem002\";  fCR = 19.0;  iMinNum = 1; iMaxNum = 2; iWeight = 4; break; // Golem: Clay, Greater"]
["case ",135,":sChoice = \"","ds_obretriever01","\";  fCR = ",19,".0;  ","iMinNum = ",1,"; ","iMaxNum = ",1,"; ","iWeight = ",4,"; break; // ","Obsidian Retriever","case 135:sChoice = \"ds_obretriever01\";  fCR = 19.0;  iMinNum = 1; iMaxNum = 1; iWeight = 4; break; // Obsidian Retriever"]
["case ",136,":sChoice = \"","ds_sandgolem002","\";  fCR = ",19,".0;  ","iMinNum = ",1,"; ","iMaxNum = ",1,"; ","iWeight = ",4,"; break; // ","Golem: Sand, Greater","case 136:sChoice = \"ds_sandgolem002\";  fCR = 19.0;  iMinNum = 1; iMaxNum = 1; iWeight = 4; break; // Golem: Sand, Greater"]
["case ",137,":sChoice = \"","ar_flamsnake_003","\";  fCR = ",20,".0;  ","iMinNum = ",1,"; ","iMaxNum = ",2,"; ","iWeight = ",4,"; break; // ","Flame Snake, Greater","case 137:sChoice = \"ar_flamsnake_003\";  fCR = 20.0;  iMinNum = 1; iMaxNum = 2; iWeight = 4; break; // Flame Snake, Greater"]
["case ",138,":sChoice = \"","ar_alabasent001","\";  fCR = ",21,".0;  ","iMinNum = ",1,"; ","iMaxNum = ",1,"; ","iWeight = ",4,"; break; // ","Marble Sentinel, Alabaster","case 138:sChoice = \"ar_alabasent001\";  fCR = 21.0;  iMinNum = 1; iMaxNum = 1; iWeight = 4; break; // Marble Sentinel, Alabaster"]
["case ",139,":sChoice = \"","monst_scorp006","\";  fCR = ",21,".0;  ","iMinNum = ",1,"; ","iMaxNum = ",1,"; ","iWeight = ",4,"; break; // ","Monstrous Scorpion, Gargantuan","case 139:sChoice = \"monst_scorp006\";  fCR = 21.0;  iMinNum = 1; iMaxNum = 1; iWeight = 4; break; // Monstrous Scorpion, Gargantuan"]
["case ",140,":sChoice = \"","crystalspider002","\";  fCR = ",22,".0;  ","iMinNum = ",1,"; ","iMaxNum = ",1,"; ","iWeight = ",4,"; break; // ","Crystal Spider, Greater","case 140:sChoice = \"crystalspider002\";  fCR = 22.0;  iMinNum = 1; iMaxNum = 1; iWeight = 4; break; // Crystal Spider, Greater"]
["case ",141,":sChoice = \"","drake_air001","\";  fCR = ",23,".0;  ","iMinNum = ",1,"; ","iMaxNum = ",1,"; ","iWeight = ",4,"; break; // ","Drake, Air","case 141:sChoice = \"drake_air001\";  fCR = 23.0;  iMinNum = 1; iMaxNum = 1; iWeight = 4; break; // Drake, Air"]
["case ",142,":sChoice = \"","drake_sun001","\";  fCR = ",23,".0;  ","iMinNum = ",1,"; ","iMaxNum = ",1,"; ","iWeight = ",4,"; break; // ","Drake, Sun","case 142:sChoice = \"drake_sun001\";  fCR = 23.0;  iMinNum = 1; iMaxNum = 1; iWeight = 4; break; // Drake, Sun"]
["case ",143,":sChoice = \"","ashen002","\";  fCR = ",24,".0;  ","iMinNum = ",1,"; ","iMaxNum = ",1,"; ","iWeight = ",4,"; break; // ","Ashen, Evolved","case 143:sChoice = \"ashen002\";  fCR = 24.0;  iMinNum = 1; iMaxNum = 1; iWeight = 4; break; // Ashen, Evolved"]
["case ",144,":sChoice = \"","elem_sun_hg001","\";  fCR = ",24,".0;  ","iMinNum = ",1,"; ","iMaxNum = ",1,"; ","iWeight = ",4,"; break; // ","Sun Paraelemental, Huge","case 144:sChoice = \"elem_sun_hg001\";  fCR = 24.0;  iMinNum = 1; iMaxNum = 1; iWeight = 4; break; // Sun Paraelemental, Huge"]
["case ",145,":sChoice = \"","elem_air_hg001","\";  fCR = ",25,".0;  ","iMinNum = ",1,"; ","iMaxNum = ",1,"; ","iWeight = ",4,"; break; // ","[AR] Air Elemental, Huge","case 145:sChoice = \"elem_air_hg001\";  fCR = 25.0;  iMinNum = 1; iMaxNum = 1; iWeight = 4; break; // [AR] Air Elemental, Huge"]
["case ",146,":sChoice = \"","ds_obretriever02","\";  fCR = ",27,".0;  ","iMinNum = ",1,"; ","iMaxNum = ",1,"; ","iWeight = ",4,"; break; // ","Obsidian Retriever, Greater","case 146:sChoice = \"ds_obretriever02\";  fCR = 27.0;  iMinNum = 1; iMaxNum = 1; iWeight = 4; break; // Obsidian Retriever, Greater"]
["case ",147,":sChoice = \"","ds_claygolem003","\";  fCR = ",28,".0;  ","iMinNum = ",1,"; ","iMaxNum = ",1,"; ","iWeight = ",4,"; break; // ","Golem: Clay, Huge","case 147:sChoice = \"ds_claygolem003\";  fCR = 28.0;  iMinNum = 1; iMaxNum = 1; iWeight = 4; break; // Golem: Clay, Huge"]
["case ",148,":sChoice = \"","ds_ntmrbeast001","\";  fCR = ",32,".0;  ","iMinNum = ",1,"; ","iMaxNum = ",1,"; ","iWeight = ",4,"; break; // ","Nightmare Beast","case 148:sChoice = \"ds_ntmrbeast001\";  fCR = 32.0;  iMinNum = 1; iMaxNum = 1; iWeight = 4; break; // Nightmare Beast"]
["case ",149,":sChoice = \"","elem_sun_gr001","\";  fCR = ",32,".0;  ","iMinNum = ",1,"; ","iMaxNum = ",1,"; ","iWeight = ",4,"; break; // ","Sun Paraelemental, Greater","case 149:sChoice = \"elem_sun_gr001\";  fCR = 32.0;  iMinNum = 1; iMaxNum = 1; iWeight = 4; break; // Sun Paraelemental, Greater"]
["case ",150,":sChoice = \"","elem_air_gr001","\";  fCR = ",33,".0;  ","iMinNum = ",1,"; ","iMaxNum = ",1,"; ","iWeight = ",4,"; break; // ","[AR] Air Elemental, Greater","case 150:sChoice = \"elem_air_gr001\";  fCR = 33.0;  iMinNum = 1; iMaxNum = 1; iWeight = 4; break; // [AR] Air Elemental, Greater"]
["case ",151,":sChoice = \"","athasianbear002","\";  fCR = ",34,".0;  ","iMinNum = ",1,"; ","iMaxNum = ",2,"; ","iWeight = ",4,"; break; // ","Bear, Athasian - Greater","case 151:sChoice = \"athasianbear002\";  fCR = 34.0;  iMinNum = 1; iMaxNum = 2; iWeight = 4; break; // Bear, Athasian - Greater"]
["case ",152,":sChoice = \"","elem_sun_el001","\";  fCR = ",36,".0;  ","iMinNum = ",1,"; ","iMaxNum = ",1,"; ","iWeight = ",4,"; break; // ","Sun Paraelemental, Elder","case 152:sChoice = \"elem_sun_el001\";  fCR = 36.0;  iMinNum = 1; iMaxNum = 1; iWeight = 4; break; // Sun Paraelemental, Elder"]
["case ",153,":sChoice = \"","ar_aerservant002","\";  fCR = ",37,".0;  ","iMinNum = ",1,"; ","iMaxNum = ",1,"; ","iWeight = ",4,"; break; // ","Aerial Servant, Large","case 153:sChoice = \"ar_aerservant002\";  fCR = 37.0;  iMinNum = 1; iMaxNum = 1; iWeight = 4; break; // Aerial Servant, Large"]
["case ",154,":sChoice = \"","elem_air_el001","\";  fCR = ",37,".0;  ","iMinNum = ",1,"; ","iMaxNum = ",1,"; ","iWeight = ",4,"; break; // ","[AR] Air Elemental, Elder","case 154:sChoice = \"elem_air_el001\";  fCR = 37.0;  iMinNum = 1; iMaxNum = 1; iWeight = 4; break; // [AR] Air Elemental, Elder"]
["case ",155,":sChoice = \"","ds_gargsnake001","\";  fCR = ",45,".0;  ","iMinNum = ",1,"; ","iMaxNum = ",1,"; ","iWeight = ",4,"; break; // ","Snake, Gargantua","case 155:sChoice = \"ds_gargsnake001\";  fCR = 45.0;  iMinNum = 1; iMaxNum = 1; iWeight = 4; break; // Snake, Gargantua"]
["case ",156,":sChoice = \"","prismasaurus001","\";  fCR = ",52,".0;  ","iMinNum = ",1,"; ","iMaxNum = ",2,"; ","iWeight = ",4,"; break; // ","Prismasaurus","case 156:sChoice = \"prismasaurus001\";  fCR = 52.0;  iMinNum = 1; iMaxNum = 2; iWeight = 4; break; // Prismasaurus"]
["case ",157,":sChoice = \"","elem_air_pr001","\";  fCR = ",109,".0;  ","iMinNum = ",1,"; ","iMaxNum = ",1,"; ","iWeight = ",4,"; break; // ","Air Elemental, Primal","case 157:sChoice = \"elem_air_pr001\";  fCR = 109.0;  iMinNum = 1; iMaxNum = 1; iWeight = 4; break; // Air Elemental, Primal"]

{"sheet":"Desert - Night","index":2,"n_rows":117,"n_cols":22,"rows_kept":117}
["Case","#","SpawnVar","RezRef","CR Var","CR",null,"iMinNum","Min",null,"iMaxNum","Max",null,"iWeight",null,null,"Name",null,"Frequency",null,"HD"]
["case ",0,":sChoice = \"","ar_rat001","\";  fCR = ",0.15,";  ","iMinNum = ",10,"; ","iMaxNum = ",50,"; ","iWeight = ",16,"; break; // ","Rat, Common"," || FQ: ","Common"," || HD: ",1,{"$f":"CONCATENATE(A2, B2, C2, D2, E2,F2,G2,H2,I2,J2,K2,L2,M2,N2,O2,P2,Q2, R2, S2, T2, U2)","v":"case 0:sChoice = \"ar_rat001\";  fCR = 0.15;  iMinNum = 10; iMaxNum = 50; iWeight = 16; break; // Rat, Common || FQ: Common || HD: 1"}]
["case ",{"$f":"SUM(B2+1)","v":1},":sChoice = \"","ar_bat001","\";  fCR = ",0.33,";  ","iMinNum = ",10,"; ","iMaxNum = ",50,"; ","iWeight = ",16,"; break; // ","Bat"," || FQ: ","Common"," || HD: ",0.25,{"$f":"CONCATENATE(A3, B3, C3, D3, E3,F3,G3,H3,I3,J3,K3,L3,M3,N3,O3,P3,Q3, R3, S3, T3, U3)","v":"case 1:sChoice = \"ar_bat001\";  fCR = 0.33;  iMinNum = 10; iMaxNum = 50; iWeight = 16; break; // Bat || FQ: Common || HD: 0.25"}]
["case ",{"$f":"SUM(B3+1)","v":2},":sChoice = \"","ds_jankx001","\";  fCR = ",0.5,";  ","iMinNum = ",1,"; ","iMaxNum = ",50,"; ","iWeight = ",16,"; break; // ","Jankx"," || FQ: ","Common"," || HD: ",1,"case 2:sChoice = \"ds_jankx001\";  fCR = 0.5;  iMinNum = 1; iMaxNum = 50; iWeight = 16; break; // Jankx || FQ: Common || HD: 1"]
["case ",3,":sChoice = \"","monst_scorp001","\";  fCR = ",0.5,";  ","iMinNum = ",8,"; ","iMaxNum = ",16,"; ","iWeight = ",16,"; break; // ","Monstrous Scorpion, Tiny"," || FQ: ","Common"," || HD: ",0.5,"case 3:sChoice = \"monst_scorp001\";  fCR = 0.5;  iMinNum = 8; iMaxNum = 16; iWeight = 16; break; // Monstrous Scorpion, Tiny || FQ: Common || HD: 0.5"]
["case ",4,":sChoice = \"","monst_scorp002","\";  fCR = ",1,".0;  ","iMinNum = ",2,"; ","iMaxNum = ",11,"; ","iWeight = ",16,"; break; // ","Monstrous Scorpion, Small"," || FQ: ","Common"," || HD: ",1,"case 4:sChoice = \"monst_scorp002\";  fCR = 1.0;  iMinNum = 2; iMaxNum = 11; iWeight = 16; break; // Monstrous Scorpion, Small || FQ: Common || HD: 1"]
["case ",5,":sChoice = \"","ds_ratdire001","\";  fCR = ",1,".0;  ","iMinNum = ",11,"; ","iMaxNum = ",20,"; ","iWeight = ",16,"; break; // ","Rat: Dire"," || FQ: ","Common"," || HD: ",1,"case 5:sChoice = \"ds_ratdire001\";  fCR = 1.0;  iMinNum = 11; iMaxNum = 20; iWeight = 16; break; // Rat: Dire || FQ: Common || HD: 1"]
["case ",6,":sChoice = \"","ds_shaqat001","\";  fCR = ",1,".0;  ","iMinNum = ",2,"; ","iMaxNum = ",4,"; ","iWeight = ",4,"; break; // ","Beetle: Shaqat"," || FQ: ","Rare"," || HD: ",1,"case 6:sChoice = \"ds_shaqat001\";  fCR = 1.0;  iMinNum = 2; iMaxNum = 4; iWeight = 4; break; // Beetle: Shaqat || FQ: Rare || HD: 1"]
["case ",7,":sChoice = \"","ds_rock_cactus01","\";  fCR = ",1,".0;  ","iMinNum = ",1,"; ","iMaxNum = ",10,"; ","iWeight = ",8,"; break; // ","Cactus: Rock"," || FQ: ","Uncommon"," || HD: ",2,"case 7:sChoice = \"ds_rock_cactus01\";  fCR = 1.0;  iMinNum = 1; iMaxNum = 10; iWeight = 8; break; // Cactus: Rock || FQ: Uncommon || HD: 2"]
["case ",8,":sChoice = \"","ds_psionocus001","\";  fCR = ",1,".0;  ","iMinNum = ",1,"; ","iMaxNum = ",1,"; ","iWeight = ",2,"; break; // ","Psionocus"," || FQ: ","Very Rare"," || HD: ",3,"case 8:sChoice = \"ds_psionocus001\";  fCR = 1.0;  iMinNum = 1; iMaxNum = 1; iWeight = 2; break; // Psionocus || FQ: Very Rare || HD: 3"]
["case ",9,":sChoice = \"","gold_scorp001","\";  fCR = ",2,".0;  ","iMinNum = ",1,"; ","iMaxNum = ",5,"; ","iWeight = ",16,"; break; // ","Gold Scorpion"," || FQ: ","Common"," || HD: ",2,"case 9:sChoice = \"gold_scorp001\";  fCR = 2.0;  iMinNum = 1; iMaxNum = 5; iWeight = 16; break; // Gold Scorpion || FQ: Common || HD: 2"]
["case ",10,":sChoice = \"","ds_jozhal001","\";  fCR = ",2,".0;  ","iMinNum = ",2,"; ","iMaxNum = ",12,"; ","iWeight = ",4,"; break; // ","Jozhal"," || FQ: ","Rare"," || HD: ",1,"case 10:sChoice = \"ds_jozhal001\";  fCR = 2.0;  iMinNum = 2; iMaxNum = 12; iWeight = 4; break; // Jozhal || FQ: Rare || HD: 1"]
["case ",11,":sChoice = \"","ds_elvenrope001","\";  fCR = ",2,".0;  ","iMinNum = ",1,"; ","iMaxNum = ",1,"; ","iWeight = ",8,"; break; // ","Cactus: Elven Rope"," || FQ: ","Uncommon"," || HD: ",4,"case 11:sChoice = \"ds_elvenrope001\";  fCR = 2.0;  iMinNum = 1; iMaxNum = 1; iWeight = 8; break; // Cactus: Elven Rope || FQ: Uncommon || HD: 4"]
["case ",12,":sChoice = \"","ds_jhakar001","\";  fCR = ",2,".0;  ","iMinNum = ",2,"; ","iMaxNum = ",10,"; ","iWeight = ",8,"; break; // ","Jhakar"," || FQ: ","Uncommon"," || HD: ",2,"case 12:sChoice = \"ds_jhakar001\";  fCR = 2.0;  iMinNum = 2; iMaxNum = 10; iWeight = 8; break; // Jhakar || FQ: Uncommon || HD: 2"]
["case ",13,":sChoice = \"","monst_scorp003","\";  fCR = ",2,".0;  ","iMinNum = ",1,"; ","iMaxNum = ",5,"; ","iWeight = ",8,"; break; // ","Monstrous Scorpion, Medium"," || FQ: ","Uncommon"," || HD: ",2,"case 13:sChoice = \"monst_scorp003\";  fCR = 2.0;  iMinNum = 1; iMaxNum = 5; iWeight = 8; break; // Monstrous Scorpion, Medium || FQ: Uncommon || HD: 2"]
["case ",14,":sChoice = \"","ar_kreen_001","\";  fCR = ",2,".0;  ","iMinNum = ",1,"; ","iMaxNum = ",1,"; ","iWeight = ",8,"; break; // ","Thri-kreen, Common"," || FQ: ","Uncommon"," || HD: ",2,"case 14:sChoice = \"ar_kreen_001\";  fCR = 2.0;  iMinNum = 1; iMaxNum = 1; iWeight = 8; break; // Thri-kreen, Common || FQ: Uncommon || HD: 2"]
["case ",15,":sChoice = \"","wildmul001","\";  fCR = ",3,".0;  ","iMinNum = ",2,"; ","iMaxNum = ",7,"; ","iWeight = ",16,"; break; // ","Mul, Wild - Battleaxe"," || FQ: ","Common"," || HD: ",3,"case 15:sChoice = \"wildmul001\";  fCR = 3.0;  iMinNum = 2; iMaxNum = 7; iWeight = 16; break; // Mul, Wild - Battleaxe || FQ: Common || HD: 3"]
["case ",16,":sChoice = \"","ar_shadowrat001","\";  fCR = ",3,".0;  ","iMinNum = ",6,"; ","iMaxNum = ","2-","; ","iWeight = ",4,"; break; // ","Shadow Rat, Common"," || FQ: ","Rare"," || HD: ",1,"case 16:sChoice = \"ar_shadowrat001\";  fCR = 3.0;  iMinNum = 6; iMaxNum = 2-; iWeight = 4; break; // Shadow Rat, Common || FQ: Rare || HD: 1"]
["case ",17,":sChoice = \"","ds_wezer002","\";  fCR = ",3,".0;  ","iMinNum = ",1,"; ","iMaxNum = ",10,"; ","iWeight = ",4,"; break; // ","Wezer: Soldier"," || FQ: ","Rare"," || HD: ",2,"case 17:sChoice = \"ds_wezer002\";  fCR = 3.0;  iMinNum = 1; iMaxNum = 10; iWeight = 4; break; // Wezer: Soldier || FQ: Rare || HD: 2"]
["case ",18,":sChoice = \"","ds_wezer001","\";  fCR = ",3,".0;  ","iMinNum = ",1,"; ","iMaxNum = ",50,"; ","iWeight = ",4,"; break; // ","Wezer: Worker"," || FQ: ","Rare"," || HD: ",2,"case 18:sChoice = \"ds_wezer001\";  fCR = 3.0;  iMinNum = 1; iMaxNum = 50; iWeight = 4; break; // Wezer: Worker || FQ: Rare || HD: 2"]
["case ",19,":sChoice = \"","anakore1","\";  fCR = ",3,".0;  ","iMinNum = ",2,"; ","iMaxNum = ",12,"; ","iWeight = ",8,"; break; // ","Anakore"," || FQ: ","Uncommon"," || HD: ",3,"case 19:sChoice = \"anakore1\";  fCR = 3.0;  iMinNum = 2; iMaxNum = 12; iWeight = 8; break; // Anakore || FQ: Uncommon || HD: 3"]
["case ",20,":sChoice = \"","antloid002","\";  fCR = ",3,".0;  ","iMinNum = ",1,"; ","iMaxNum = ",50,"; ","iWeight = ",8,"; break; // ","Antloid Worker"," || FQ: ","Uncommon"," || HD: ",3,"case 20:sChoice = \"antloid002\";  fCR = 3.0;  iMinNum = 1; iMaxNum = 50; iWeight = 8; break; // Antloid Worker || FQ: Uncommon || HD: 3"]
["case ",21,":sChoice = \"","ar_c_belgoi001","\";  fCR = ",3,".0;  ","iMinNum = ",1,"; ","iMaxNum = ",10,"; ","iWeight = ",8,"; break; // ","Belgoi, Common"," || FQ: ","Uncommon"," || HD: ",5,"case 21:sChoice = \"ar_c_belgoi001\";  fCR = 3.0;  iMinNum = 1; iMaxNum = 10; iWeight = 8; break; // Belgoi, Common || FQ: Uncommon || HD: 5"]
["case ",22,":sChoice = \"","direrat_002","\";  fCR = ",3,".0;  ","iMinNum = ",1,"; ","iMaxNum = ",4,"; ","iWeight = ",8,"; break; // ","Rat, Dire - Greater"," || FQ: ","Uncommon"," || HD: ",3,"case 22:sChoice = \"direrat_002\";  fCR = 3.0;  iMinNum = 1; iMaxNum = 4; iWeight = 8; break; // Rat, Dire - Greater || FQ: Uncommon || HD: 3"]
["case ",23,":sChoice = \"","slig002","\";  fCR = ",3,".0;  ","iMinNum = ",3,"; ","iMaxNum = ",15,"; ","iWeight = ",8,"; break; // ","Slig, Common"," || FQ: ","Uncommon"," || HD: ",4,"case 23:sChoice = \"slig002\";  fCR = 3.0;  iMinNum = 3; iMaxNum = 15; iWeight = 8; break; // Slig, Common || FQ: Uncommon || HD: 4"]
["case ",24,":sChoice = \"","tagster001","\";  fCR = ",3,".0;  ","iMinNum = ",1,"; ","iMaxNum = ",1,"; ","iWeight = ",8,"; break; // ","Tagster"," || FQ: ","Uncommon"," || HD: ",2,"case 24:sChoice = \"tagster001\";  fCR = 3.0;  iMinNum = 1; iMaxNum = 1; iWeight = 8; break; // Tagster || FQ: Uncommon || HD: 2"]
["case ",25,":sChoice = \"","ar_gulgslaver003","\";  fCR = ",3,".0;  ","iMinNum = ",1,"; ","iMaxNum = ",5,"; ","iWeight = ",2,"; break; // ","Gulgan Slaver - Half-elf"," || FQ: ","Very Rare"," || HD: ",4,"case 25:sChoice = \"ar_gulgslaver003\";  fCR = 3.0;  iMinNum = 1; iMaxNum = 5; iWeight = 2; break; // Gulgan Slaver - Half-elf || FQ: Very Rare || HD: 4"]
["case ",26,":sChoice = \"","ar_shadowrat002","\";  fCR = ",3,".0;  ","iMinNum = ",6,"; ","iMaxNum = ",11,"; ","iWeight = ",2,"; break; // ","Shadow Rat, Dire"," || FQ: ","Very Rare"," || HD: ",1,"case 26:sChoice = \"ar_shadowrat002\";  fCR = 3.0;  iMinNum = 6; iMaxNum = 11; iWeight = 2; break; // Shadow Rat, Dire || FQ: Very Rare || HD: 1"]
["case ",27,":sChoice = \"","elem_air_sm001","\";  fCR = ",4,".0;  ","iMinNum = ",1,"; ","iMaxNum = ",1,"; ","iWeight = ",4,"; break; // ","[AR] Air Elemental, Small"," || FQ: ","Rare"," || HD: ",2,"case 27:sChoice = \"elem_air_sm001\";  fCR = 4.0;  iMinNum = 1; iMaxNum = 1; iWeight = 4; break; // [AR] Air Elemental, Small || FQ: Rare || HD: 2"]
["case ",28,":sChoice = \"","ar_bat002","\";  fCR = ",4,".0;  ","iMinNum = ",2,"; ","iMaxNum = ",8,"; ","iWeight = ",4,"; break; // ","Bat, Dire"," || FQ: ","Rare"," || HD: ",4,"case 28:sChoice = \"ar_bat002\";  fCR = 4.0;  iMinNum = 2; iMaxNum = 8; iWeight = 4; break; // Bat, Dire || FQ: Rare || HD: 4"]
["case ",29,":sChoice = \"","ar_mepsteam001","\";  fCR = ",4,".0;  ","iMinNum = ",1,"; ","iMaxNum = ",12,"; ","iWeight = ",4,"; break; // ","Mephit, Steam"," || FQ: ","Rare"," || HD: ",3,"case 29:sChoice = \"ar_mepsteam001\";  fCR = 4.0;  iMinNum = 1; iMaxNum = 12; iWeight = 4; break; // Mephit, Steam || FQ: Rare || HD: 3"]
["case ",30,":sChoice = \"","dustdigger01","\";  fCR = ",4,".0;  ","iMinNum = ",1,"; ","iMaxNum = ",8,"; ","iWeight = ",8,"; break; // ","Dust Digger"," || FQ: ","Uncommon"," || HD: ",4,"case 30:sChoice = \"dustdigger01\";  fCR = 4.0;  iMinNum = 1; iMaxNum = 8; iWeight = 8; break; // Dust Digger || FQ: Uncommon || HD: 4"]
["case ",31,":sChoice = \"","sandhowler001","\";  fCR = ",4,".0;  ","iMinNum = ",2,"; ","iMaxNum = ",8,"; ","iWeight = ",8,"; break; // ","Sand Howler"," || FQ: ","Uncommon"," || HD: ",4,"case 31:sChoice = \"sandhowler001\";  fCR = 4.0;  iMinNum = 2; iMaxNum = 8; iWeight = 8; break; // Sand Howler || FQ: Uncommon || HD: 4"]
["case ",32,":sChoice = \"","ar_scrbeetle_001","\";  fCR = ",4,".0;  ","iMinNum = ",2,"; ","iMaxNum = ",8,"; ","iWeight = ",8,"; break; // ","Screamer Beetle"," || FQ: ","Uncommon"," || HD: ",3,"case 32:sChoice = \"ar_scrbeetle_001\";  fCR = 4.0;  iMinNum = 2; iMaxNum = 8; iWeight = 8; break; // Screamer Beetle || FQ: Uncommon || HD: 3"]
["case ",33,":sChoice = \"","ar_skyrossent001","\";  fCR = ",5,".0;  ","iMinNum = ",3,"; ","iMaxNum = ",8,"; ","iWeight = ",4,"; break; // ","Marble Sentinel, Skyros"," || FQ: ","Rare"," || HD: ",3,"case 33:sChoice = \"ar_skyrossent001\";  fCR = 5.0;  iMinNum = 3; iMaxNum = 8; iWeight = 4; break; // Marble Sentinel, Skyros || FQ: Rare || HD: 3"]
["case ",34,":sChoice = \"","ar_pakubrazi_001","\";  fCR = ",5,".0;  ","iMinNum = ",1,"; ","iMaxNum = ",1,"; ","iWeight = ",4,"; break; // ","Pakubrazi"," || FQ: ","Rare"," || HD: ",6,"case 34:sChoice = \"ar_pakubrazi_001\";  fCR = 5.0;  iMinNum = 1; iMaxNum = 1; iWeight = 4; break; // Pakubrazi || FQ: Rare || HD: 6"]
["case ",35,":sChoice = \"","direrat_003","\";  fCR = ",5,".0;  ","iMinNum = ",1,"; ","iMaxNum = ",1,"; ","iWeight = ",4,"; break; // ","Rat, Dire - Elder"," || FQ: ","Rare"," || HD: ",6,"case 35:sChoice = \"direrat_003\";  fCR = 5.0;  iMinNum = 1; iMaxNum = 1; iWeight = 4; break; // Rat, Dire - Elder || FQ: Rare || HD: 6"]
["case ",36,":sChoice = \"","tchowb_001","\";  fCR = ",5,".0;  ","iMinNum = ",1,"; ","iMaxNum = ",1,"; ","iWeight = ",4,"; break; // ","T'Chowb"," || FQ: ","Rare"," || HD: ",4,"case 36:sChoice = \"tchowb_001\";  fCR = 5.0;  iMinNum = 1; iMaxNum = 1; iWeight = 4; break; // T'Chowb || FQ: Rare || HD: 4"]
["case ",37,":sChoice = \"","ar_daggoran_001","\";  fCR = ",5,".0;  ","iMinNum = ",2,"; ","iMaxNum = ",8,"; ","iWeight = ",8,"; break; // ","Daggoran"," || FQ: ","Uncommon"," || HD: ",4,"case 37:sChoice = \"ar_daggoran_001\";  fCR = 5.0;  iMinNum = 2; iMaxNum = 8; iWeight = 8; break; // Daggoran || FQ: Uncommon || HD: 4"]
["case ",38,":sChoice = \"","magera_001","\";  fCR = ",5,".0;  ","iMinNum = ",2,"; ","iMaxNum = ",8,"; ","iWeight = ",8,"; break; // ","Magera"," || FQ: ","Uncommon"," || HD: ",6,"case 38:sChoice = \"magera_001\";  fCR = 5.0;  iMinNum = 2; iMaxNum = 8; iWeight = 8; break; // Magera || FQ: Uncommon || HD: 6"]
["case ",39,":sChoice = \"","ds_trin001","\";  fCR = ",5,".0;  ","iMinNum = ",1,"; ","iMaxNum = ",12,"; ","iWeight = ",8,"; break; // ","Trin"," || FQ: ","Uncommon"," || HD: ",5,"case 39:sChoice = \"ds_trin001\";  fCR = 5.0;  iMinNum = 1; iMaxNum = 12; iWeight = 8; break; // Trin || FQ: Uncommon || HD: 5"]
["case ",40,":sChoice = \"","ar_hellhound001","\";  fCR = ",5,".0;  ","iMinNum = ",2,"; ","iMaxNum = ",8,"; ","iWeight = ",2,"; break; // ","Hell Hound [AR]"," || FQ: ","Very Rare"," || HD: ",4,"case 40:sChoice = \"ar_hellhound001\";  fCR = 5.0;  iMinNum = 2; iMaxNum = 8; iWeight = 2; break; // Hell Hound [AR] || FQ: Very Rare || HD: 4"]
["case ",41,":sChoice = \"","ar_imp001","\";  fCR = ",5,".0;  ","iMinNum = ",1,"; ","iMaxNum = ",1,"; ","iWeight = ",2,"; break; // ","Imp [AR]"," || FQ: ","Very Rare"," || HD: ",3,"case 41:sChoice = \"ar_imp001\";  fCR = 5.0;  iMinNum = 1; iMaxNum = 1; iWeight = 2; break; // Imp [AR] || FQ: Very Rare || HD: 3"]
["case ",42,":sChoice = \"","antloid004","\";  fCR = ",6,".0;  ","iMinNum = ",1,"; ","iMaxNum = ",10,"; ","iWeight = ",4,"; break; // ","Antloid Dynamis"," || FQ: ","Rare"," || HD: ",4,"case 42:sChoice = \"antloid004\";  fCR = 6.0;  iMinNum = 1; iMaxNum = 10; iWeight = 4; break; // Antloid Dynamis || FQ: Rare || HD: 4"]
["case ",43,":sChoice = \"","ar_c_belgoi002","\";  fCR = ",6,".0;  ","iMinNum = ",1,"; ","iMaxNum = ",10,"; ","iWeight = ",4,"; break; // ","Belgoi, Raider"," || FQ: ","Rare"," || HD: ",10,"case 43:sChoice = \"ar_c_belgoi002\";  fCR = 6.0;  iMinNum = 1; iMaxNum = 10; iWeight = 4; break; // Belgoi, Raider || FQ: Rare || HD: 10"]
["case ",44,":sChoice = \"","ar_c_belgoi003","\";  fCR = ",6,".0;  ","iMinNum = ",1,"; ","iMaxNum = ",1,"; ","iWeight = ",4,"; break; // ","Belgoi, Scout"," || FQ: ","Rare"," || HD: ",10,"case 44:sChoice = \"ar_c_belgoi003\";  fCR = 6.0;  iMinNum = 1; iMaxNum = 1; iWeight = 4; break; // Belgoi, Scout || FQ: Rare || HD: 10"]
["case ",45,":sChoice = \"","ar_wolfspider001","\";  fCR = ",6,".0;  ","iMinNum = ",2,"; ","iMaxNum = ",10,"; ","iWeight = ",4,"; break; // ","Wolf-spider"," || FQ: ","Rare"," || HD: ",6,"case 45:sChoice = \"ar_wolfspider001\";  fCR = 6.0;  iMinNum = 2; iMaxNum = 10; iWeight = 4; break; // Wolf-spider || FQ: Rare || HD: 6"]
["case ",46,":sChoice = \"","monst_scorp004","\";  fCR = ",6,".0;  ","iMinNum = ",1,"; ","iMaxNum = ",5,"; ","iWeight = ",8,"; break; // ","Monstrous Scorpion, Large"," || FQ: ","Uncommon"," || HD: ",5,"case 46:sChoice = \"monst_scorp004\";  fCR = 6.0;  iMinNum = 1; iMaxNum = 5; iWeight = 8; break; // Monstrous Scorpion, Large || FQ: Uncommon || HD: 5"]
["case ",47,":sChoice = \"","tembo001","\";  fCR = ",6,".0;  ","iMinNum = ",1,"; ","iMaxNum = ",6,"; ","iWeight = ",8,"; break; // ","Tembo"," || FQ: ","Uncommon"," || HD: ",4,"case 47:sChoice = \"tembo001\";  fCR = 6.0;  iMinNum = 1; iMaxNum = 6; iWeight = 8; break; // Tembo || FQ: Uncommon || HD: 4"]
["case ",48,":sChoice = \"","dunebandit_001","\";  fCR = ",6,".0;  ","iMinNum = ",1,"; ","iMaxNum = ",8,"; ","iWeight = ",2,"; break; // ","Dune Bandit, Mul - Longsword"," || FQ: ","Very Rare"," || HD: ",6,"case 48:sChoice = \"dunebandit_001\";  fCR = 6.0;  iMinNum = 1; iMaxNum = 8; iWeight = 2; break; // Dune Bandit, Mul - Longsword || FQ: Very Rare || HD: 6"]
["case ",49,":sChoice = \"","elem_air_md001","\";  fCR = ",7,".0;  ","iMinNum = ",1,"; ","iMaxNum = ",1,"; ","iWeight = ",4,"; break; // ","[AR] Air Elemental, Medium"," || FQ: ","Rare"," || HD: ",4,"case 49:sChoice = \"elem_air_md001\";  fCR = 7.0;  iMinNum = 1; iMaxNum = 1; iWeight = 4; break; // [AR] Air Elemental, Medium || FQ: Rare || HD: 4"]
["case ",50,":sChoice = \"","ar_defiler_001","\";  fCR = ",7,".0;  ","iMinNum = ",1,"; ","iMaxNum = ",5,"; ","iWeight = ",4,"; break; // ","Defiler, Apprentice"," || FQ: ","Rare"," || HD: ",8,"case 50:sChoice = \"ar_defiler_001\";  fCR = 7.0;  iMinNum = 1; iMaxNum = 5; iWeight = 4; break; // Defiler, Apprentice || FQ: Rare || HD: 8"]
["case ",51,":sChoice = \"","ds_fireeel001","\";  fCR = ",7,".0;  ","iMinNum = ",1,"; ","iMaxNum = ",2,"; ","iWeight = ",4,"; break; // ","Eel, Fire"," || FQ: ","Rare"," || HD: ",8,"case 51:sChoice = \"ds_fireeel001\";  fCR = 7.0;  iMinNum = 1; iMaxNum = 2; iWeight = 4; break; // Eel, Fire || FQ: Rare || HD: 8"]
["case ",52,":sChoice = \"","shardspider001","\";  fCR = ",7,".0;  ","iMinNum = ",1,"; ","iMaxNum = ",2,"; ","iWeight = ",4,"; break; // ","Shard Spider"," || FQ: ","Rare"," || HD: ",6,"case 52:sChoice = \"shardspider001\";  fCR = 7.0;  iMinNum = 1; iMaxNum = 2; iWeight = 4; break; // Shard Spider || FQ: Rare || HD: 6"]
["case ",53,":sChoice = \"","antloid003","\";  fCR = ",7,".0;  ","iMinNum = ",2,"; ","iMaxNum = ",10,"; ","iWeight = ",8,"; break; // ","Antloid Soldier"," || FQ: ","Uncommon"," || HD: ",6,"case 53:sChoice = \"antloid003\";  fCR = 7.0;  iMinNum = 2; iMaxNum = 10; iWeight = 8; break; // Antloid Soldier || FQ: Uncommon || HD: 6"]
["case ",54,":sChoice = \"","dunebandit_002","\";  fCR = ",7,".0;  ","iMinNum = ",1,"; ","iMaxNum = ",5,"; ","iWeight = ",8,"; break; // ","Dune Bandit - Longbow"," || FQ: ","Uncommon"," || HD: ",7,"case 54:sChoice = \"dunebandit_002\";  fCR = 7.0;  iMinNum = 1; iMaxNum = 5; iWeight = 8; break; // Dune Bandit - Longbow || FQ: Uncommon || HD: 7"]
["case ",55,":sChoice = \"","puddingdun001","\";  fCR = ",7,".0;  ","iMinNum = ",1,"; ","iMaxNum = ",1,"; ","iWeight = ",8,"; break; // ","Pudding, Dun"," || FQ: ","Uncommon"," || HD: ",8,"case 55:sChoice = \"puddingdun001\";  fCR = 7.0;  iMinNum = 1; iMaxNum = 1; iWeight = 8; break; // Pudding, Dun || FQ: Uncommon || HD: 8"]
["case ",56,":sChoice = \"","ruve001","\";  fCR = ",7,".0;  ","iMinNum = ",1,"; ","iMaxNum = ",8,"; ","iWeight = ",8,"; break; // ","Ruve"," || FQ: ","Uncommon"," || HD: ",4,"case 56:sChoice = \"ruve001\";  fCR = 7.0;  iMinNum = 1; iMaxNum = 8; iWeight = 8; break; // Ruve || FQ: Uncommon || HD: 4"]
["case ",57,":sChoice = \"","necrophidius","\";  fCR = ",7,".0;  ","iMinNum = ",1,"; ","iMaxNum = ",5,"; ","iWeight = ",2,"; break; // ","Necrophidius"," || FQ: ","Very Rare"," || HD: ",6,"case 57:sChoice = \"necrophidius\";  fCR = 7.0;  iMinNum = 1; iMaxNum = 5; iWeight = 2; break; // Necrophidius || FQ: Very Rare || HD: 6"]
["case ",58,":sChoice = \"","giantshadow001","\";  fCR = ",7,".0;  ","iMinNum = ",2,"; ","iMaxNum = ",8,"; ","iWeight = ",2,"; break; // ","Giant, Shadow"," || FQ: ","Very Rare"," || HD: ",7,"case 58:sChoice = \"giantshadow001\";  fCR = 7.0;  iMinNum = 2; iMaxNum = 8; iWeight = 2; break; // Giant, Shadow || FQ: Very Rare || HD: 7"]
["case ",59,":sChoice = \"","ar_onyxsent001","\";  fCR = ",8,".0;  ","iMinNum = ",3,"; ","iMaxNum = ",6,"; ","iWeight = ",4,"; break; // ","Marble Sentinel, Onyx"," || FQ: ","Rare"," || HD: ",6,"case 59:sChoice = \"ar_onyxsent001\";  fCR = 8.0;  iMinNum = 3; iMaxNum = 6; iWeight = 4; break; // Marble Sentinel, Onyx || FQ: Rare || HD: 6"]
["case ",60,":sChoice = \"","ds_brohg001","\";  fCR = ",8,".0;  ","iMinNum = ",1,"; ","iMaxNum = ",12,"; ","iWeight = ",8,"; break; // ","Giant: B'rohg, Common"," || FQ: ","Uncommon"," || HD: ",6,"case 60:sChoice = \"ds_brohg001\";  fCR = 8.0;  iMinNum = 1; iMaxNum = 12; iWeight = 8; break; // Giant: B'rohg, Common || FQ: Uncommon || HD: 6"]
["case ",61,":sChoice = \"","ar_dragonne001","\";  fCR = ",8,".0;  ","iMinNum = ",1,"; ","iMaxNum = ",10,"; ","iWeight = ",2,"; break; // ","Dragonne"," || FQ: ","Very Rare"," || HD: ",9,"case 61:sChoice = \"ar_dragonne001\";  fCR = 8.0;  iMinNum = 1; iMaxNum = 10; iWeight = 2; break; // Dragonne || FQ: Very Rare || HD: 9"]
["case ",62,":sChoice = \"","ar_firenymph001","\";  fCR = ",8,".0;  ","iMinNum = ",1,"; ","iMaxNum = ",1,"; ","iWeight = ",2,"; break; // ","Fire Nymph"," || FQ: ","Very Rare"," || HD: ",6,"case 62:sChoice = \"ar_firenymph001\";  fCR = 8.0;  iMinNum = 1; iMaxNum = 1; iWeight = 2; break; // Fire Nymph || FQ: Very Rare || HD: 6"]
["case ",63,":sChoice = \"","ds_psishadow001","\";  fCR = ",8,".0;  ","iMinNum = ",1,"; ","iMaxNum = ",1,"; ","iWeight = ",2,"; break; // ","Psi-Shadow"," || FQ: ","Very Rare"," || HD: ",6,"case 63:sChoice = \"ds_psishadow001\";  fCR = 8.0;  iMinNum = 1; iMaxNum = 1; iWeight = 2; break; // Psi-Shadow || FQ: Very Rare || HD: 6"]
["case ",64,":sChoice = \"","ar_goodtari_007","\";  fCR = ",8,".0;  ","iMinNum = ",1,"; ","iMaxNum = ",1,"; ","iWeight = ",2,"; break; // ","Tari, Priestess"," || FQ: ","Very Rare"," || HD: ",11,"case 64:sChoice = \"ar_goodtari_007\";  fCR = 8.0;  iMinNum = 1; iMaxNum = 1; iWeight = 2; break; // Tari, Priestess || FQ: Very Rare || HD: 11"]
["case ",65,":sChoice = \"","ar_saltdrake001","\";  fCR = ",9,".0;  ","iMinNum = ",1,"; ","iMaxNum = ",5,"; ","iWeight = ",4,"; break; // ","Drake, Salt "," || FQ: ","Rare"," || HD: ",11,{"$f":"CONCATENATE(A67, B67, C67, D67, E67,F67,G67,H67,I67,J67,K67,L67,M67,N67,O67,P67,Q67, R67, S67, T67, U67)","v":"case 65:sChoice = \"ar_saltdrake001\";  fCR = 9.0;  iMinNum = 1; iMaxNum = 5; iWeight = 4; break; // Drake, Salt  || FQ: Rare || HD: 11"}]
["case ",{"$f":"SUM(B67+1)","v":66},":sChoice = \"","idfiend_001","\";  fCR = ",9,".0;  ","iMinNum = ",1,"; ","iMaxNum = ",1,"; ","iWeight = ",4,"; break; // ","Id Fiend"," || FQ: ","Rare"," || HD: ",7,"case 66:sChoice = \"idfiend_001\";  fCR = 9.0;  iMinNum = 1; iMaxNum = 1; iWeight = 4; break; // Id Fiend || FQ: Rare || HD: 7"]
["case ",67,":sChoice = \"","ruve002","\";  fCR = ",9,".0;  ","iMinNum = ",1,"; ","iMaxNum = ",2,"; ","iWeight = ",4,"; break; // ","Ruve, Greater"," || FQ: ","Rare"," || HD: ",8,"case 67:sChoice = \"ruve002\";  fCR = 9.0;  iMinNum = 1; iMaxNum = 2; iWeight = 4; break; // Ruve, Greater || FQ: Rare || HD: 8"]
["case ",68,":sChoice = \"","tembo002","\";  fCR = ",9,".0;  ","iMinNum = ",1,"; ","iMaxNum = ",4,"; ","iWeight = ",4,"; break; // ","Tembo, Greater"," || FQ: ","Rare"," || HD: ",4,"case 68:sChoice = \"tembo002\";  fCR = 9.0;  iMinNum = 1; iMaxNum = 4; iWeight = 4; break; // Tembo, Greater || FQ: Rare || HD: 4"]
["case ",69,":sChoice = \"","ar_c_jathlagak","\";  fCR = ",9,".0;  ","iMinNum = ",3,"; ","iMaxNum = ",30,"; ","iWeight = ",8,"; break; // ","Jalath'gak"," || FQ: ","Uncommon"," || HD: ",8,"case 69:sChoice = \"ar_c_jathlagak\";  fCR = 9.0;  iMinNum = 3; iMaxNum = 30; iWeight = 8; break; // Jalath'gak || FQ: Uncommon || HD: 8"]
["case ",70,":sChoice = \"","ar_defiler_002","\";  fCR = ",9,".0;  ","iMinNum = ",1,"; ","iMaxNum = ",3,"; ","iWeight = ",2,"; break; // ","Defiler, Journeyman"," || FQ: ","Very Rare"," || HD: ",10,"case 70:sChoice = \"ar_defiler_002\";  fCR = 9.0;  iMinNum = 1; iMaxNum = 3; iWeight = 2; break; // Defiler, Journeyman || FQ: Very Rare || HD: 10"]
["case ",71,":sChoice = \"","ar_invstalk001","\";  fCR = ",9,".0;  ","iMinNum = ",1,"; ","iMaxNum = ",1,"; ","iWeight = ",2,"; break; // ","Invisible Stalker [AR]"," || FQ: ","Very Rare"," || HD: ",8,"case 71:sChoice = \"ar_invstalk001\";  fCR = 9.0;  iMinNum = 1; iMaxNum = 1; iWeight = 2; break; // Invisible Stalker [AR] || FQ: Very Rare || HD: 8"]
["case ",72,":sChoice = \"","ar_goodtari_005","\";  fCR = ",9,".0;  ","iMinNum = ",1,"; ","iMaxNum = ",4,"; ","iWeight = ",2,"; break; // ","Tari, Trader"," || FQ: ","Very Rare"," || HD: ",11,"case 72:sChoice = \"ar_goodtari_005\";  fCR = 9.0;  iMinNum = 1; iMaxNum = 4; iWeight = 2; break; // Tari, Trader || FQ: Very Rare || HD: 11"]
["case ",73,":sChoice = \"","ds_spinewyrm001","\";  fCR = ",10,".0;  ","iMinNum = ",1,"; ","iMaxNum = ",1,"; ","iWeight = ",8,"; break; // ","Spinewyrm"," || FQ: ","Uncommon"," || HD: ",8,"case 73:sChoice = \"ds_spinewyrm001\";  fCR = 10.0;  iMinNum = 1; iMaxNum = 1; iWeight = 8; break; // Spinewyrm || FQ: Uncommon || HD: 8"]
["case ",74,":sChoice = \"","ds_zik_trin_ak01","\";  fCR = ",10,".0;  ","iMinNum = ",1,"; ","iMaxNum = ",4,"; ","iWeight = ",2,"; break; // ","Zik-trin'ak"," || FQ: ","Very Rare"," || HD: ",8,"case 74:sChoice = \"ds_zik_trin_ak01\";  fCR = 10.0;  iMinNum = 1; iMaxNum = 4; iWeight = 2; break; // Zik-trin'ak || FQ: Very Rare || HD: 8"]
["case ",75,":sChoice = \"","ds_siltweird001","\";  fCR = ",11,".0;  ","iMinNum = ",1,"; ","iMaxNum = ",1,"; ","iWeight = ",4,"; break; // ","Elemental Weird: Silt"," || FQ: ","Rare"," || HD: ",8,"case 75:sChoice = \"ds_siltweird001\";  fCR = 11.0;  iMinNum = 1; iMaxNum = 1; iWeight = 4; break; // Elemental Weird: Silt || FQ: Rare || HD: 8"]
["case ",76,":sChoice = \"","elvenraider002","\";  fCR = ",11,".0;  ","iMinNum = ",1,"; ","iMaxNum = ",1,"; ","iWeight = ",4,"; break; // ","Elven Raider Defiler"," || FQ: ","Rare"," || HD: ",12,"case 76:sChoice = \"elvenraider002\";  fCR = 11.0;  iMinNum = 1; iMaxNum = 1; iWeight = 4; break; // Elven Raider Defiler || FQ: Rare || HD: 12"]
["case ",77,":sChoice = \"","magera_002","\";  fCR = ",11,".0;  ","iMinNum = ",2,"; ","iMaxNum = ",8,"; ","iWeight = ",4,"; break; // ","Magera Fighter"," || FQ: ","Rare"," || HD: ",10,"case 77:sChoice = \"magera_002\";  fCR = 11.0;  iMinNum = 2; iMaxNum = 8; iWeight = 4; break; // Magera Fighter || FQ: Rare || HD: 10"]
["case ",78,":sChoice = \"","ds_styr001","\";  fCR = ",11,".0;  ","iMinNum = ",1,"; ","iMaxNum = ",1,"; ","iWeight = ",4,"; break; // ","Styr"," || FQ: ","Rare"," || HD: ",14,"case 78:sChoice = \"ds_styr001\";  fCR = 11.0;  iMinNum = 1; iMaxNum = 1; iWeight = 4; break; // Styr || FQ: Rare || HD: 14"]
["case ",79,":sChoice = \"","barbscorpion_001","\";  fCR = ",11,".0;  ","iMinNum = ",2,"; ","iMaxNum = ",5,"; ","iWeight = ",8,"; break; // ","Barbed Scorpion"," || FQ: ","Uncommon"," || HD: ",9,"case 79:sChoice = \"barbscorpion_001\";  fCR = 11.0;  iMinNum = 2; iMaxNum = 5; iWeight = 8; break; // Barbed Scorpion || FQ: Uncommon || HD: 9"]
["case ",80,":sChoice = \"","wildmul002","\";  fCR = ",11,".0;  ","iMinNum = ",2,"; ","iMaxNum = ",7,"; ","iWeight = ",8,"; break; // ","Mul, Wild - Dragon's Paw"," || FQ: ","Uncommon"," || HD: ",12,"case 80:sChoice = \"wildmul002\";  fCR = 11.0;  iMinNum = 2; iMaxNum = 7; iWeight = 8; break; // Mul, Wild - Dragon's Paw || FQ: Uncommon || HD: 12"]
["case ",81,":sChoice = \"","crystalspider001","\";  fCR = ",11,".0;  ","iMinNum = ",1,"; ","iMaxNum = ",1,"; ","iWeight = ",2,"; break; // ","Crystal Spider"," || FQ: ","Very Rare"," || HD: ",8,"case 81:sChoice = \"crystalspider001\";  fCR = 11.0;  iMinNum = 1; iMaxNum = 1; iWeight = 2; break; // Crystal Spider || FQ: Very Rare || HD: 8"]
["case ",82,":sChoice = \"","ar_dragonne002","\";  fCR = ",11,".0;  ","iMinNum = ",2,"; ","iMaxNum = ",10,"; ","iWeight = ",2,"; break; // ","Dragonne, Greater"," || FQ: ","Very Rare"," || HD: ",12,"case 82:sChoice = \"ar_dragonne002\";  fCR = 11.0;  iMinNum = 2; iMaxNum = 10; iWeight = 2; break; // Dragonne, Greater || FQ: Very Rare || HD: 12"]
["case ",83,":sChoice = \"","ds_gaj_001","\";  fCR = ",11,".0;  ","iMinNum = ",1,"; ","iMaxNum = ",1,"; ","iWeight = ",2,"; break; // ","Gaj"," || FQ: ","Very Rare"," || HD: ",7,"case 83:sChoice = \"ds_gaj_001\";  fCR = 11.0;  iMinNum = 1; iMaxNum = 1; iWeight = 2; break; // Gaj || FQ: Very Rare || HD: 7"]
["case ",84,":sChoice = \"","monst_scorp005","\";  fCR = ",12,".0;  ","iMinNum = ",1,"; ","iMaxNum = ",5,"; ","iWeight = ",16,"; break; // ","Monstrous Scorpion, Huge"," || FQ: ","Common"," || HD: ",10,"case 84:sChoice = \"monst_scorp005\";  fCR = 12.0;  iMinNum = 1; iMaxNum = 5; iWeight = 16; break; // Monstrous Scorpion, Huge || FQ: Common || HD: 10"]
["case ",85,":sChoice = \"","ar_bloodsent001","\";  fCR = ",12,".0;  ","iMinNum = ",3,"; ","iMaxNum = ",5,"; ","iWeight = ",4,"; break; // ","Marble Sentinel, Bloodstone"," || FQ: ","Rare"," || HD: ",9,"case 85:sChoice = \"ar_bloodsent001\";  fCR = 12.0;  iMinNum = 3; iMaxNum = 5; iWeight = 4; break; // Marble Sentinel, Bloodstone || FQ: Rare || HD: 9"]
["case ",86,":sChoice = \"","ds_zik_trin_ta01","\";  fCR = ",12,".0;  ","iMinNum = ",1,"; ","iMaxNum = ",4,"; ","iWeight = ",2,"; break; // ","Zik-trin’ta"," || FQ: ","Very Rare"," || HD: ",7,"case 86:sChoice = \"ds_zik_trin_ta01\";  fCR = 12.0;  iMinNum = 1; iMaxNum = 4; iWeight = 2; break; // Zik-trin’ta || FQ: Very Rare || HD: 7"]
["case ",87,":sChoice = \"","elem_air_lg001","\";  fCR = ",13,".0;  ","iMinNum = ",1,"; ","iMaxNum = ",1,"; ","iWeight = ",4,"; break; // ","[AR] Air Elemental, Large"," || FQ: ","Rare"," || HD: ",8,"case 87:sChoice = \"elem_air_lg001\";  fCR = 13.0;  iMinNum = 1; iMaxNum = 1; iWeight = 4; break; // [AR] Air Elemental, Large || FQ: Rare || HD: 8"]
["case ",88,":sChoice = \"","ar_kreen_002","\";  fCR = ",13,".0;  ","iMinNum = ",1,"; ","iMaxNum = ",1,"; ","iWeight = ",4,"; break; // ","Thri-kreen, Ranger"," || FQ: ","Rare"," || HD: ",12,"case 88:sChoice = \"ar_kreen_002\";  fCR = 13.0;  iMinNum = 1; iMaxNum = 1; iWeight = 4; break; // Thri-kreen, Ranger || FQ: Rare || HD: 12"]
["case ",89,":sChoice = \"","ar_desmast_001","\";  fCR = ",13,".0;  ","iMinNum = ",1,"; ","iMaxNum = ",5,"; ","iWeight = ",8,"; break; // ","Mastyrial, Desert"," || FQ: ","Uncommon"," || HD: ",12,"case 89:sChoice = \"ar_desmast_001\";  fCR = 13.0;  iMinNum = 1; iMaxNum = 5; iWeight = 8; break; // Mastyrial, Desert || FQ: Uncommon || HD: 12"]
["case ",90,":sChoice = \"","ar_c_belgoi004","\";  fCR = ",14,".0;  ","iMinNum = ",1,"; ","iMaxNum = ",1,"; ","iWeight = ",4,"; break; // ","Belgoi, Flamewarder"," || FQ: ","Rare"," || HD: ",15,"case 90:sChoice = \"ar_c_belgoi004\";  fCR = 14.0;  iMinNum = 1; iMaxNum = 1; iWeight = 4; break; // Belgoi, Flamewarder || FQ: Rare || HD: 15"]
["case ",91,":sChoice = \"","ar_kreen_003","\";  fCR = ",14,".0;  ","iMinNum = ",1,"; ","iMaxNum = ",1,"; ","iWeight = ",4,"; break; // ","Thri-kreen, Druid"," || FQ: ","Rare"," || HD: ",12,"case 91:sChoice = \"ar_kreen_003\";  fCR = 14.0;  iMinNum = 1; iMaxNum = 1; iWeight = 4; break; // Thri-kreen, Druid || FQ: Rare || HD: 12"]
["case ",92,":sChoice = \"","ar_sout_001","\";  fCR = ",15,".0;  ","iMinNum = ",1,"; ","iMaxNum = ",1,"; ","iWeight = ",2,"; break; // ","So-Ut (Rampager)"," || FQ: ","Very Rare"," || HD: ",14,"case 92:sChoice = \"ar_sout_001\";  fCR = 15.0;  iMinNum = 1; iMaxNum = 1; iWeight = 2; break; // So-Ut (Rampager) || FQ: Very Rare || HD: 14"]
["case ",93,":sChoice = \"","ar_ebonsent001","\";  fCR = ",16,".0;  ","iMinNum = ",2,"; ","iMaxNum = ",4,"; ","iWeight = ",4,"; break; // ","Marble Sentinel, Ebon"," || FQ: ","Rare"," || HD: ",12,"case 93:sChoice = \"ar_ebonsent001\";  fCR = 16.0;  iMinNum = 2; iMaxNum = 4; iWeight = 4; break; // Marble Sentinel, Ebon || FQ: Rare || HD: 12"]
["case ",94,":sChoice = \"","drake_fire001","\";  fCR = ",16,".0;  ","iMinNum = ",1,"; ","iMaxNum = ",1,"; ","iWeight = ",2,"; break; // ","Drake, Fire"," || FQ: ","Very Rare"," || HD: ",20,"case 94:sChoice = \"drake_fire001\";  fCR = 16.0;  iMinNum = 1; iMaxNum = 1; iWeight = 2; break; // Drake, Fire || FQ: Very Rare || HD: 20"]
["case ",95,":sChoice = \"","drake_water001","\";  fCR = ",16,".0;  ","iMinNum = ",1,"; ","iMaxNum = ",1,"; ","iWeight = ",2,"; break; // ","Drake, Water"," || FQ: ","Very Rare"," || HD: ",20,"case 95:sChoice = \"drake_water001\";  fCR = 16.0;  iMinNum = 1; iMaxNum = 1; iWeight = 2; break; // Drake, Water || FQ: Very Rare || HD: 20"]
["case ",96,":sChoice = \"","ar_obsmino001","\";  fCR = ",16,".0;  ","iMinNum = ",1,"; ","iMaxNum = ",1,"; ","iWeight = ",2,"; break; // ","Obsidian Minotaur"," || FQ: ","Very Rare"," || HD: ",12,"case 96:sChoice = \"ar_obsmino001\";  fCR = 16.0;  iMinNum = 1; iMaxNum = 1; iWeight = 2; break; // Obsidian Minotaur || FQ: Very Rare || HD: 12"]
["case ",97,":sChoice = \"","wildmul003","\";  fCR = ",17,".0;  ","iMinNum = ",2,"; ","iMaxNum = ",7,"; ","iWeight = ",8,"; break; // ","Mul, Wild - Darts"," || FQ: ","Uncommon"," || HD: ",17,"case 97:sChoice = \"wildmul003\";  fCR = 17.0;  iMinNum = 2; iMaxNum = 7; iWeight = 8; break; // Mul, Wild - Darts || FQ: Uncommon || HD: 17"]
["case ",98,":sChoice = \"","ar_saltdrake002","\";  fCR = ",17,".0;  ","iMinNum = ",1,"; ","iMaxNum = ",1,"; ","iWeight = ",2,"; break; // ","Drake, Salt - Huge"," || FQ: ","Very Rare"," || HD: ",20,"case 98:sChoice = \"ar_saltdrake002\";  fCR = 17.0;  iMinNum = 1; iMaxNum = 1; iWeight = 2; break; // Drake, Salt - Huge || FQ: Very Rare || HD: 20"]
["case ",99,":sChoice = \"","ar_aerservant001","\";  fCR = ",18,".0;  ","iMinNum = ",1,"; ","iMaxNum = ",1,"; ","iWeight = ",4,"; break; // ","Aerial Servant"," || FQ: ","Rare"," || HD: ",16,"case 99:sChoice = \"ar_aerservant001\";  fCR = 18.0;  iMinNum = 1; iMaxNum = 1; iWeight = 4; break; // Aerial Servant || FQ: Rare || HD: 16"]
["case ",100,":sChoice = \"","drake_earth001","\";  fCR = ",19,".0;  ","iMinNum = ",1,"; ","iMaxNum = ",1,"; ","iWeight = ",2,"; break; // ","Drake, Earth"," || FQ: ","Very Rare"," || HD: ",25,"case 100:sChoice = \"drake_earth001\";  fCR = 19.0;  iMinNum = 1; iMaxNum = 1; iWeight = 2; break; // Drake, Earth || FQ: Very Rare || HD: 25"]
["case ",101,":sChoice = \"","ds_obretriever01","\";  fCR = ",19,".0;  ","iMinNum = ",1,"; ","iMaxNum = ",1,"; ","iWeight = ",2,"; break; // ","Obsidian Retriever"," || FQ: ","Very Rare"," || HD: ",12,"case 101:sChoice = \"ds_obretriever01\";  fCR = 19.0;  iMinNum = 1; iMaxNum = 1; iWeight = 2; break; // Obsidian Retriever || FQ: Very Rare || HD: 12"]
["case ",102,":sChoice = \"","ds_gr_fihyr001","\";  fCR = ",20,".0;  ","iMinNum = ",1,"; ","iMaxNum = ",1,"; ","iWeight = ",2,"; break; // ","Greater Fihyr"," || FQ: ","Very Rare"," || HD: ",16,"case 102:sChoice = \"ds_gr_fihyr001\";  fCR = 20.0;  iMinNum = 1; iMaxNum = 1; iWeight = 2; break; // Greater Fihyr || FQ: Very Rare || HD: 16"]
["case ",103,":sChoice = \"","ar_alabasent001","\";  fCR = ",21,".0;  ","iMinNum = ",1,"; ","iMaxNum = ",1,"; ","iWeight = ",2,"; break; // ","Marble Sentinel, Alabaster"," || FQ: ","Very Rare"," || HD: ",16,"case 103:sChoice = \"ar_alabasent001\";  fCR = 21.0;  iMinNum = 1; iMaxNum = 1; iWeight = 2; break; // Marble Sentinel, Alabaster || FQ: Very Rare || HD: 16"]
["case ",104,":sChoice = \"","monst_scorp006","\";  fCR = ",21,".0;  ","iMinNum = ",1,"; ","iMaxNum = ",1,"; ","iWeight = ",2,"; break; // ","Monstrous Scorpion, Gargantuan"," || FQ: ","Very Rare"," || HD: ",20,"case 104:sChoice = \"monst_scorp006\";  fCR = 21.0;  iMinNum = 1; iMaxNum = 1; iWeight = 2; break; // Monstrous Scorpion, Gargantuan || FQ: Very Rare || HD: 20"]
["case ",105,":sChoice = \"","crystalspider002","\";  fCR = ",22,".0;  ","iMinNum = ",1,"; ","iMaxNum = ",1,"; ","iWeight = ",2,"; break; // ","Crystal Spider, Greater"," || FQ: ","Very Rare"," || HD: ",17,"case 105:sChoice = \"crystalspider002\";  fCR = 22.0;  iMinNum = 1; iMaxNum = 1; iWeight = 2; break; // Crystal Spider, Greater || FQ: Very Rare || HD: 17"]
["case ",106,":sChoice = \"","drake_air001","\";  fCR = ",23,".0;  ","iMinNum = ",1,"; ","iMaxNum = ",1,"; ","iWeight = ",2,"; break; // ","Drake, Air"," || FQ: ","Very Rare"," || HD: ",25,"case 106:sChoice = \"drake_air001\";  fCR = 23.0;  iMinNum = 1; iMaxNum = 1; iWeight = 2; break; // Drake, Air || FQ: Very Rare || HD: 25"]
["case ",107,":sChoice = \"","drake_sun001","\";  fCR = ",23,".0;  ","iMinNum = ",1,"; ","iMaxNum = ",1,"; ","iWeight = ",2,"; break; // ","Drake, Sun"," || FQ: ","Very Rare"," || HD: ",20,"case 107:sChoice = \"drake_sun001\";  fCR = 23.0;  iMinNum = 1; iMaxNum = 1; iWeight = 2; break; // Drake, Sun || FQ: Very Rare || HD: 20"]
["case ",108,":sChoice = \"","elem_air_hg001","\";  fCR = ",25,".0;  ","iMinNum = ",1,"; ","iMaxNum = ",1,"; ","iWeight = ",4,"; break; // ","[AR] Air Elemental, Huge"," || FQ: ","Rare"," || HD: ",16,"case 108:sChoice = \"elem_air_hg001\";  fCR = 25.0;  iMinNum = 1; iMaxNum = 1; iWeight = 4; break; // [AR] Air Elemental, Huge || FQ: Rare || HD: 16"]
["case ",109,":sChoice = \"","ds_obretriever02","\";  fCR = ",27,".0;  ","iMinNum = ",1,"; ","iMaxNum = ",1,"; ","iWeight = ",2,"; break; // ","Obsidian Retriever, Greater"," || FQ: ","Very Rare"," || HD: ",22,"case 109:sChoice = \"ds_obretriever02\";  fCR = 27.0;  iMinNum = 1; iMaxNum = 1; iWeight = 2; break; // Obsidian Retriever, Greater || FQ: Very Rare || HD: 22"]
["case ",110,":sChoice = \"","ds_gr_fihyr002","\";  fCR = ",28,".0;  ","iMinNum = ",1,"; ","iMaxNum = ",1,"; ","iWeight = ",2,"; break; // ","Greater Fihyr, Advanced"," || FQ: ","Very Rare"," || HD: ",25,"case 110:sChoice = \"ds_gr_fihyr002\";  fCR = 28.0;  iMinNum = 1; iMaxNum = 1; iWeight = 2; break; // Greater Fihyr, Advanced || FQ: Very Rare || HD: 25"]
["case ",111,":sChoice = \"","ds_ntmrbeast001","\";  fCR = ",32,".0;  ","iMinNum = ",1,"; ","iMaxNum = ",1,"; ","iWeight = ",2,"; break; // ","Nightmare Beast"," || FQ: ","Very Rare"," || HD: ",30,"case 111:sChoice = \"ds_ntmrbeast001\";  fCR = 32.0;  iMinNum = 1; iMaxNum = 1; iWeight = 2; break; // Nightmare Beast || FQ: Very Rare || HD: 30"]
["case ",112,":sChoice = \"","elem_air_gr001","\";  fCR = ",33,".0;  ","iMinNum = ",1,"; ","iMaxNum = ",1,"; ","iWeight = ",4,"; break; // ","[AR] Air Elemental, Greater"," || FQ: ","Rare"," || HD: ",21,"case 112:sChoice = \"elem_air_gr001\";  fCR = 33.0;  iMinNum = 1; iMaxNum = 1; iWeight = 4; break; // [AR] Air Elemental, Greater || FQ: Rare || HD: 21"]
["case ",113,":sChoice = \"","elem_air_el001","\";  fCR = ",37,".0;  ","iMinNum = ",1,"; ","iMaxNum = ",1,"; ","iWeight = ",4,"; break; // ","[AR] Air Elemental, Elder"," || FQ: ","Rare"," || HD: ",24,"case 113:sChoice = \"elem_air_el001\";  fCR = 37.0;  iMinNum = 1; iMaxNum = 1; iWeight = 4; break; // [AR] Air Elemental, Elder || FQ: Rare || HD: 24"]
["case ",114,":sChoice = \"","ar_aerservant002","\";  fCR = ",37,".0;  ","iMinNum = ",1,"; ","iMaxNum = ",1,"; ","iWeight = ",2,"; break; // ","Aerial Servant, Large"," || FQ: ","Very Rare"," || HD: ",34,"case 114:sChoice = \"ar_aerservant002\";  fCR = 37.0;  iMinNum = 1; iMaxNum = 1; iWeight = 2; break; // Aerial Servant, Large || FQ: Very Rare || HD: 34"]
["case ",115,":sChoice = \"","elem_air_pr001","\";  fCR = ",109,".0;  ","iMinNum = ",1,"; ","iMaxNum = ",1,"; ","iWeight = ",2,"; break; // ","Air Elemental, Primal"," || FQ: ","Very  Rare"," || HD: ",60,"case 115:sChoice = \"elem_air_pr001\";  fCR = 109.0;  iMinNum = 1; iMaxNum = 1; iWeight = 2; break; // Air Elemental, Primal || FQ: Very  Rare || HD: 60"]

{"sheet":"Desert - Undead","index":3,"n_rows":41,"n_cols":22,"rows_kept":41}
["Case","#","SpawnVar","RezRef","CR Var","CR",null,"iMinNum","Min",null,"iMaxNum","Max",null,"iWeight",null,null,"Name",null,"Frequency",null,"HD"]
["case ",0,":sChoice = \"","skeletondwarf001","\";  fCR = ",1,";  ","iMinNum = ",3,"; ","iMaxNum = ",15,"; ","iWeight = ",4,"; break; // ","Skeleton, Dwarf"," || FQ: ","Rare"," || HD: ",1,{"$f":"CONCATENATE(A2, B2, C2, D2, E2,F2,G2,H2,I2,J2,K2,L2,M2,N2,O2,P2,Q2, R2, S2, T2, U2)","v":"case 0:sChoice = \"skeletondwarf001\";  fCR = 1;  iMinNum = 3; iMaxNum = 15; iWeight = 4; break; // Skeleton, Dwarf || FQ: Rare || HD: 1"}]
["case ",{"$f":"SUM(B2+1)","v":1},":sChoice = \"","skeletonhuman001","\";  fCR = ",1,";  ","iMinNum = ",3,"; ","iMaxNum = ",15,"; ","iWeight = ",8,"; break; // ","Skeleton, Human"," || FQ: ","Uncommon"," || HD: ",1,{"$f":"CONCATENATE(A3, B3, C3, D3, E3,F3,G3,H3,I3,J3,K3,L3,M3,N3,O3,P3,Q3, R3, S3, T3, U3)","v":"case 1:sChoice = \"skeletonhuman001\";  fCR = 1;  iMinNum = 3; iMaxNum = 15; iWeight = 8; break; // Skeleton, Human || FQ: Uncommon || HD: 1"}]
["case ",{"$f":"SUM(B3+1)","v":2},":sChoice = \"","skeletonhuman002","\";  fCR = ",1,";  ","iMinNum = ",3,"; ","iMaxNum = ",15,"; ","iWeight = ",8,"; break; // ","Skeleton, Human Archer"," || FQ: ","Uncommon"," || HD: ",1,"case 2:sChoice = \"skeletonhuman002\";  fCR = 1;  iMinNum = 3; iMaxNum = 15; iWeight = 8; break; // Skeleton, Human Archer || FQ: Uncommon || HD: 1"]
["case ",3,":sChoice = \"","kragling_f001","\";  fCR = ",2,";  ","iMinNum = ",1,"; ","iMaxNum = ",4,"; ","iWeight = ",8,"; break; // ","Kragling, Fire"," || FQ: ","Uncommon"," || HD: ",1,"case 3:sChoice = \"kragling_f001\";  fCR = 2;  iMinNum = 1; iMaxNum = 4; iWeight = 8; break; // Kragling, Fire || FQ: Uncommon || HD: 1"]
["case ",4,":sChoice = \"","skeletongiant001","\";  fCR = ",2,".0;  ","iMinNum = ",2,"; ","iMaxNum = ",8,"; ","iWeight = ",8,"; break; // ","Skeleton, Half-Giant"," || FQ: ","Uncommon"," || HD: ",2,"case 4:sChoice = \"skeletongiant001\";  fCR = 2.0;  iMinNum = 2; iMaxNum = 8; iWeight = 8; break; // Skeleton, Half-Giant || FQ: Uncommon || HD: 2"]
["case ",5,":sChoice = \"","ghoul001","\";  fCR = ",3,".0;  ","iMinNum = ",1,"; ","iMaxNum = ",12,"; ","iWeight = ",8,"; break; // ","Ghoul"," || FQ: ","Uncommon"," || HD: ",2,"case 5:sChoice = \"ghoul001\";  fCR = 3.0;  iMinNum = 1; iMaxNum = 12; iWeight = 8; break; // Ghoul || FQ: Uncommon || HD: 2"]
["case ",6,":sChoice = \"","shadow003","\";  fCR = ",3,".0;  ","iMinNum = ",1,"; ","iMaxNum = ",11,"; ","iWeight = ",8,"; break; // ","Shadow, Lesser"," || FQ: ","Uncommon"," || HD: ",1,"case 6:sChoice = \"shadow003\";  fCR = 3.0;  iMinNum = 1; iMaxNum = 11; iWeight = 8; break; // Shadow, Lesser || FQ: Uncommon || HD: 1"]
["case ",7,":sChoice = \"","shadow001","\";  fCR = ",4,".0;  ","iMinNum = ",1,"; ","iMaxNum = ",11,"; ","iWeight = ",4,"; break; // ","Shadow"," || FQ: ","Rare"," || HD: ",3,"case 7:sChoice = \"shadow001\";  fCR = 4.0;  iMinNum = 1; iMaxNum = 11; iWeight = 4; break; // Shadow || FQ: Rare || HD: 3"]
["case ",8,":sChoice = \"","shadow001","\";  fCR = ",4,".0;  ","iMinNum = ",2,"; ","iMaxNum = ",20,"; ","iWeight = ",8,"; break; // ","Shadow [AR]"," || FQ: ","Uncommon"," || HD: ",3,"case 8:sChoice = \"shadow001\";  fCR = 4.0;  iMinNum = 2; iMaxNum = 20; iWeight = 8; break; // Shadow [AR] || FQ: Uncommon || HD: 3"]
["case ",9,":sChoice = \"","ghast001","\";  fCR = ",5,".0;  ","iMinNum = ",1,"; ","iMaxNum = ",4,"; ","iWeight = ",4,"; break; // ","Ghast"," || FQ: ","Rare"," || HD: ",4,"case 9:sChoice = \"ghast001\";  fCR = 5.0;  iMinNum = 1; iMaxNum = 4; iWeight = 4; break; // Ghast || FQ: Rare || HD: 4"]
["case ",10,":sChoice = \"","ioramh001","\";  fCR = ",5,".0;  ","iMinNum = ",1,"; ","iMaxNum = ",12,"; ","iWeight = ",4,"; break; // ","Ioramh"," || FQ: ","Rare"," || HD: ",4,"case 10:sChoice = \"ioramh001\";  fCR = 5.0;  iMinNum = 1; iMaxNum = 12; iWeight = 4; break; // Ioramh || FQ: Rare || HD: 4"]
["case ",11,":sChoice = \"","bonebat001","\";  fCR = ",5,".0;  ","iMinNum = ",2,"; ","iMaxNum = ",8,"; ","iWeight = ",8,"; break; // ","Bonebat"," || FQ: ","Uncommon"," || HD: ",4,"case 11:sChoice = \"bonebat001\";  fCR = 5.0;  iMinNum = 2; iMaxNum = 8; iWeight = 8; break; // Bonebat || FQ: Uncommon || HD: 4"]
["case ",12,":sChoice = \"","deathlock001","\";  fCR = ",5,".0;  ","iMinNum = ",1,"; ","iMaxNum = ",3,"; ","iWeight = ",2,"; break; // ","Deathlock"," || FQ: ","Very Rare"," || HD: ",3,"case 12:sChoice = \"deathlock001\";  fCR = 5.0;  iMinNum = 1; iMaxNum = 3; iWeight = 2; break; // Deathlock || FQ: Very Rare || HD: 3"]
["case ",13,":sChoice = \"","plagueblight001","\";  fCR = ",6,".0;  ","iMinNum = ",1,"; ","iMaxNum = ",6,"; ","iWeight = ",2,"; break; // ","Plague Blight"," || FQ: ","Very Rare"," || HD: ",6,"case 13:sChoice = \"plagueblight001\";  fCR = 6.0;  iMinNum = 1; iMaxNum = 6; iWeight = 2; break; // Plague Blight || FQ: Very Rare || HD: 6"]
["case ",14,":sChoice = \"","zombie002","\";  fCR = ",7,".0;  ","iMinNum = ",1,"; ","iMaxNum = ",4,"; ","iWeight = ",8,"; break; // ","Zombie, Mul"," || FQ: ","Uncommon"," || HD: ",7,"case 14:sChoice = \"zombie002\";  fCR = 7.0;  iMinNum = 1; iMaxNum = 4; iWeight = 8; break; // Zombie, Mul || FQ: Uncommon || HD: 7"]
["case ",15,":sChoice = \"","zombie003","\";  fCR = ",7,".0;  ","iMinNum = ",1,"; ","iMaxNum = ",8,"; ","iWeight = ",8,"; break; // ","Zombie, Human"," || FQ: ","Uncommon"," || HD: ",7,"case 15:sChoice = \"zombie003\";  fCR = 7.0;  iMinNum = 1; iMaxNum = 8; iWeight = 8; break; // Zombie, Human || FQ: Uncommon || HD: 7"]
["case ",16,":sChoice = \"","ar_wraith001","\";  fCR = ",7,".0;  ","iMinNum = ",2,"; ","iMaxNum = ",11,"; ","iWeight = ",2,"; break; // ","Wraith [AR]"," || FQ: ","Very Rare"," || HD: ",5,"case 16:sChoice = \"ar_wraith001\";  fCR = 7.0;  iMinNum = 2; iMaxNum = 11; iWeight = 2; break; // Wraith [AR] || FQ: Very Rare || HD: 5"]
["case ",17,":sChoice = \"","ghast003","\";  fCR = ",7,".0;  ","iMinNum = ",1,"; ","iMaxNum = ",1,"; ","iWeight = ",2,"; break; // ","Ancient Ghast"," || FQ: ","Very Rare"," || HD: ",5,"case 17:sChoice = \"ghast003\";  fCR = 7.0;  iMinNum = 1; iMaxNum = 1; iWeight = 2; break; // Ancient Ghast || FQ: Very Rare || HD: 5"]
["case ",18,":sChoice = \"","voidwraith001","\";  fCR = ",9,".0;  ","iMinNum = ",1,"; ","iMaxNum = ",5,"; ","iWeight = ",2,"; break; // ","Voidwraith"," || FQ: ","Very Rare"," || HD: ",6,"case 18:sChoice = \"voidwraith001\";  fCR = 9.0;  iMinNum = 1; iMaxNum = 5; iWeight = 2; break; // Voidwraith || FQ: Very Rare || HD: 6"]
["case ",19,":sChoice = \"","ghast002","\";  fCR = ",10,".0;  ","iMinNum = ",1,"; ","iMaxNum = ",2,"; ","iWeight = ",2,"; break; // ","Ghast, Greater"," || FQ: ","Very Rare"," || HD: ",8,"case 19:sChoice = \"ghast002\";  fCR = 10.0;  iMinNum = 1; iMaxNum = 2; iWeight = 2; break; // Ghast, Greater || FQ: Very Rare || HD: 8"]
["case ",20,":sChoice = \"","shadow002","\";  fCR = ",11,".0;  ","iMinNum = ",1,"; ","iMaxNum = ",1,"; ","iWeight = ",4,"; break; // ","Shadow, Greater"," || FQ: ","Rare"," || HD: ",9,"case 20:sChoice = \"shadow002\";  fCR = 11.0;  iMinNum = 1; iMaxNum = 1; iWeight = 4; break; // Shadow, Greater || FQ: Rare || HD: 9"]
["case ",21,":sChoice = \"","namech_rogue001","\";  fCR = ",11,".0;  ","iMinNum = ",1,"; ","iMaxNum = ",2,"; ","iWeight = ",8,"; break; // ","Namech, Rogue"," || FQ: ","Uncommon"," || HD: ",9,"case 21:sChoice = \"namech_rogue001\";  fCR = 11.0;  iMinNum = 1; iMaxNum = 2; iWeight = 8; break; // Namech, Rogue || FQ: Uncommon || HD: 9"]
["case ",22,":sChoice = \"","bleakborn001","\";  fCR = ",11,".0;  ","iMinNum = ",1,"; ","iMaxNum = ",1,"; ","iWeight = ",2,"; break; // ","Bleakborn"," || FQ: ","Very Rare"," || HD: ",8,"case 22:sChoice = \"bleakborn001\";  fCR = 11.0;  iMinNum = 1; iMaxNum = 1; iWeight = 2; break; // Bleakborn || FQ: Very Rare || HD: 8"]
["case ",23,":sChoice = \"","cursed_dwarf001","\";  fCR = ",12,".0;  ","iMinNum = ",1,"; ","iMaxNum = ",10,"; ","iWeight = ",4,"; break; // ","Cursed Dwarf"," || FQ: ","Rare"," || HD: ",6,"case 23:sChoice = \"cursed_dwarf001\";  fCR = 12.0;  iMinNum = 1; iMaxNum = 10; iWeight = 4; break; // Cursed Dwarf || FQ: Rare || HD: 6"]
["case ",24,":sChoice = \"","fael001","\";  fCR = ",14,".0;  ","iMinNum = ",1,"; ","iMaxNum = ",1,"; ","iWeight = ",4,"; break; // ","Fael"," || FQ: ","Rare"," || HD: ",8,"case 24:sChoice = \"fael001\";  fCR = 14.0;  iMinNum = 1; iMaxNum = 1; iWeight = 4; break; // Fael || FQ: Rare || HD: 8"]
["case ",25,":sChoice = \"","ashen001","\";  fCR = ",15,".0;  ","iMinNum = ",1,"; ","iMaxNum = ",1,"; ","iWeight = ",4,"; break; // ","Ashen"," || FQ: ","Rare"," || HD: ",11,"case 25:sChoice = \"ashen001\";  fCR = 15.0;  iMinNum = 1; iMaxNum = 1; iWeight = 4; break; // Ashen || FQ: Rare || HD: 11"]
["case ",26,":sChoice = \"","krag_fire001","\";  fCR = ",15,".0;  ","iMinNum = ",1,"; ","iMaxNum = ",1,"; ","iWeight = ",4,"; break; // ","Krag, Fire"," || FQ: ","Rare"," || HD: ",11,"case 26:sChoice = \"krag_fire001\";  fCR = 15.0;  iMinNum = 1; iMaxNum = 1; iWeight = 4; break; // Krag, Fire || FQ: Rare || HD: 11"]
["case ",27,":sChoice = \"","boneclaw001","\";  fCR = ",16,".0;  ","iMinNum = ",1,"; ","iMaxNum = ",3,"; ","iWeight = ",4,"; break; // ","Boneklaw"," || FQ: ","Rare"," || HD: ",10,"case 27:sChoice = \"boneclaw001\";  fCR = 16.0;  iMinNum = 1; iMaxNum = 3; iWeight = 4; break; // Boneklaw || FQ: Rare || HD: 10"]
["case ",28,":sChoice = \"","hulkcorpse001","\";  fCR = ",17,".0;  ","iMinNum = ",1,"; ","iMaxNum = ",2,"; ","iWeight = ",2,"; break; // ","Hulking Corpse"," || FQ: ","Very Rare"," || HD: ",20,"case 28:sChoice = \"hulkcorpse001\";  fCR = 17.0;  iMinNum = 1; iMaxNum = 2; iWeight = 2; break; // Hulking Corpse || FQ: Very Rare || HD: 20"]
["case ",29,":sChoice = \"","atropalscion001","\";  fCR = ",19,".0;  ","iMinNum = ",1,"; ","iMaxNum = ",1,"; ","iWeight = ",2,"; break; // ","Atropal Scion"," || FQ: ","Very Rare"," || HD: ",9,"case 29:sChoice = \"atropalscion001\";  fCR = 19.0;  iMinNum = 1; iMaxNum = 1; iWeight = 2; break; // Atropal Scion || FQ: Very Rare || HD: 9"]
["case ",30,":sChoice = \"","slaughterwight01","\";  fCR = ",20,".0;  ","iMinNum = ",1,"; ","iMaxNum = ",10,"; ","iWeight = ",2,"; break; // ","Slaughter Wight"," || FQ: ","Very Rare"," || HD: ",18,"case 30:sChoice = \"slaughterwight01\";  fCR = 20.0;  iMinNum = 1; iMaxNum = 10; iWeight = 2; break; // Slaughter Wight || FQ: Very Rare || HD: 18"]
["case ",31,":sChoice = \"","boneyard001","\";  fCR = ",22,".0;  ","iMinNum = ",1,"; ","iMaxNum = ",1,"; ","iWeight = ",4,"; break; // ","Boneyard"," || FQ: ","Rare"," || HD: ",17,"case 31:sChoice = \"boneyard001\";  fCR = 22.0;  iMinNum = 1; iMaxNum = 1; iWeight = 4; break; // Boneyard || FQ: Rare || HD: 17"]
["case ",32,":sChoice = \"","ar_wraith002","\";  fCR = ",23,".0;  ","iMinNum = ",1,"; ","iMaxNum = ",1,"; ","iWeight = ",2,"; break; // ","Wraith, Dread"," || FQ: ","Very Rare"," || HD: ",16,"case 32:sChoice = \"ar_wraith002\";  fCR = 23.0;  iMinNum = 1; iMaxNum = 1; iWeight = 2; break; // Wraith, Dread || FQ: Very Rare || HD: 16"]
["case ",33,":sChoice = \"","dreamvestige001","\";  fCR = ",23,".0;  ","iMinNum = ",1,"; ","iMaxNum = ",1,"; ","iWeight = ",2,"; break; // ","Dream Vestige"," || FQ: ","Very Rare"," || HD: ",17,"case 33:sChoice = \"dreamvestige001\";  fCR = 23.0;  iMinNum = 1; iMaxNum = 1; iWeight = 2; break; // Dream Vestige || FQ: Very Rare || HD: 17"]
["case ",34,":sChoice = \"","ashen002","\";  fCR = ",24,".0;  ","iMinNum = ",1,"; ","iMaxNum = ",1,"; ","iWeight = ",2,"; break; // ","Ashen, Evolved"," || FQ: ","Very Rare"," || HD: ",20,"case 34:sChoice = \"ashen002\";  fCR = 24.0;  iMinNum = 1; iMaxNum = 1; iWeight = 2; break; // Ashen, Evolved || FQ: Very Rare || HD: 20"]
["case ",35,":sChoice = \"","thinkzombie003","\";  fCR = ",30,".0;  ","iMinNum = ",1,"; ","iMaxNum = ",4,"; ","iWeight = ",2,"; break; // ","Thinking Zombie, Mul - Epic DwD"," || FQ: ","Very Rare"," || HD: ",30,"case 35:sChoice = \"thinkzombie003\";  fCR = 30.0;  iMinNum = 1; iMaxNum = 4; iWeight = 2; break; // Thinking Zombie, Mul - Epic DwD || FQ: Very Rare || HD: 30"]
["case ",36,":sChoice = \"","angelofdecay001","\";  fCR = ",32,".0;  ","iMinNum = ",1,"; ","iMaxNum = ",1,"; ","iWeight = ",2,"; break; // ","Angel of Decay"," || FQ: ","Very Rare"," || HD: ",26,"case 36:sChoice = \"angelofdecay001\";  fCR = 32.0;  iMinNum = 1; iMaxNum = 1; iWeight = 2; break; // Angel of Decay || FQ: Very Rare || HD: 26"]
["case ",37,":sChoice = \"","ar_visage003","\";  fCR = ",36,".0;  ","iMinNum = ",1,"; ","iMaxNum = ",1,"; ","iWeight = ",4,"; break; // ","Visage, Evolved Greater"," || FQ: ","Rare"," || HD: ",25,"case 37:sChoice = \"ar_visage003\";  fCR = 36.0;  iMinNum = 1; iMaxNum = 1; iWeight = 4; break; // Visage, Evolved Greater || FQ: Rare || HD: 25"]
["case ",38,":sChoice = \"","tliz001","\";  fCR = ",37,".0;  ","iMinNum = ",1,"; ","iMaxNum = ",1,"; ","iWeight = ",2,"; break; // ","T'liz"," || FQ: ","Very Rare"," || HD: ",16,"case 38:sChoice = \"tliz001\";  fCR = 37.0;  iMinNum = 1; iMaxNum = 1; iWeight = 2; break; // T'liz || FQ: Very Rare || HD: 16"]
["case ",39,":sChoice = \"","winterwight001","\";  fCR = ",41,".0;  ","iMinNum = ",1,"; ","iMaxNum = ",2,"; ","iWeight = ",2,"; break; // ","Winterwight"," || FQ: ","Very Rare"," || HD: ",32,"case 39:sChoice = \"winterwight001\";  fCR = 41.0;  iMinNum = 1; iMaxNum = 2; iWeight = 2; break; // Winterwight || FQ: Very Rare || HD: 32"]

{"sheet":"Mountain - Master List","index":4,"n_rows":207,"n_cols":14,"rows_kept":207}
["Name","RezRef","Type","Region 1","Region 2","iWeight","Frequency","CR","HD","# Appearing","Activity","Notes","Crafting Drop","Crafting Drop Resref"]
["Dog: Camp","ds_dog005","Animal","Any",null,16,"Common",3,3,"1 to 2","Any"]
["Kank, Domestic Worker","ds_kank001","Vermin","Any",null,16,"Common",2,1,"1 - 50","Any"]
["Kank: Domestic Soldier","ds_kank002","Vermin","Any",null,16,"Common",3,2,"1-50","Any"]
["Mul, Wild - Battleaxe","wildmul001","Humaniod","Any",null,16,"Common",3,3,"2 to 7","Any"]
["Rat, Common","ar_rat001","Animal","Any",null,16,"Common","1/6 CR",1,"10-100","Any"]
["[AR] Air Elemental, Elder","elem_air_el001","Elemental (Extraplanar, Air)","Any Above Ground","Elemental Plane of Air",4,"Rare",37,24,1,"Any"]
["[AR] Air Elemental, Greater","elem_air_gr001","Elemental (Extraplanar, Air)","Any Above Ground","Elemental Plane of Air",4,"Rare",33,21,1,"Any"]
["[AR] Air Elemental, Huge","elem_air_hg001","Elemental (Extraplanar, Air)","Any Above Ground","Elemental Plane of Air",4,"Rare",25,16,1,"Any"]
["[AR] Air Elemental, Large","elem_air_lg001","Elemental (Extraplanar, Air)","Any Above Ground","Elemental Plane of Air",4,"Rare",13,8,1,"Any"]
["[AR] Air Elemental, Medium","elem_air_md001","Elemental (Extraplanar, Air)","Any Above Ground","Elemental Plane of Air",4,"Rare",7,4,1,"Any"]
["[AR] Air Elemental, Small","elem_air_sm001","Elemental (Extraplanar, Air)","Any Above Ground","Elemental Plane of Air",4,"Rare",4,2,1,"Any"]
["Ashen","ashen001","Undead","Any",null,4,"Rare",15,11,1,"Any"]
["Beetle: Shaqat","ds_shaqat001","Vermin","Any",null,4,"Rare",1,1,"2 - 4","Any"]
["Cyclops, Udath","cyclops002","Giant","Warm Mountains","Silt Sea",4,"Rare",16,15,1,"Any"]
["Defiler, Apprentice","ar_defiler_001","Human","Any",null,4,"Rare",7,8,"1 - 5","Any"]
["Elven Raider Defiler","elvenraider002","Elf","Any",null,4,"Rare",11,12,"1","Any"]
["Flailer","ds_flailer001","Magical Beast (Psionic)","Stony Barrens",null,4,"Rare",7,6,1,"Any"]
["Golem: Bone","golembone001","Construct","Any",null,4,"Rare",12,9,1,"Any"]
["Golem: Jade","golemjade001","Construct","Any",null,4,"Rare",13,12,1,"Any"]
["Golem: Magma","golemmagma001","Construct","Any",null,4,"Rare",16,12,1,"Any"]
["Golem: Obsidian","golemobsidian001","Construct","Any",null,4,"Rare",17,15,1,"Any"]
["Golem: Paper",null,"Construct","Any",null,4,"Rare",null,null,1,"Any"]
["Golem: Rock","golemrock001","Construct","Any",null,4,"Rare",11,10,1,"Any"]
["Golem: Salt","golemsalt001","Construct","Any",null,4,"Rare",12,9,1,"Any"]
["Golem: Wood","golemwood001","Construct","Any",null,4,"Rare",10,8,1,"Any"]
["Kaisharga - Elven Defiler","kaisharga001","Undead","Any",null,4,"Rare",45,18,1,"Any"]
["Kaisharga - Human Preserver","kaisharga002","Undead","Any",null,4,"Rare",39,18,1,"Any"]
["Kenku, Athasian",null,"Monstrous Humanoid (psionic)","Any","Badlands",4,"Rare",null,null,"2 to 10","Any"]
["Marble Sentinel, Bloodstone","ar_bloodsent001","Construct","Any",null,4,"Rare",12,9,"3 - 5","Any"]
["Marble Sentinel, Ebon","ar_ebonsent001","Construct","Any",null,4,"Rare",16,12,"2 - 4","Any"]
["Marble Sentinel, Onyx","ar_onyxsent001","Construct","Any",null,4,"Rare",8,6,"3 - 6","Any"]
["Marble Sentinel, Skyros","ar_skyrossent001","Construct","Any",null,4,"Rare",5,3,"3 - 8","Any"]
["Mastyrial, Black, Greater","blkmastyrial_002","Magical Beast (Psionic)","Mountains",null,4,"Rare",9,12,"1 to 4","Any"]
["Mephit, Air","ar_mepair001","Outsider (Air, Extraplanar)","Mountains","Elemental Plane of Air",4,"Rare",5,3,"1 - 12","Any"]
["Mephit, Steam","ar_mepsteam001","Outsider (Air, Extraplanar)","Any Above Ground","Elemental Plane of Fire",4,"Rare",4,3,"1 - 12","Any"]
["Rat, Dire - Elder","direrat_003","Animal","Any",null,4,"Rare",5,6,1,"Any"]
["Ruve, Greater","ruve002","Magical Beast","Any",null,4,"Rare",9,8,"1 to 2","Any"]
["Shard Spider","shardspider001","Magical Beast","non-Underground","non-Marsh",4,"Rare",7,6,"1 to 2","Any"]
["Styr","ds_styr001","Elemental (Earth)","Any Land","Underground",4,"Rare",11,14,1,"Any"]
["Thri-kreen, Druid","ar_kreen_003","Monstrous Humaniod","Any non-forest","Any non-swamp",4,"Rare",14,12,1,"Any"]
["Thri-kreen, Ranger","ar_kreen_002","Monstrous Humaniod","Any non-forest","Any non-swamp",4,"Rare",13,12,1,"Any"]
["Zhackal","zhackal001","Animal","Forests","Mountains",4,"Rare",3,1,"1 - 12","Any"]
["Zhackal, Greater","zhackal002","Animal","Forests","Mountains",4,"Rare",4,3,"2 - 6","Any"]
["Bonebat","bonebat001","Undead","Any Land","Underground",8,"Uncommon",5,4,"2 to 8","Any"]
["Boneclaw, Greater","ds_gboneclaw001","Magical Beast (Psionic)","Stony Barrens",null,8,"Uncommon",7,6,1,"Any"]
["Cyclops, Common","cyclops001","Giant","Warm Mountains","Silt Sea",8,"Uncommon",14,13,"2 to 10","Any"]
["Dune Bandit - Longbow","dunebandit_002","Half-elf","Any",null,8,"Uncommon",7,7,"1 - 5","Any"]
["Mastyrial, Black","blkmastyrial_001","Magical Beast (Psionic)","Mountains",null,8,"Uncommon",7,8,"5 - 20","Any"]
["Mul, Wild - Darts","wildmul003","Humaniod","Any",null,8,"Uncommon",17,17,"2 to 7","Any"]
["Mul, Wild - Dragon's Paw","wildmul002","Humaniod","Any",null,8,"Uncommon",11,12,"2 to 7","Any"]
["Rat, Dire - Greater","direrat_002","Animal","Any",null,8,"Uncommon",3,3,"1 to 4","Any"]
["Ruve","ruve001","Magical Beast","Any",null,8,"Uncommon",7,4,"1 to 8","Any"]
["Screamer Beetle","ar_scrbeetle_001","Vermin","Any Land","Underground",8,"Uncommon",4,3,"2 to 8","Any"]
["Ssurran, Common","ar_ssurran_001","Monstrous Humaniod (Reptilian)","Stony Barrens","Lava Gorge",8,"Uncommon",3,3,"3 to 10","Any"]
["Ssurran, Raider","ar_ssurran_002","Monstrous Humaniod (Reptilian)","Stony Barrens","Lava Gorge",8,"Uncommon",7,7,"1 to 4","Any"]
["Thri-kreen, Common","ar_kreen_001","Monstrous Humaniod","Any non-forest","Any non-swamp",8,"Uncommon",2,2,1,"Any"]
["Tigone","tigone001","Magical Beast","Mountains","Hinterlands",8,"Uncommon",5,4,44233,"Any"]
["Tul'k","ds_tulk001","Monstrous Humanoid (Psionic)","Mountains",null,8,"Uncommon",6,5,"1 to 20","Any"]
["Air Elemental, Primal","elem_air_pr001","Elemental (Extraplanar, Air)","Any Above Ground","Elemental Plane of Air",2,"Very  Rare",109,60,1,"Any"]
["Wind Walker","windwalker001","Elemental (Air)","Underground","Any Mountains",null,"Very  Rare",7,6,"1 - 4","Any"]
["Ashen, Evolved","ashen002","Undead","Any",null,null,"Very Rare",24,20,1,"Any"]
["Atropal","atropal001","Undead","Any","Any",null,"Very Rare",75,60,1,"Any"]
["Atropal Scion","atropalscion001","Undead","Any","Any",null,"Very Rare",19,9,1,"Any"]
["Colossus, Stone","stonecolossus001","Construct","Any",null,null,"Very Rare",78,60,1,"Any"]
["Defiler, Journeyman","ar_defiler_002","Human","Any",null,null,"Very Rare",9,10,44564,"Any"]
["Devastation Beetle","devbeetle001","Vermin","Any",null,null,"Very Rare",177,60,1,"Any"]
["Devastation Scorpion","devscorpion001","Vermin","Any",null,null,"Very Rare",139,60,1,"Any"]
["Devastation Spider","devspider001","Vermin","Any",null,null,"Very Rare",121,60,1,"Any"]
["Drake, Air","drake_air001","Dragon (Air, Psionic)","Any","Mountains",null,"Very Rare",23,25,1,"Any"]
["Drake, Earth","drake_earth001","Dragon (Earth, Psionic)","Any","Underground",null,"Very Rare",19,25,1,"Any"]
["Drake, Fire","drake_fire001","Dragon (Fire, Psionic)","Any","Volcano",null,"Very Rare",16,20,1,"Any"]
["Drake, Magma","drake_magma001","Dragon (Earth, Fire, Psionic)","Mountains","Any Volcanic",null,"Very Rare",23,20,1,"Any"]
["Drake, Sun","drake_sun001","Dragon (Air, Fire, Psionic)","Any",null,null,"Very Rare",23,20,1,"Any"]
["Drake, Water","drake_water001","Dragon (Psionic, Water)","Any","Aquatic",null,"Very Rare",16,20,1,"Any"]
["Dune Bandit, Mul - Longsword","dunebandit_001","Mul","Any",null,null,"Very Rare",6,6,"1 - 8 or 10 - 24","Any"]
["Fire Nymph","ar_firenymph001","Outsider (Fire)","Any Land",null,null,"Very Rare",8,6,1,"Any"]
["Giant, Shadow","giantshadow001","Outsider (Extraplanar, Incorporeal) ","Any","The Black",null,"Very Rare",null,7,"2 to 8","Any"]
["Golem: Ash","ds_ashgolem001","Construct (Fire)","Any",null,null,"Very Rare",12,9,1,"Any"]
["Golem: Ash, Greater","ds_ashgolem002","Construct (Fire)","Any",null,null,"Very Rare",17,16,1,"Any"]
["Golem: Bone, Greater","golembone002","Construct","Any",null,null,"Very Rare",21,18,1,"Any"]
["Golem: Clay","ds_claygolem001","Construct","Any",null,null,"Very Rare",13,11,"2 to 10","Any"]
["Golem: Clay, Greater","ds_claygolem002","Construct","Any",null,null,"Very Rare",19,18,"1 to 2","Any"]
["Golem: Clay, Huge","ds_claygolem003","Construct","Any",null,null,"Very Rare",28,24,1,"Any"]
["Golem: Jade, Greater","golemjade002","Construct","Any",null,null,"Very Rare",23,24,1,"Any"]
["Golem: Magma, Greater","golemmagma002","Construct","Any",null,null,"Very Rare",27,24,1,"Any"]
["Golem: Obsidian, Greater","golemobsidian002","Construct","Any",null,null,"Very Rare",29,30,1,"Any"]
["Golem: Rock, Greater","golemrock002","Construct","Any",null,null,"Very Rare",20,20,1,"Any"]
["Golem: Salt, Greater","golemsalt002","Construct","Any",null,null,"Very Rare",21,18,1,"Any"]
["Golem: Sand","ds_sandgolem001","Construct","Any",null,null,"Very Rare",13,11,1,"Any"]
["Golem: Sand, Greater","ds_sandgolem002","Construct","Any",null,null,"Very Rare",19,20,1,"Any"]
["Golem: Stone","ds_stonegolem001","Construct","Any",null,null,"Very Rare",16,14,"2 to 10","Any"]
["Golem: Stone, Greater","ds_stonegolem002","Construct","Any",null,null,"Very Rare",22,21,"1 to 2","Any"]
["Golem: Wood, Greater","golemwood002","Construct","Any",null,null,"Very Rare",16,14,1,"Any"]
["Gulgan Slaver - Half-elf","ar_gulgslaver003","Half-elf","Any",null,null,"Very Rare",3,4,"1 - 5","Any"]
["Hell Hound [AR]","ar_hellhound001","Outsider (Evil, Native, Fire, Lawful)","Any","Elemental Plane of Fire",null,"Very Rare",5,4,null,"Any"]
["Imp [AR]","ar_imp001","Outsider (Evil, Extraplanar, Lawful)","Any",null,null,"Very Rare",5,3,"1","Any"]
["Invisible Stalker [AR]","ar_invstalk001","Elemental (Air, Extraplanar)","Any","Elemental Plane of Air",null,"Very Rare",9,8,"1","Any"]
["LeShay","leshay001","Fey","Any",null,null,"Very Rare",180,50,1,"Any"]
["Marble Sentinel, Alabaster","ar_alabasent001","Construct","Any",null,null,"Very Rare",21,16,1,"Any"]
["Obsidian Retriever","ds_obretriever01","Construct","Any",null,null,"Very Rare",19,12,1,"Any"]
["Obsidian Retriever, Greater","ds_obretriever02","Construct","Any",null,null,"Very Rare",27,22,1,"Any"]
["Psionocus","ds_psionocus001","Construct (Psionic)","Any",null,null,"Very Rare",1,3,1,"Any"]
["Zik-trin’ta","ds_zik_trin_ta01","Monstrous Humanoid","Any non-forest",null,null,"Very Rare",12,7,"1 to 4","Any"]
["Zik-trin'ak","ds_zik_trin_ak01","Monstrous Humanoid (Psionic)","Any non-forest",null,null,"Very Rare",10,8,"1 to 4","Any"]
["Giant: Crag","ds_giantcrag001","Giant","Mountains",null,16,"Common",17,16,44326,"Day"]
["Strine","ds_strine001","Animal","Mountains","Rocky Badlands",16,"Common",4,6,"1 to 4","Day"]
["Aarakocra, Common","aarakocra001","Monstrous Humaniod","Mountains",null,4,"Rare",0.5,1,null,"Day"]
["Bandit, Halfling - Daggers","halfbandit_001","Halfling","Any","Warm Forests",4,"Rare",3,3,"1 - 3","Day"]
["Mountain Stalker","ds_mtn_stalker01","Aberration","Mountains",null,4,"Rare",13,10,"1 to 2","Day"]
["Mountain Stalker, Greater","ds_mtn_stalker02","Aberration","Mountains",null,4,"Rare",25,20,"1 to 2","Day"]
["Sun Paraelemental, Elder","elem_sun_el001","Elemental (Extraplanar, Air, Fire)","Any Above Ground","Paraelemental Plane of Sun",4,"Rare",36,24,1,"Day"]
["Sun Paraelemental, Greater","elem_sun_gr001","Elemental (Extraplanar, Air, Fire)","Any Above Ground","Paraelemental Plane of Sun",4,"Rare",32,21,1,"Day"]
["Sun Paraelemental, Huge","elem_sun_hg001","Elemental (Extraplanar, Air, Fire)","Any Above Ground","Paraelemental Plane of Sun",4,"Rare",24,16,1,"Day"]
["Sun Paraelemental, Large","elem_sun_lg001","Elemental (Extraplanar, Air, Fire)","Any Above Ground","Paraelemental Plane of Sun",4,"Rare",13,8,1,"Day"]
["Sun Paraelemental, Medium","elem_sun_md001","Elemental (Extraplanar, Air, Fire)","Any Above Ground","Paraelemental Plane of Sun",4,"Rare",6,4,1,"Day"]
["Sun Paraelemental, Small","elem_sun_sm001","Elemental (Extraplanar, Air, Fire)","Any Above Ground","Paraelemental Plane of Sun",4,"Rare",4,2,1,"Day"]
["Tarek, Chieftain","tarek_002","Humaniod","Any",null,4,"Rare",10,12,1,"Day"]
["Xerichou, Greater","xerichou002","Magical Beast","Any",null,4,"Rare",12,3,"3 to 18","Day"]
["Baazrag","ds_baazrag001","Monstrous Humaniod","Stony Barrens",null,8,"Uncommon",4,4,"1 to 12","Day"]
["Bandit Guard - Trikal","banditguard_001","Human","Any",null,8,"Uncommon",3,4,"1 - 5","Day"]
["Bandit, Human - Psionic","humanbandit_002","Human","Any",null,8,"Uncommon",3,3,"1 - 3","Day"]
["Bandit, Human - Short Sword","humanbandit_001","Human","Any",null,8,"Uncommon",3,3,"1 - 5","Day"]
["Boneclaw, Lesser","ds_lboneclaw001","Animal","Stony Barrens",null,8,"Uncommon",1,0.5,"4-40","Day"]
["Hawk, Dire","ar_hawk002","Animal","Any Forest, Hills","Plains or Mountains",8,"Uncommon",8,5,"1 to 2","Day"]
["Kes'trekel","ds_kestrekel001","Animal","Any",null,8,"Uncommon",1,1,"3 - 30","Day"]
["Lizard: Critic","ds_critic001","Animal (Psionic)","Any",null,8,"Uncommon",0.5,1,1,"Day"]
["Lizard: Dune Strider, Domesticated","ds_lizstrider001","Animal","Any",null,8,"Uncommon",3,3,1,"Day"]
["Lizard: Dune Strider, Domesticated","ds_lizstrider002","Animal","Any",null,8,"Uncommon",3,3,1,"Day"]
["Takis","ds_takis001","Animal","Mountains","Forests / Rocky Badlands",8,"Uncommon",5,5,"1 to 2","Day"]
["Tarek","tarek_001","Humanoid","Any",null,8,"Uncommon",5,5,"1 - 12","Day"]
["Xerichou","xerichou001","Magical Beast","Any",null,8,"Uncommon",9,3,"6-36","Day"]
["Sun Paraelemental, Primal",null,"Elemental (Extraplanar, Air, Fire)","Any Above Ground","Paraelemental Plane of Sun",null,"Very  Rare",null,null,1,"Day"]
["Aarakocra, Druid","aarakocra004","Monstrous Humaniod","Mountains",null,null,"Very Rare",8,10,null,"Day"]
["Aarakocra, Preserver","aarakocra006","Monstrous Humaniod","Mountains",null,null,"Very Rare",8,10,null,"Day"]
["Aarakocra, Scout","aarakocra005","Monstrous Humaniod","Mountains",null,null,"Very Rare",7,10,null,"Day"]
["Aarakocra, Shaman","aarakocra002","Monstrous Humaniod","Mountains",null,null,"Very Rare",8,10,null,"Day"]
["Aarakocra, Warrior","aarakocra003","Monstrous Humaniod","Mountains",null,null,"Very Rare",8,10,null,"Day"]
["Bandit Guard, Mul - Short Swords","banditguard_001","Mul","Any",null,null,"Very Rare",4,4,"1 - 8 or 10 - 24","Day"]
["Boneklaw","boneclaw001","Undead","Any",null,4,"Rare",16,10,44207,"Night"]
["Boneyard","boneyard001","Undead","Any",null,4,"Rare",22,17,1,"Night"]
["Boneyard, Evolved Greater","boneyard002","Undead","Any",null,4,"Rare",55,50,1,"Night"]
["Cursed Dwarf","cursed_dwarf001","Undead","Any","Underground",4,"Rare",12,6,"1 to 10","Night"]
["Fael","fael001","Undead","Any",null,4,"Rare",14,8,1,"Night"]
["Fallen Archer","fallen001","Undead","Any",null,4,"Rare",48,35,44216,"Night"]
["Fallen Legionaire","fallen002","Undead","Any",null,4,"Rare",37,25,44216,"Night"]
["Ghast","ghast001","Undead","Any",null,4,"Rare",5,4,44231,"Night"]
["Ioramh","ioramh001","Undead","Any",null,4,"Rare",5,4,"1 to 12","Night"]
["Jozhal","ds_jozhal001","Humanoid (Psionic, Reptilian)","Any",null,4,"Rare",2,1,"2 to 12","Night"]
["Klar","klar001","Magical Beast (Psionic)","Mountains",null,4,"Rare",12,11,"1 - 4","Night"]
["Krag, Fire","krag_fire001","Undead","Any",null,4,"Rare",15,11,1,"Night"]
["Namech Cleric","ar_namech003","Undead","Any",null,4,"Rare",59,40,1,"Night"]
["Pridemane","pridemane001","Undead","Any","Trembling Plains",4,"Rare",14,9,1,"Night"]
["Pridemane Barbarian","pridemane003","Undead","Any","Trembling Plains",4,"Rare",24,19,1,"Night"]
["Pridemane Ranger","pridemane002","Undead","Any","Trembling Plains",4,"Rare",26,19,1,"Night"]
["Shadow","shadow001","Undead (Incorporeal)","Underground","Any",4,"Rare",4,3,"1 - 11","Night"]
["Shadow Rat, Common","ar_shadowrat001","Undead","Underground","Any",4,"Rare",3,1,"6 - 20","Night"]
["Shadow, Greater","shadow002","Undead","Any",null,4,"Rare",11,9,1,"Night"]
["Skeleton, Dwarf","skeletondwarf001","Undead","Any","Any",4,"Rare",1,1,"Any","Night"]
["Skeleton, Dwarf","skeletondwarf001","Undead","Any","Any",4,"Rare",1,1,"Any","Night"]
["T'Chowb","tchowb_001","Monstrous Humaniod (Psionic)","Underground","Any",4,"Rare",5,4,1,"Night"]
["Tembo, Greater","tembo002","Magical Beast","Desert","Mountains",4,"Rare",9,4,"1 to 4","Night"]
["Visage, Evolved Greater","ar_visage003","Undead","Any",null,4,"Rare",36,25,1,"Night"]
["Bat, Reptilian Swarm",null,"Tiny animal (psionic)","Mountains","Badlands",8,"Uncommon",null,null,1,"Night"]
["Ghoul","ghoul001","Undead","Any",null,8,"Uncommon",3,2,"1 to 12","Night"]
["Kragling, Fire","kragling_f001","Undead","Any",null,8,"Uncommon",2,1,"1 to 4","Night"]
["Namech, Rogue","namech_rogue001","Undead","Any",null,8,"Uncommon",11,9,"1 to 2","Night"]
["Shadow [AR]","shadow001","Undead","Any",null,8,"Uncommon",4,3,"2 - 20","Night"]
["Shadow, Lesser","shadow003","Undead (Incorporeal)","Underground","Any",8,"Uncommon",3,1,"1 - 11","Night"]
["Skeleton, Half-Giant","skeletongiant001","Undead","Any","Any",8,"Uncommon",2,2,"Any","Night"]
["Skeleton, Half-Giant","skeletongiant001","Undead","Any","Any",8,"Uncommon",2,2,"Any","Night"]
["Skeleton, Human","skeletonhuman001","Undead","Any","Any",8,"Uncommon",1,1,"Any","Night"]
["Skeleton, Human","skeletonhuman001","Undead","Any","Any",8,"Uncommon",1,1,"Any","Night"]
["Skeleton, Human Archer","skeletonhuman002","Undead","Any","Any",8,"Uncommon",1,1,"Any","Night"]
["Skeleton, Human Archer","skeletonhuman002","Undead","Any","Any",8,"Uncommon",1,1,"Any","Night"]
["Tembo","tembo001","Magical Beast","Desert","Mountains",8,"Uncommon",6,4,44204,"Night"]
["Zombie, Human","zombie003","Undead","Underground","Any",8,"Uncommon",7,7,"1 - 8","Night"]
["Zombie, Mul","zombie002","Undead","Underground","Any",8,"Uncommon",7,7,"1 - 4","Night"]
["Ancient Ghast","ghast003","Undead","Any",null,2,"Very Rare",7,5,1,"Night"]
["Angel of Decay","angelofdecay001","Undead","Any Land","Underground",2,"Very Rare",32,26,1,"Night"]
["Bleakborn","bleakborn001","Undead","Any","Any",2,"Very Rare",11,8,1,"Night"]
["Cinderspawn","cinderspawn001","Undead (Fire)","Any","Any",2,"Very Rare",11,10,"1 - 5","Night"]
["Deathlock","deathlock001","Undead","Any",null,2,"Very Rare",5,3,"1 - 3","Night"]
["Dream Vestige","dreamvestige001","Undead","Any",null,2,"Very Rare",23,17,1,"Night"]
["Dwarven Banshee, Epic Stalker","dw_banshee001","Undead","Any",null,2,"Very Rare",37,30,"1 - 4","Night"]
["Dwarven Ghost, Epic Wizard","dw_ghost001","Undead","Any",null,2,"Very Rare",47,30,"1 - 4","Night"]
["Dwarven Raaig, Epic Cleric","dw_raaig001","Undead","Any",null,2,"Very Rare",47,30,"1 - 20","Night"]
["Ghast, Greater","ghast002","Undead","Any",null,2,"Very Rare",10,8,"1 to 2","Night"]
["Greater Fihyr","ds_gr_fihyr001","Aberration","Any",null,2,"Very Rare",20,16,1,"Night"]
["Greater Fihyr, Advanced","ds_gr_fihyr002","Aberration","Any",null,2,"Very Rare",28,25,1,"Night"]
["Hulking Corpse","hulkcorpse001","Undead","Any","Any",2,"Very Rare",17,20,"1 - 2","Night"]
["Hunefer","hunefer001","Undead","Any",null,2,"Very Rare",75,50,1,"Night"]
["Malevolent Spirit ","malev_spirit001","Undead","Any","Crimson Ruins",2,"Very Rare",31,20,1,"Night"]
["Meorty","ar_meorty001","Undead","Any",null,2,"Very Rare",65,42,1,"Night"]
["Plague Blight","plagueblight001","Undead","Any","Any",2,"Very Rare",6,6,"1 - 6","Night"]
["Psi-Shadow","ds_psishadow001","Outsider (Cold, Extraplanar, Psionic)","Any","The Black",2,"Very Rare",8,6,1,"Night"]
["Shadow Rat, Dire","ar_shadowrat002","Undead","Underground","Any",2,"Very Rare",3,1,"6 - 11","Night"]
["Skeletal Guardian 1","skeleguard001","Undead","Any","Underground",2,"Very Rare",11,10,1,"Night"]
["Skeletal Guardian 2","skeleguard002","Undead","Any","Underground",2,"Very Rare",11,10,1,"Night"]
["Slaughter Wight","slaughterwight01","Undead","Any",null,2,"Very Rare",20,18,"1 to 10","Night"]
["Thinking Zombie, Mul - Epic DwD","thinkzombie003","Undead","Any","Any",2,"Very Rare",30,30,"1 - 4","Night"]
["T'liz","tliz001","Undead","Any",null,2,"Very Rare",37,16,1,"Night"]
["Voidwraith","voidwraith001","Undead (Air, Incorporeal)","Any",null,2,"Very Rare",9,6,"1 - 5","Night"]
["Wheep","wheep001","Undead","Cold Mountains",null,2,"Very Rare",12,9,"1 - 10","Night"]
["Winterwight","winterwight001","Undead","Any",null,2,"Very Rare",41,32,"1 to 2","Night"]
["Wraith [AR]","ar_wraith001","Undead","Any",null,2,"Very Rare",7,5,"2 - 11","Night"]
["Wraith, Dread","ar_wraith002","Undead","Any",null,2,"Very Rare",23,16,1,"Night"]

{"sheet":"Mountain - Day","index":5,"n_rows":89,"n_cols":22,"rows_kept":89}
["Case","#","SpawnVar","RezRef","CR Var","CR",null,"iMinNum","Min",null,"iMaxNum","Max",null,"iWeight","Value",null,"Name",null,"Frequency",null,"HD"]
["case ",0,":sChoice = \"","ar_rat001","\";  fCR = ",0.15,";  ","iMinNum = ",10,"; ","iMaxNum = ",50,"; ","iWeight = ",16,"; break; // ","Rat, Common"," || FQ: ","Common"," || HD: ",1,{"$f":"CONCATENATE(A2, B2, C2, D2, E2,F2,G2,H2,I2,J2,K2,L2,M2,N2,O2,P2,Q2, R2, S2, T2, U2)","v":"case 0:sChoice = \"ar_rat001\";  fCR = 0.15;  iMinNum = 10; iMaxNum = 50; iWeight = 16; break; // Rat, Common || FQ: Common || HD: 1"}]
["case ",{"$f":"SUM(B2+1)","v":1},":sChoice = \"","ds_critic001","\";  fCR = ",0.5,";  ","iMinNum = ",1,"; ","iMaxNum = ",1,"; ","iWeight = ",8,"; break; // ","Lizard: Critic"," || FQ: ","Uncommon"," || HD: ",1,{"$f":"CONCATENATE(A3, B3, C3, D3, E3,F3,G3,H3,I3,J3,K3,L3,M3,N3,O3,P3,Q3, R3, S3, T3, U3)","v":"case 1:sChoice = \"ds_critic001\";  fCR = 0.5;  iMinNum = 1; iMaxNum = 1; iWeight = 8; break; // Lizard: Critic || FQ: Uncommon || HD: 1"}]
["case ",{"$f":"SUM(B3+1)","v":2},":sChoice = \"","aarakocra001","\";  fCR = ",0.5,";  ","iMinNum = ",1,"; ","iMaxNum = ",1,"; ","iWeight = ",4,"; break; // ","Aarakocra, Common"," || FQ: ","Rare"," || HD: ",1,"case 2:sChoice = \"aarakocra001\";  fCR = 0.5;  iMinNum = 1; iMaxNum = 1; iWeight = 4; break; // Aarakocra, Common || FQ: Rare || HD: 1"]
["case ",3,":sChoice = \"","ds_lboneclaw001","\";  fCR = ",1,".0;  ","iMinNum = ",2,"; ","iMaxNum = ",20,"; ","iWeight = ",8,"; break; // ","Boneclaw, Lesser"," || FQ: ","Uncommon"," || HD: ",0.5,"case 3:sChoice = \"ds_lboneclaw001\";  fCR = 1.0;  iMinNum = 2; iMaxNum = 20; iWeight = 8; break; // Boneclaw, Lesser || FQ: Uncommon || HD: 0.5"]
["case ",4,":sChoice = \"","ds_kestrekel001","\";  fCR = ",1,".0;  ","iMinNum = ",3,"; ","iMaxNum = ",15,"; ","iWeight = ",8,"; break; // ","Kes'trekel"," || FQ: ","Uncommon"," || HD: ",1,"case 4:sChoice = \"ds_kestrekel001\";  fCR = 1.0;  iMinNum = 3; iMaxNum = 15; iWeight = 8; break; // Kes'trekel || FQ: Uncommon || HD: 1"]
["case ",5,":sChoice = \"","ds_shaqat001","\";  fCR = ",1,".0;  ","iMinNum = ",2,"; ","iMaxNum = ",4,"; ","iWeight = ",4,"; break; // ","Beetle: Shaqat"," || FQ: ","Rare"," || HD: ",1,"case 5:sChoice = \"ds_shaqat001\";  fCR = 1.0;  iMinNum = 2; iMaxNum = 4; iWeight = 4; break; // Beetle: Shaqat || FQ: Rare || HD: 1"]
["case ",6,":sChoice = \"","ar_kreen_001","\";  fCR = ",2,".0;  ","iMinNum = ",1,"; ","iMaxNum = ",1,"; ","iWeight = ",8,"; break; // ","Thri-kreen, Common"," || FQ: ","Uncommon"," || HD: ",2,"case 6:sChoice = \"ar_kreen_001\";  fCR = 2.0;  iMinNum = 1; iMaxNum = 1; iWeight = 8; break; // Thri-kreen, Common || FQ: Uncommon || HD: 2"]
["case ",7,":sChoice = \"","zhackal001","\";  fCR = ",3,".0;  ","iMinNum = ",1,"; ","iMaxNum = ",12,"; ","iWeight = ",4,"; break; // ","Zhackal"," || FQ: ","Rare"," || HD: ",1,"case 7:sChoice = \"zhackal001\";  fCR = 3.0;  iMinNum = 1; iMaxNum = 12; iWeight = 4; break; // Zhackal || FQ: Rare || HD: 1"]
["case ",8,":sChoice = \"","direrat_002","\";  fCR = ",3,".0;  ","iMinNum = ",1,"; ","iMaxNum = ",4,"; ","iWeight = ",8,"; break; // ","Rat, Dire - Greater"," || FQ: ","Uncommon"," || HD: ",3,"case 8:sChoice = \"direrat_002\";  fCR = 3.0;  iMinNum = 1; iMaxNum = 4; iWeight = 8; break; // Rat, Dire - Greater || FQ: Uncommon || HD: 3"]
["case ",9,":sChoice = \"","ar_gulgslaver003","\";  fCR = ",3,".0;  ","iMinNum = ",1,"; ","iMaxNum = ",5,"; ","iWeight = ",2,"; break; // ","Gulgan Slaver - Half-elf"," || FQ: ","Very Rare"," || HD: ",4,"case 9:sChoice = \"ar_gulgslaver003\";  fCR = 3.0;  iMinNum = 1; iMaxNum = 5; iWeight = 2; break; // Gulgan Slaver - Half-elf || FQ: Very Rare || HD: 4"]
["case ",10,":sChoice = \"","halfbandit_001","\";  fCR = ",3,".0;  ","iMinNum = ",1,"; ","iMaxNum = ",3,"; ","iWeight = ",4,"; break; // ","Bandit, Halfling - Daggers"," || FQ: ","Rare"," || HD: ",3,"case 10:sChoice = \"halfbandit_001\";  fCR = 3.0;  iMinNum = 1; iMaxNum = 3; iWeight = 4; break; // Bandit, Halfling - Daggers || FQ: Rare || HD: 3"]
["case ",11,":sChoice = \"","banditguard_001","\";  fCR = ",3,".0;  ","iMinNum = ",1,"; ","iMaxNum = ",5,"; ","iWeight = ",8,"; break; // ","Bandit Guard - Trikal"," || FQ: ","Uncommon"," || HD: ",4,"case 11:sChoice = \"banditguard_001\";  fCR = 3.0;  iMinNum = 1; iMaxNum = 5; iWeight = 8; break; // Bandit Guard - Trikal || FQ: Uncommon || HD: 4"]
["case ",12,":sChoice = \"","humanbandit_002","\";  fCR = ",3,".0;  ","iMinNum = ",1,"; ","iMaxNum = ",3,"; ","iWeight = ",8,"; break; // ","Bandit, Human - Psionic"," || FQ: ","Uncommon"," || HD: ",3,"case 12:sChoice = \"humanbandit_002\";  fCR = 3.0;  iMinNum = 1; iMaxNum = 3; iWeight = 8; break; // Bandit, Human - Psionic || FQ: Uncommon || HD: 3"]
["case ",13,":sChoice = \"","humanbandit_001","\";  fCR = ",3,".0;  ","iMinNum = ",1,"; ","iMaxNum = ",5,"; ","iWeight = ",8,"; break; // ","Bandit, Human - Short Sword"," || FQ: ","Uncommon"," || HD: ",3,"case 13:sChoice = \"humanbandit_001\";  fCR = 3.0;  iMinNum = 1; iMaxNum = 5; iWeight = 8; break; // Bandit, Human - Short Sword || FQ: Uncommon || HD: 3"]
["case ",14,":sChoice = \"","wildmul001","\";  fCR = ",3,".0;  ","iMinNum = ",2,"; ","iMaxNum = ",7,"; ","iWeight = ",16,"; break; // ","Mul, Wild - Battleaxe"," || FQ: ","Common"," || HD: ",3,"case 14:sChoice = \"wildmul001\";  fCR = 3.0;  iMinNum = 2; iMaxNum = 7; iWeight = 16; break; // Mul, Wild - Battleaxe || FQ: Common || HD: 3"]
["case ",15,":sChoice = \"","ar_ssurran_001","\";  fCR = ",3,".0;  ","iMinNum = ",3,"; ","iMaxNum = ",10,"; ","iWeight = ",8,"; break; // ","Ssurran, Common"," || FQ: ","Uncommon"," || HD: ",3,"case 15:sChoice = \"ar_ssurran_001\";  fCR = 3.0;  iMinNum = 3; iMaxNum = 10; iWeight = 8; break; // Ssurran, Common || FQ: Uncommon || HD: 3"]
["case ",16,":sChoice = \"","ds_strine001","\";  fCR = ",4,".0;  ","iMinNum = ",1,"; ","iMaxNum = ",4,"; ","iWeight = ",16,"; break; // ","Strine"," || FQ: ","Common"," || HD: ",6,"case 16:sChoice = \"ds_strine001\";  fCR = 4.0;  iMinNum = 1; iMaxNum = 4; iWeight = 16; break; // Strine || FQ: Common || HD: 6"]
["case ",17,":sChoice = \"","zhackal002","\";  fCR = ",4,".0;  ","iMinNum = ",2,"; ","iMaxNum = ",6,"; ","iWeight = ",4,"; break; // ","Zhackal, Greater"," || FQ: ","Rare"," || HD: ",3,"case 17:sChoice = \"zhackal002\";  fCR = 4.0;  iMinNum = 2; iMaxNum = 6; iWeight = 4; break; // Zhackal, Greater || FQ: Rare || HD: 3"]
["case ",18,":sChoice = \"","elem_air_sm001","\";  fCR = ",4,".0;  ","iMinNum = ",1,"; ","iMaxNum = ",1,"; ","iWeight = ",4,"; break; // ","[AR] Air Elemental, Small"," || FQ: ","Rare"," || HD: ",2,"case 18:sChoice = \"elem_air_sm001\";  fCR = 4.0;  iMinNum = 1; iMaxNum = 1; iWeight = 4; break; // [AR] Air Elemental, Small || FQ: Rare || HD: 2"]
["case ",19,":sChoice = \"","elem_sun_sm001","\";  fCR = ",4,".0;  ","iMinNum = ",1,"; ","iMaxNum = ",1,"; ","iWeight = ",4,"; break; // ","Sun Paraelemental, Small"," || FQ: ","Rare"," || HD: ",2,"case 19:sChoice = \"elem_sun_sm001\";  fCR = 4.0;  iMinNum = 1; iMaxNum = 1; iWeight = 4; break; // Sun Paraelemental, Small || FQ: Rare || HD: 2"]
["case ",20,":sChoice = \"","ds_baazrag001","\";  fCR = ",4,".0;  ","iMinNum = ",1,"; ","iMaxNum = ",12,"; ","iWeight = ",8,"; break; // ","Baazrag"," || FQ: ","Uncommon"," || HD: ",4,"case 20:sChoice = \"ds_baazrag001\";  fCR = 4.0;  iMinNum = 1; iMaxNum = 12; iWeight = 8; break; // Baazrag || FQ: Uncommon || HD: 4"]
["case ",21,":sChoice = \"","banditguard_001","\";  fCR = ",4,".0;  ","iMinNum = ",1,"; ","iMaxNum = ",8,"; ","iWeight = ",2,"; break; // ","Bandit Guard, Mul - Short Swords"," || FQ: ","Very Rare"," || HD: ",4,"case 21:sChoice = \"banditguard_001\";  fCR = 4.0;  iMinNum = 1; iMaxNum = 8; iWeight = 2; break; // Bandit Guard, Mul - Short Swords || FQ: Very Rare || HD: 4"]
["case ",22,":sChoice = \"","ar_mepsteam001","\";  fCR = ",4,".0;  ","iMinNum = ",1,"; ","iMaxNum = ",12,"; ","iWeight = ",4,"; break; // ","Mephit, Steam"," || FQ: ","Rare"," || HD: ",3,"case 22:sChoice = \"ar_mepsteam001\";  fCR = 4.0;  iMinNum = 1; iMaxNum = 12; iWeight = 4; break; // Mephit, Steam || FQ: Rare || HD: 3"]
["case ",23,":sChoice = \"","ar_scrbeetle_001","\";  fCR = ",4,".0;  ","iMinNum = ",2,"; ","iMaxNum = ",8,"; ","iWeight = ",8,"; break; // ","Screamer Beetle"," || FQ: ","Uncommon"," || HD: ",3,"case 23:sChoice = \"ar_scrbeetle_001\";  fCR = 4.0;  iMinNum = 2; iMaxNum = 8; iWeight = 8; break; // Screamer Beetle || FQ: Uncommon || HD: 3"]
["case ",24,":sChoice = \"","direrat_003","\";  fCR = ",5,".0;  ","iMinNum = ",1,"; ","iMaxNum = ",1,"; ","iWeight = ",4,"; break; // ","Rat, Dire - Elder"," || FQ: ","Rare"," || HD: ",6,"case 24:sChoice = \"direrat_003\";  fCR = 5.0;  iMinNum = 1; iMaxNum = 1; iWeight = 4; break; // Rat, Dire - Elder || FQ: Rare || HD: 6"]
["case ",25,":sChoice = \"","ds_takis001","\";  fCR = ",5,".0;  ","iMinNum = ",1,"; ","iMaxNum = ",2,"; ","iWeight = ",8,"; break; // ","Takis"," || FQ: ","Uncommon"," || HD: ",5,"case 25:sChoice = \"ds_takis001\";  fCR = 5.0;  iMinNum = 1; iMaxNum = 2; iWeight = 8; break; // Takis || FQ: Uncommon || HD: 5"]
["case ",26,":sChoice = \"","ar_skyrossent001","\";  fCR = ",5,".0;  ","iMinNum = ",3,"; ","iMaxNum = ",8,"; ","iWeight = ",4,"; break; // ","Marble Sentinel, Skyros"," || FQ: ","Rare"," || HD: ",3,"case 26:sChoice = \"ar_skyrossent001\";  fCR = 5.0;  iMinNum = 3; iMaxNum = 8; iWeight = 4; break; // Marble Sentinel, Skyros || FQ: Rare || HD: 3"]
["case ",27,":sChoice = \"","tarek_001","\";  fCR = ",5,".0;  ","iMinNum = ",1,"; ","iMaxNum = ",12,"; ","iWeight = ",8,"; break; // ","Tarek"," || FQ: ","Uncommon"," || HD: ",5,"case 27:sChoice = \"tarek_001\";  fCR = 5.0;  iMinNum = 1; iMaxNum = 12; iWeight = 8; break; // Tarek || FQ: Uncommon || HD: 5"]
["case ",28,":sChoice = \"","tigone001","\";  fCR = ",5,".0;  ","iMinNum = ",1,"; ","iMaxNum = ",4,"; ","iWeight = ",8,"; break; // ","Tigone"," || FQ: ","Uncommon"," || HD: ",4,"case 28:sChoice = \"tigone001\";  fCR = 5.0;  iMinNum = 1; iMaxNum = 4; iWeight = 8; break; // Tigone || FQ: Uncommon || HD: 4"]
["case ",29,":sChoice = \"","ar_mepair001","\";  fCR = ",5,".0;  ","iMinNum = ",1,"; ","iMaxNum = ",12,"; ","iWeight = ",4,"; break; // ","Mephit, Air"," || FQ: ","Rare"," || HD: ",3,"case 29:sChoice = \"ar_mepair001\";  fCR = 5.0;  iMinNum = 1; iMaxNum = 12; iWeight = 4; break; // Mephit, Air || FQ: Rare || HD: 3"]
["case ",30,":sChoice = \"","ar_imp001","\";  fCR = ",5,".0;  ","iMinNum = ",1,"; ","iMaxNum = ",1,"; ","iWeight = ",2,"; break; // ","Imp [AR]"," || FQ: ","Very Rare"," || HD: ",3,"case 30:sChoice = \"ar_imp001\";  fCR = 5.0;  iMinNum = 1; iMaxNum = 1; iWeight = 2; break; // Imp [AR] || FQ: Very Rare || HD: 3"]
["case ",31,":sChoice = \"","ar_hellhound001","\";  fCR = ",5,".0;  ","iMinNum = ",2,"; ","iMaxNum = ",8,"; ","iWeight = ",2,"; break; // ","Hell Hound [AR]"," || FQ: ","Very Rare"," || HD: ",4,"case 31:sChoice = \"ar_hellhound001\";  fCR = 5.0;  iMinNum = 2; iMaxNum = 8; iWeight = 2; break; // Hell Hound [AR] || FQ: Very Rare || HD: 4"]
["case ",32,":sChoice = \"","elem_sun_md001","\";  fCR = ",6,".0;  ","iMinNum = ",1,"; ","iMaxNum = ",1,"; ","iWeight = ",4,"; break; // ","Sun Paraelemental, Medium"," || FQ: ","Rare"," || HD: ",4,"case 32:sChoice = \"elem_sun_md001\";  fCR = 6.0;  iMinNum = 1; iMaxNum = 1; iWeight = 4; break; // Sun Paraelemental, Medium || FQ: Rare || HD: 4"]
["case ",33,":sChoice = \"","ds_tulk001","\";  fCR = ",6,".0;  ","iMinNum = ",1,"; ","iMaxNum = ",20,"; ","iWeight = ",8,"; break; // ","Tul'k"," || FQ: ","Uncommon"," || HD: ",5,"case 33:sChoice = \"ds_tulk001\";  fCR = 6.0;  iMinNum = 1; iMaxNum = 20; iWeight = 8; break; // Tul'k || FQ: Uncommon || HD: 5"]
["case ",34,":sChoice = \"","dunebandit_001","\";  fCR = ",6,".0;  ","iMinNum = ",1,"; ","iMaxNum = ",8,"; ","iWeight = ",2,"; break; // ","Dune Bandit, Mul - Longsword"," || FQ: ","Very Rare"," || HD: ",6,"case 34:sChoice = \"dunebandit_001\";  fCR = 6.0;  iMinNum = 1; iMaxNum = 8; iWeight = 2; break; // Dune Bandit, Mul - Longsword || FQ: Very Rare || HD: 6"]
["case ",35,":sChoice = \"","windwalker001","\";  fCR = ",7,".0;  ","iMinNum = ",1,"; ","iMaxNum = ",4,"; ","iWeight = ",2,"; break; // ","Wind Walker"," || FQ: ","Very  Rare"," || HD: ",6,"case 35:sChoice = \"windwalker001\";  fCR = 7.0;  iMinNum = 1; iMaxNum = 4; iWeight = 2; break; // Wind Walker || FQ: Very  Rare || HD: 6"]
["case ",36,":sChoice = \"","elem_air_md001","\";  fCR = ",7,".0;  ","iMinNum = ",1,"; ","iMaxNum = ",1,"; ","iWeight = ",4,"; break; // ","[AR] Air Elemental, Medium"," || FQ: ","Rare"," || HD: ",4,"case 36:sChoice = \"elem_air_md001\";  fCR = 7.0;  iMinNum = 1; iMaxNum = 1; iWeight = 4; break; // [AR] Air Elemental, Medium || FQ: Rare || HD: 4"]
["case ",37,":sChoice = \"","dunebandit_002","\";  fCR = ",7,".0;  ","iMinNum = ",1,"; ","iMaxNum = ",5,"; ","iWeight = ",8,"; break; // ","Dune Bandit - Longbow"," || FQ: ","Uncommon"," || HD: ",7,"case 37:sChoice = \"dunebandit_002\";  fCR = 7.0;  iMinNum = 1; iMaxNum = 5; iWeight = 8; break; // Dune Bandit - Longbow || FQ: Uncommon || HD: 7"]
["case ",38,":sChoice = \"","ar_defiler_001","\";  fCR = ",7,".0;  ","iMinNum = ",1,"; ","iMaxNum = ",5,"; ","iWeight = ",4,"; break; // ","Defiler, Apprentice"," || FQ: ","Rare"," || HD: ",8,"case 38:sChoice = \"ar_defiler_001\";  fCR = 7.0;  iMinNum = 1; iMaxNum = 5; iWeight = 4; break; // Defiler, Apprentice || FQ: Rare || HD: 8"]
["case ",39,":sChoice = \"","shardspider001","\";  fCR = ",7,".0;  ","iMinNum = ",1,"; ","iMaxNum = ",2,"; ","iWeight = ",4,"; break; // ","Shard Spider"," || FQ: ","Rare"," || HD: ",6,"case 39:sChoice = \"shardspider001\";  fCR = 7.0;  iMinNum = 1; iMaxNum = 2; iWeight = 4; break; // Shard Spider || FQ: Rare || HD: 6"]
["case ",40,":sChoice = \"","ruve001","\";  fCR = ",7,".0;  ","iMinNum = ",1,"; ","iMaxNum = ",8,"; ","iWeight = ",8,"; break; // ","Ruve"," || FQ: ","Uncommon"," || HD: ",4,"case 40:sChoice = \"ruve001\";  fCR = 7.0;  iMinNum = 1; iMaxNum = 8; iWeight = 8; break; // Ruve || FQ: Uncommon || HD: 4"]
["case ",41,":sChoice = \"","ds_flailer001","\";  fCR = ",7,".0;  ","iMinNum = ",1,"; ","iMaxNum = ",1,"; ","iWeight = ",4,"; break; // ","Flailer"," || FQ: ","Rare"," || HD: ",6,"case 41:sChoice = \"ds_flailer001\";  fCR = 7.0;  iMinNum = 1; iMaxNum = 1; iWeight = 4; break; // Flailer || FQ: Rare || HD: 6"]
["case ",42,":sChoice = \"","ds_gboneclaw001","\";  fCR = ",7,".0;  ","iMinNum = ",1,"; ","iMaxNum = ",1,"; ","iWeight = ",8,"; break; // ","Boneclaw, Greater"," || FQ: ","Uncommon"," || HD: ",6,"case 42:sChoice = \"ds_gboneclaw001\";  fCR = 7.0;  iMinNum = 1; iMaxNum = 1; iWeight = 8; break; // Boneclaw, Greater || FQ: Uncommon || HD: 6"]
["case ",43,":sChoice = \"","blkmastyrial_001","\";  fCR = ",7,".0;  ","iMinNum = ",5,"; ","iMaxNum = ",20,"; ","iWeight = ",8,"; break; // ","Mastyrial, Black"," || FQ: ","Uncommon"," || HD: ",8,"case 43:sChoice = \"blkmastyrial_001\";  fCR = 7.0;  iMinNum = 5; iMaxNum = 20; iWeight = 8; break; // Mastyrial, Black || FQ: Uncommon || HD: 8"]
["case ",44,":sChoice = \"","aarakocra005","\";  fCR = ",7,".0;  ","iMinNum = ",1,"; ","iMaxNum = ",1,"; ","iWeight = ",2,"; break; // ","Aarakocra, Scout"," || FQ: ","Very Rare"," || HD: ",10,"case 44:sChoice = \"aarakocra005\";  fCR = 7.0;  iMinNum = 1; iMaxNum = 1; iWeight = 2; break; // Aarakocra, Scout || FQ: Very Rare || HD: 10"]
["case ",45,":sChoice = \"","ar_ssurran_002","\";  fCR = ",7,".0;  ","iMinNum = ",1,"; ","iMaxNum = ",4,"; ","iWeight = ",8,"; break; // ","Ssurran, Raider"," || FQ: ","Uncommon"," || HD: ",7,"case 45:sChoice = \"ar_ssurran_002\";  fCR = 7.0;  iMinNum = 1; iMaxNum = 4; iWeight = 8; break; // Ssurran, Raider || FQ: Uncommon || HD: 7"]
["case ",46,":sChoice = \"","ar_hawk002","\";  fCR = ",8,".0;  ","iMinNum = ",1,"; ","iMaxNum = ",2,"; ","iWeight = ",8,"; break; // ","Hawk, Dire"," || FQ: ","Uncommon"," || HD: ",5,"case 46:sChoice = \"ar_hawk002\";  fCR = 8.0;  iMinNum = 1; iMaxNum = 2; iWeight = 8; break; // Hawk, Dire || FQ: Uncommon || HD: 5"]
["case ",47,":sChoice = \"","ar_onyxsent001","\";  fCR = ",8,".0;  ","iMinNum = ",3,"; ","iMaxNum = ",6,"; ","iWeight = ",4,"; break; // ","Marble Sentinel, Onyx"," || FQ: ","Rare"," || HD: ",6,"case 47:sChoice = \"ar_onyxsent001\";  fCR = 8.0;  iMinNum = 3; iMaxNum = 6; iWeight = 4; break; // Marble Sentinel, Onyx || FQ: Rare || HD: 6"]
["case ",48,":sChoice = \"","aarakocra004","\";  fCR = ",8,".0;  ","iMinNum = ",1,"; ","iMaxNum = ",1,"; ","iWeight = ",2,"; break; // ","Aarakocra, Druid"," || FQ: ","Very Rare"," || HD: ",10,"case 48:sChoice = \"aarakocra004\";  fCR = 8.0;  iMinNum = 1; iMaxNum = 1; iWeight = 2; break; // Aarakocra, Druid || FQ: Very Rare || HD: 10"]
["case ",49,":sChoice = \"","aarakocra006","\";  fCR = ",8,".0;  ","iMinNum = ",1,"; ","iMaxNum = ",1,"; ","iWeight = ",2,"; break; // ","Aarakocra, Preserver"," || FQ: ","Very Rare"," || HD: ",10,"case 49:sChoice = \"aarakocra006\";  fCR = 8.0;  iMinNum = 1; iMaxNum = 1; iWeight = 2; break; // Aarakocra, Preserver || FQ: Very Rare || HD: 10"]
["case ",50,":sChoice = \"","aarakocra002","\";  fCR = ",8,".0;  ","iMinNum = ",1,"; ","iMaxNum = ",1,"; ","iWeight = ",2,"; break; // ","Aarakocra, Shaman"," || FQ: ","Very Rare"," || HD: ",10,"case 50:sChoice = \"aarakocra002\";  fCR = 8.0;  iMinNum = 1; iMaxNum = 1; iWeight = 2; break; // Aarakocra, Shaman || FQ: Very Rare || HD: 10"]
["case ",51,":sChoice = \"","aarakocra003","\";  fCR = ",8,".0;  ","iMinNum = ",1,"; ","iMaxNum = ",1,"; ","iWeight = ",2,"; break; // ","Aarakocra, Warrior"," || FQ: ","Very Rare"," || HD: ",10,"case 51:sChoice = \"aarakocra003\";  fCR = 8.0;  iMinNum = 1; iMaxNum = 1; iWeight = 2; break; // Aarakocra, Warrior || FQ: Very Rare || HD: 10"]
["case ",52,":sChoice = \"","ar_firenymph001","\";  fCR = ",8,".0;  ","iMinNum = ",1,"; ","iMaxNum = ",1,"; ","iWeight = ",2,"; break; // ","Fire Nymph"," || FQ: ","Very Rare"," || HD: ",6,"case 52:sChoice = \"ar_firenymph001\";  fCR = 8.0;  iMinNum = 1; iMaxNum = 1; iWeight = 2; break; // Fire Nymph || FQ: Very Rare || HD: 6"]
["case ",53,":sChoice = \"","ar_invstalk001","\";  fCR = ",9,".0;  ","iMinNum = ",1,"; ","iMaxNum = ",1,"; ","iWeight = ",2,"; break; // ","Invisible Stalker [AR]"," || FQ: ","Very Rare"," || HD: ",8,"case 53:sChoice = \"ar_invstalk001\";  fCR = 9.0;  iMinNum = 1; iMaxNum = 1; iWeight = 2; break; // Invisible Stalker [AR] || FQ: Very Rare || HD: 8"]
["case ",54,":sChoice = \"","ar_defiler_002","\";  fCR = ",9,".0;  ","iMinNum = ",1,"; ","iMaxNum = ",3,"; ","iWeight = ",2,"; break; // ","Defiler, Journeyman"," || FQ: ","Very Rare"," || HD: ",10,"case 54:sChoice = \"ar_defiler_002\";  fCR = 9.0;  iMinNum = 1; iMaxNum = 3; iWeight = 2; break; // Defiler, Journeyman || FQ: Very Rare || HD: 10"]
["case ",55,":sChoice = \"","ruve002","\";  fCR = ",9,".0;  ","iMinNum = ",1,"; ","iMaxNum = ",2,"; ","iWeight = ",4,"; break; // ","Ruve, Greater"," || FQ: ","Rare"," || HD: ",8,"case 55:sChoice = \"ruve002\";  fCR = 9.0;  iMinNum = 1; iMaxNum = 2; iWeight = 4; break; // Ruve, Greater || FQ: Rare || HD: 8"]
["case ",56,":sChoice = \"","xerichou001","\";  fCR = ",9,".0;  ","iMinNum = ",6,"; ","iMaxNum = ",18,"; ","iWeight = ",8,"; break; // ","Xerichou"," || FQ: ","Uncommon"," || HD: ",3,"case 56:sChoice = \"xerichou001\";  fCR = 9.0;  iMinNum = 6; iMaxNum = 18; iWeight = 8; break; // Xerichou || FQ: Uncommon || HD: 3"]
["case ",57,":sChoice = \"","blkmastyrial_002","\";  fCR = ",9,".0;  ","iMinNum = ",1,"; ","iMaxNum = ",4,"; ","iWeight = ",4,"; break; // ","Mastyrial, Black, Greater"," || FQ: ","Rare"," || HD: ",12,"case 57:sChoice = \"blkmastyrial_002\";  fCR = 9.0;  iMinNum = 1; iMaxNum = 4; iWeight = 4; break; // Mastyrial, Black, Greater || FQ: Rare || HD: 12"]
["case ",58,":sChoice = \"","tarek_002","\";  fCR = ",10,".0;  ","iMinNum = ",1,"; ","iMaxNum = ",1,"; ","iWeight = ",4,"; break; // ","Tarek, Chieftain"," || FQ: ","Rare"," || HD: ",12,"case 58:sChoice = \"tarek_002\";  fCR = 10.0;  iMinNum = 1; iMaxNum = 1; iWeight = 4; break; // Tarek, Chieftain || FQ: Rare || HD: 12"]
["case ",59,":sChoice = \"","ds_zik_trin_ak01","\";  fCR = ",10,".0;  ","iMinNum = ",1,"; ","iMaxNum = ",4,"; ","iWeight = ",2,"; break; // ","Zik-trin'ak"," || FQ: ","Very Rare"," || HD: ",8,"case 59:sChoice = \"ds_zik_trin_ak01\";  fCR = 10.0;  iMinNum = 1; iMaxNum = 4; iWeight = 2; break; // Zik-trin'ak || FQ: Very Rare || HD: 8"]
["case ",60,":sChoice = \"","ds_styr001","\";  fCR = ",11,".0;  ","iMinNum = ",1,"; ","iMaxNum = ",1,"; ","iWeight = ",4,"; break; // ","Styr"," || FQ: ","Rare"," || HD: ",14,"case 60:sChoice = \"ds_styr001\";  fCR = 11.0;  iMinNum = 1; iMaxNum = 1; iWeight = 4; break; // Styr || FQ: Rare || HD: 14"]
["case ",61,":sChoice = \"","elvenraider002","\";  fCR = ",11,".0;  ","iMinNum = ",1,"; ","iMaxNum = ",1,"; ","iWeight = ",4,"; break; // ","Elven Raider Defiler"," || FQ: ","Rare"," || HD: ",12,"case 61:sChoice = \"elvenraider002\";  fCR = 11.0;  iMinNum = 1; iMaxNum = 1; iWeight = 4; break; // Elven Raider Defiler || FQ: Rare || HD: 12"]
["case ",62,":sChoice = \"","wildmul002","\";  fCR = ",11,".0;  ","iMinNum = ",2,"; ","iMaxNum = ",7,"; ","iWeight = ",8,"; break; // ","Mul, Wild - Dragon's Paw"," || FQ: ","Uncommon"," || HD: ",12,"case 62:sChoice = \"wildmul002\";  fCR = 11.0;  iMinNum = 2; iMaxNum = 7; iWeight = 8; break; // Mul, Wild - Dragon's Paw || FQ: Uncommon || HD: 12"]
["case ",63,":sChoice = \"","ar_bloodsent001","\";  fCR = ",12,".0;  ","iMinNum = ",3,"; ","iMaxNum = ",5,"; ","iWeight = ",4,"; break; // ","Marble Sentinel, Bloodstone"," || FQ: ","Rare"," || HD: ",9,{"$f":"CONCATENATE(A65, B65, C65, D65, E65,F65,G65,H65,I65,J65,K65,L65,M65,N65,O65,P65,Q65, R65, S65, T65, U65)","v":"case 63:sChoice = \"ar_bloodsent001\";  fCR = 12.0;  iMinNum = 3; iMaxNum = 5; iWeight = 4; break; // Marble Sentinel, Bloodstone || FQ: Rare || HD: 9"}]
["case ",64,":sChoice = \"","xerichou002","\";  fCR = ",12,".0;  ","iMinNum = ",3,"; ","iMaxNum = ",18,"; ","iWeight = ",4,"; break; // ","Xerichou, Greater"," || FQ: ","Rare"," || HD: ",3,"case 64:sChoice = \"xerichou002\";  fCR = 12.0;  iMinNum = 3; iMaxNum = 18; iWeight = 4; break; // Xerichou, Greater || FQ: Rare || HD: 3"]
["case ",65,":sChoice = \"","ds_zik_trin_ta01","\";  fCR = ",12,".0;  ","iMinNum = ",1,"; ","iMaxNum = ",4,"; ","iWeight = ",2,"; break; // ","Zik-trin’ta"," || FQ: ","Very Rare"," || HD: ",7,"case 65:sChoice = \"ds_zik_trin_ta01\";  fCR = 12.0;  iMinNum = 1; iMaxNum = 4; iWeight = 2; break; // Zik-trin’ta || FQ: Very Rare || HD: 7"]
["case ",{"$f":"SUM(B67+1)","v":66},":sChoice = \"","ds_mtn_stalker01","\";  fCR = ",13,".0;  ","iMinNum = ",1,"; ","iMaxNum = ",2,"; ","iWeight = ",4,"; break; // ","Mountain Stalker"," || FQ: ","Rare"," || HD: ",10,"case 66:sChoice = \"ds_mtn_stalker01\";  fCR = 13.0;  iMinNum = 1; iMaxNum = 2; iWeight = 4; break; // Mountain Stalker || FQ: Rare || HD: 10"]
["case ",67,":sChoice = \"","elem_air_lg001","\";  fCR = ",13,".0;  ","iMinNum = ",1,"; ","iMaxNum = ",1,"; ","iWeight = ",4,"; break; // ","[AR] Air Elemental, Large"," || FQ: ","Rare"," || HD: ",8,"case 67:sChoice = \"elem_air_lg001\";  fCR = 13.0;  iMinNum = 1; iMaxNum = 1; iWeight = 4; break; // [AR] Air Elemental, Large || FQ: Rare || HD: 8"]
["case ",68,":sChoice = \"","elem_sun_lg001","\";  fCR = ",13,".0;  ","iMinNum = ",1,"; ","iMaxNum = ",1,"; ","iWeight = ",4,"; break; // ","Sun Paraelemental, Large"," || FQ: ","Rare"," || HD: ",8,"case 68:sChoice = \"elem_sun_lg001\";  fCR = 13.0;  iMinNum = 1; iMaxNum = 1; iWeight = 4; break; // Sun Paraelemental, Large || FQ: Rare || HD: 8"]
["case ",69,":sChoice = \"","ar_kreen_002","\";  fCR = ",13,".0;  ","iMinNum = ",1,"; ","iMaxNum = ",1,"; ","iWeight = ",4,"; break; // ","Thri-kreen, Ranger"," || FQ: ","Rare"," || HD: ",12,"case 69:sChoice = \"ar_kreen_002\";  fCR = 13.0;  iMinNum = 1; iMaxNum = 1; iWeight = 4; break; // Thri-kreen, Ranger || FQ: Rare || HD: 12"]
["case ",70,":sChoice = \"","cyclops001","\";  fCR = ",14,".0;  ","iMinNum = ",2,"; ","iMaxNum = ",10,"; ","iWeight = ",8,"; break; // ","Cyclops, Common"," || FQ: ","Uncommon"," || HD: ",13,"case 70:sChoice = \"cyclops001\";  fCR = 14.0;  iMinNum = 2; iMaxNum = 10; iWeight = 8; break; // Cyclops, Common || FQ: Uncommon || HD: 13"]
["case ",71,":sChoice = \"","ar_kreen_003","\";  fCR = ",14,".0;  ","iMinNum = ",1,"; ","iMaxNum = ",1,"; ","iWeight = ",4,"; break; // ","Thri-kreen, Druid"," || FQ: ","Rare"," || HD: ",12,"case 71:sChoice = \"ar_kreen_003\";  fCR = 14.0;  iMinNum = 1; iMaxNum = 1; iWeight = 4; break; // Thri-kreen, Druid || FQ: Rare || HD: 12"]
["case ",72,":sChoice = \"","ar_ebonsent001","\";  fCR = ",16,".0;  ","iMinNum = ",2,"; ","iMaxNum = ",4,"; ","iWeight = ",4,"; break; // ","Marble Sentinel, Ebon"," || FQ: ","Rare"," || HD: ",12,"case 72:sChoice = \"ar_ebonsent001\";  fCR = 16.0;  iMinNum = 2; iMaxNum = 4; iWeight = 4; break; // Marble Sentinel, Ebon || FQ: Rare || HD: 12"]
["case ",73,":sChoice = \"","drake_fire001","\";  fCR = ",16,".0;  ","iMinNum = ",1,"; ","iMaxNum = ",1,"; ","iWeight = ",2,"; break; // ","Drake, Fire"," || FQ: ","Very Rare"," || HD: ",20,"case 73:sChoice = \"drake_fire001\";  fCR = 16.0;  iMinNum = 1; iMaxNum = 1; iWeight = 2; break; // Drake, Fire || FQ: Very Rare || HD: 20"]
["case ",74,":sChoice = \"","drake_water001","\";  fCR = ",16,".0;  ","iMinNum = ",1,"; ","iMaxNum = ",1,"; ","iWeight = ",2,"; break; // ","Drake, Water"," || FQ: ","Very Rare"," || HD: ",20,"case 74:sChoice = \"drake_water001\";  fCR = 16.0;  iMinNum = 1; iMaxNum = 1; iWeight = 2; break; // Drake, Water || FQ: Very Rare || HD: 20"]
["case ",75,":sChoice = \"","wildmul003","\";  fCR = ",17,".0;  ","iMinNum = ",2,"; ","iMaxNum = ",7,"; ","iWeight = ",8,"; break; // ","Mul, Wild - Darts"," || FQ: ","Uncommon"," || HD: ",17,"case 75:sChoice = \"wildmul003\";  fCR = 17.0;  iMinNum = 2; iMaxNum = 7; iWeight = 8; break; // Mul, Wild - Darts || FQ: Uncommon || HD: 17"]
["case ",76,":sChoice = \"","drake_earth001","\";  fCR = ",19,".0;  ","iMinNum = ",1,"; ","iMaxNum = ",1,"; ","iWeight = ",2,"; break; // ","Drake, Earth"," || FQ: ","Very Rare"," || HD: ",25,"case 76:sChoice = \"drake_earth001\";  fCR = 19.0;  iMinNum = 1; iMaxNum = 1; iWeight = 2; break; // Drake, Earth || FQ: Very Rare || HD: 25"]
["case ",77,":sChoice = \"","drake_sun001","\";  fCR = ",23,".0;  ","iMinNum = ",1,"; ","iMaxNum = ",1,"; ","iWeight = ",2,"; break; // ","Drake, Sun"," || FQ: ","Very Rare"," || HD: ",20,"case 77:sChoice = \"drake_sun001\";  fCR = 23.0;  iMinNum = 1; iMaxNum = 1; iWeight = 2; break; // Drake, Sun || FQ: Very Rare || HD: 20"]
["case ",78,":sChoice = \"","drake_air001","\";  fCR = ",23,".0;  ","iMinNum = ",1,"; ","iMaxNum = ",1,"; ","iWeight = ",2,"; break; // ","Drake, Air"," || FQ: ","Very Rare"," || HD: ",25,"case 78:sChoice = \"drake_air001\";  fCR = 23.0;  iMinNum = 1; iMaxNum = 1; iWeight = 2; break; // Drake, Air || FQ: Very Rare || HD: 25"]
["case ",79,":sChoice = \"","drake_magma001","\";  fCR = ",23,".0;  ","iMinNum = ",1,"; ","iMaxNum = ",1,"; ","iWeight = ",2,"; break; // ","Drake, Magma"," || FQ: ","Very Rare"," || HD: ",20,"case 79:sChoice = \"drake_magma001\";  fCR = 23.0;  iMinNum = 1; iMaxNum = 1; iWeight = 2; break; // Drake, Magma || FQ: Very Rare || HD: 20"]
["case ",80,":sChoice = \"","elem_sun_hg001","\";  fCR = ",24,".0;  ","iMinNum = ",1,"; ","iMaxNum = ",1,"; ","iWeight = ",4,"; break; // ","Sun Paraelemental, Huge"," || FQ: ","Rare"," || HD: ",16,"case 80:sChoice = \"elem_sun_hg001\";  fCR = 24.0;  iMinNum = 1; iMaxNum = 1; iWeight = 4; break; // Sun Paraelemental, Huge || FQ: Rare || HD: 16"]
["case ",81,":sChoice = \"","ds_mtn_stalker02","\";  fCR = ",25,".0;  ","iMinNum = ",1,"; ","iMaxNum = ",2,"; ","iWeight = ",4,"; break; // ","Mountain Stalker, Greater"," || FQ: ","Rare"," || HD: ",20,"case 81:sChoice = \"ds_mtn_stalker02\";  fCR = 25.0;  iMinNum = 1; iMaxNum = 2; iWeight = 4; break; // Mountain Stalker, Greater || FQ: Rare || HD: 20"]
["case ",82,":sChoice = \"","elem_air_hg001","\";  fCR = ",25,".0;  ","iMinNum = ",1,"; ","iMaxNum = ",1,"; ","iWeight = ",4,"; break; // ","[AR] Air Elemental, Huge"," || FQ: ","Rare"," || HD: ",16,"case 82:sChoice = \"elem_air_hg001\";  fCR = 25.0;  iMinNum = 1; iMaxNum = 1; iWeight = 4; break; // [AR] Air Elemental, Huge || FQ: Rare || HD: 16"]
["case ",83,":sChoice = \"","elem_sun_gr001","\";  fCR = ",32,".0;  ","iMinNum = ",1,"; ","iMaxNum = ",1,"; ","iWeight = ",4,"; break; // ","Sun Paraelemental, Greater"," || FQ: ","Rare"," || HD: ",21,"case 83:sChoice = \"elem_sun_gr001\";  fCR = 32.0;  iMinNum = 1; iMaxNum = 1; iWeight = 4; break; // Sun Paraelemental, Greater || FQ: Rare || HD: 21"]
["case ",84,":sChoice = \"","elem_air_gr001","\";  fCR = ",33,".0;  ","iMinNum = ",1,"; ","iMaxNum = ",1,"; ","iWeight = ",4,"; break; // ","[AR] Air Elemental, Greater"," || FQ: ","Rare"," || HD: ",21,"case 84:sChoice = \"elem_air_gr001\";  fCR = 33.0;  iMinNum = 1; iMaxNum = 1; iWeight = 4; break; // [AR] Air Elemental, Greater || FQ: Rare || HD: 21"]
["case ",85,":sChoice = \"","elem_sun_el001","\";  fCR = ",36,".0;  ","iMinNum = ",1,"; ","iMaxNum = ",1,"; ","iWeight = ",4,"; break; // ","Sun Paraelemental, Elder"," || FQ: ","Rare"," || HD: ",24,"case 85:sChoice = \"elem_sun_el001\";  fCR = 36.0;  iMinNum = 1; iMaxNum = 1; iWeight = 4; break; // Sun Paraelemental, Elder || FQ: Rare || HD: 24"]
["case ",86,":sChoice = \"","elem_air_el001","\";  fCR = ",37,".0;  ","iMinNum = ",1,"; ","iMaxNum = ",1,"; ","iWeight = ",4,"; break; // ","[AR] Air Elemental, Elder"," || FQ: ","Rare"," || HD: ",24,"case 86:sChoice = \"elem_air_el001\";  fCR = 37.0;  iMinNum = 1; iMaxNum = 1; iWeight = 4; break; // [AR] Air Elemental, Elder || FQ: Rare || HD: 24"]
["case ",87,":sChoice = \"","elem_air_pr001","\";  fCR = ",109,".0;  ","iMinNum = ",1,"; ","iMaxNum = ",1,"; ","iWeight = ",2,"; break; // ","Air Elemental, Primal"," || FQ: ","Very  Rare"," || HD: ",60,"case 87:sChoice = \"elem_air_pr001\";  fCR = 109.0;  iMinNum = 1; iMaxNum = 1; iWeight = 2; break; // Air Elemental, Primal || FQ: Very  Rare || HD: 60"]

{"sheet":"Mountain - Night","index":6,"n_rows":69,"n_cols":22,"rows_kept":69}
["Case","#","SpawnVar","RezRef","CR Var","CR",null,"iMinNum","Min",null,"iMaxNum","Max",null,"iWeight","iWeight",null,"Name",null,"Frequency",null,"HD"]
["case ",0,":sChoice = \"","ar_rat001","\";  fCR = ",0.15,";  ","iMinNum = ",10,"; ","iMaxNum = ",50,"; ","iWeight = ",16,"; break; // ","Rat, Common"," || FQ: ","Common"," || HD: ",1,{"$f":"CONCATENATE(A2, B2, C2, D2, E2,F2,G2,H2,I2,J2,K2,L2,M2,N2,O2,P2,Q2, R2, S2, T2, U2)","v":"case 0:sChoice = \"ar_rat001\";  fCR = 0.15;  iMinNum = 10; iMaxNum = 50; iWeight = 16; break; // Rat, Common || FQ: Common || HD: 1"}]
["case ",{"$f":"SUM(B2+1)","v":1},":sChoice = \"","ds_shaqat001","\";  fCR = ",1,".0;  ","iMinNum = ",2,"; ","iMaxNum = ",4,"; ","iWeight = ",4,"; break; // ","Beetle: Shaqat"," || FQ: ","Rare"," || HD: ",1,{"$f":"CONCATENATE(A3, B3, C3, D3, E3,F3,G3,H3,I3,J3,K3,L3,M3,N3,O3,P3,Q3, R3, S3, T3, U3)","v":"case 1:sChoice = \"ds_shaqat001\";  fCR = 1.0;  iMinNum = 2; iMaxNum = 4; iWeight = 4; break; // Beetle: Shaqat || FQ: Rare || HD: 1"}]
["case ",{"$f":"SUM(B3+1)","v":2},":sChoice = \"","ds_jozhal001","\";  fCR = ",2,".0;  ","iMinNum = ",2,"; ","iMaxNum = ",12,"; ","iWeight = ",4,"; break; // ","Jozhal"," || FQ: ","Rare"," || HD: ",1,"case 2:sChoice = \"ds_jozhal001\";  fCR = 2.0;  iMinNum = 2; iMaxNum = 12; iWeight = 4; break; // Jozhal || FQ: Rare || HD: 1"]
["case ",3,":sChoice = \"","ar_kreen_001","\";  fCR = ",2,".0;  ","iMinNum = ",1,"; ","iMaxNum = ",1,"; ","iWeight = ",8,"; break; // ","Thri-kreen, Common"," || FQ: ","Uncommon"," || HD: ",2,"case 3:sChoice = \"ar_kreen_001\";  fCR = 2.0;  iMinNum = 1; iMaxNum = 1; iWeight = 8; break; // Thri-kreen, Common || FQ: Uncommon || HD: 2"]
["case ",4,":sChoice = \"","wildmul001","\";  fCR = ",3,".0;  ","iMinNum = ",2,"; ","iMaxNum = ",7,"; ","iWeight = ",16,"; break; // ","Mul, Wild - Battleaxe"," || FQ: ","Common"," || HD: ",3,"case 4:sChoice = \"wildmul001\";  fCR = 3.0;  iMinNum = 2; iMaxNum = 7; iWeight = 16; break; // Mul, Wild - Battleaxe || FQ: Common || HD: 3"]
["case ",5,":sChoice = \"","zhackal001","\";  fCR = ",3,".0;  ","iMinNum = ",1,"; ","iMaxNum = ",12,"; ","iWeight = ",4,"; break; // ","Zhackal"," || FQ: ","Rare"," || HD: ",1,"case 5:sChoice = \"zhackal001\";  fCR = 3.0;  iMinNum = 1; iMaxNum = 12; iWeight = 4; break; // Zhackal || FQ: Rare || HD: 1"]
["case ",6,":sChoice = \"","direrat_002","\";  fCR = ",3,".0;  ","iMinNum = ",1,"; ","iMaxNum = ",4,"; ","iWeight = ",8,"; break; // ","Rat, Dire - Greater"," || FQ: ","Uncommon"," || HD: ",3,"case 6:sChoice = \"direrat_002\";  fCR = 3.0;  iMinNum = 1; iMaxNum = 4; iWeight = 8; break; // Rat, Dire - Greater || FQ: Uncommon || HD: 3"]
["case ",7,":sChoice = \"","ar_ssurran_001","\";  fCR = ",3,".0;  ","iMinNum = ",3,"; ","iMaxNum = ",10,"; ","iWeight = ",8,"; break; // ","Ssurran, Common"," || FQ: ","Uncommon"," || HD: ",3,"case 7:sChoice = \"ar_ssurran_001\";  fCR = 3.0;  iMinNum = 3; iMaxNum = 10; iWeight = 8; break; // Ssurran, Common || FQ: Uncommon || HD: 3"]
["case ",8,":sChoice = \"","ar_gulgslaver003","\";  fCR = ",3,".0;  ","iMinNum = ",1,"; ","iMaxNum = ",5,"; ","iWeight = ",2,"; break; // ","Gulgan Slaver - Half-elf"," || FQ: ","Very Rare"," || HD: ",4,"case 8:sChoice = \"ar_gulgslaver003\";  fCR = 3.0;  iMinNum = 1; iMaxNum = 5; iWeight = 2; break; // Gulgan Slaver - Half-elf || FQ: Very Rare || HD: 4"]
["case ",9,":sChoice = \"","zhackal002","\";  fCR = ",4,".0;  ","iMinNum = ",2,"; ","iMaxNum = ",6,"; ","iWeight = ",4,"; break; // ","Zhackal, Greater"," || FQ: ","Rare"," || HD: ",3,"case 9:sChoice = \"zhackal002\";  fCR = 4.0;  iMinNum = 2; iMaxNum = 6; iWeight = 4; break; // Zhackal, Greater || FQ: Rare || HD: 3"]
["case ",10,":sChoice = \"","elem_air_sm001","\";  fCR = ",4,".0;  ","iMinNum = ",1,"; ","iMaxNum = ",1,"; ","iWeight = ",4,"; break; // ","[AR] Air Elemental, Small"," || FQ: ","Rare"," || HD: ",2,"case 10:sChoice = \"elem_air_sm001\";  fCR = 4.0;  iMinNum = 1; iMaxNum = 1; iWeight = 4; break; // [AR] Air Elemental, Small || FQ: Rare || HD: 2"]
["case ",11,":sChoice = \"","ar_mepsteam001","\";  fCR = ",4,".0;  ","iMinNum = ",1,"; ","iMaxNum = ",12,"; ","iWeight = ",4,"; break; // ","Mephit, Steam"," || FQ: ","Rare"," || HD: ",3,"case 11:sChoice = \"ar_mepsteam001\";  fCR = 4.0;  iMinNum = 1; iMaxNum = 12; iWeight = 4; break; // Mephit, Steam || FQ: Rare || HD: 3"]
["case ",12,":sChoice = \"","ar_scrbeetle_001","\";  fCR = ",4,".0;  ","iMinNum = ",2,"; ","iMaxNum = ",8,"; ","iWeight = ",8,"; break; // ","Screamer Beetle"," || FQ: ","Uncommon"," || HD: ",3,"case 12:sChoice = \"ar_scrbeetle_001\";  fCR = 4.0;  iMinNum = 2; iMaxNum = 8; iWeight = 8; break; // Screamer Beetle || FQ: Uncommon || HD: 3"]
["case ",13,":sChoice = \"","direrat_003","\";  fCR = ",5,".0;  ","iMinNum = ",1,"; ","iMaxNum = ",1,"; ","iWeight = ",4,"; break; // ","Rat, Dire - Elder"," || FQ: ","Rare"," || HD: ",6,"case 13:sChoice = \"direrat_003\";  fCR = 5.0;  iMinNum = 1; iMaxNum = 1; iWeight = 4; break; // Rat, Dire - Elder || FQ: Rare || HD: 6"]
["case ",14,":sChoice = \"","ar_skyrossent001","\";  fCR = ",5,".0;  ","iMinNum = ",3,"; ","iMaxNum = ",8,"; ","iWeight = ",4,"; break; // ","Marble Sentinel, Skyros"," || FQ: ","Rare"," || HD: ",3,"case 14:sChoice = \"ar_skyrossent001\";  fCR = 5.0;  iMinNum = 3; iMaxNum = 8; iWeight = 4; break; // Marble Sentinel, Skyros || FQ: Rare || HD: 3"]
["case ",15,":sChoice = \"","tchowb_001","\";  fCR = ",5,".0;  ","iMinNum = ",1,"; ","iMaxNum = ",1,"; ","iWeight = ",4,"; break; // ","T'Chowb"," || FQ: ","Rare"," || HD: ",4,"case 15:sChoice = \"tchowb_001\";  fCR = 5.0;  iMinNum = 1; iMaxNum = 1; iWeight = 4; break; // T'Chowb || FQ: Rare || HD: 4"]
["case ",16,":sChoice = \"","ar_mepair001","\";  fCR = ",5,".0;  ","iMinNum = ",1,"; ","iMaxNum = ",12,"; ","iWeight = ",4,"; break; // ","Mephit, Air"," || FQ: ","Rare"," || HD: ",3,"case 16:sChoice = \"ar_mepair001\";  fCR = 5.0;  iMinNum = 1; iMaxNum = 12; iWeight = 4; break; // Mephit, Air || FQ: Rare || HD: 3"]
["case ",17,":sChoice = \"","tigone001","\";  fCR = ",5,".0;  ","iMinNum = ",1,"; ","iMaxNum = ",4,"; ","iWeight = ",8,"; break; // ","Tigone"," || FQ: ","Uncommon"," || HD: ",4,"case 17:sChoice = \"tigone001\";  fCR = 5.0;  iMinNum = 1; iMaxNum = 4; iWeight = 8; break; // Tigone || FQ: Uncommon || HD: 4"]
["case ",18,":sChoice = \"","ar_imp001","\";  fCR = ",5,".0;  ","iMinNum = ",1,"; ","iMaxNum = ",1,"; ","iWeight = ",2,"; break; // ","Imp [AR]"," || FQ: ","Very Rare"," || HD: ",3,"case 18:sChoice = \"ar_imp001\";  fCR = 5.0;  iMinNum = 1; iMaxNum = 1; iWeight = 2; break; // Imp [AR] || FQ: Very Rare || HD: 3"]
["case ",19,":sChoice = \"","ar_hellhound001","\";  fCR = ",5,".0;  ","iMinNum = ",2,"; ","iMaxNum = ",8,"; ","iWeight = ",2,"; break; // ","Hell Hound [AR]"," || FQ: ","Very Rare"," || HD: ",4,"case 19:sChoice = \"ar_hellhound001\";  fCR = 5.0;  iMinNum = 2; iMaxNum = 8; iWeight = 2; break; // Hell Hound [AR] || FQ: Very Rare || HD: 4"]
["case ",20,":sChoice = \"","tembo001","\";  fCR = ",6,".0;  ","iMinNum = ",1,"; ","iMaxNum = ",6,"; ","iWeight = ",8,"; break; // ","Tembo"," || FQ: ","Uncommon"," || HD: ",4,"case 20:sChoice = \"tembo001\";  fCR = 6.0;  iMinNum = 1; iMaxNum = 6; iWeight = 8; break; // Tembo || FQ: Uncommon || HD: 4"]
["case ",21,":sChoice = \"","ds_tulk001","\";  fCR = ",6,".0;  ","iMinNum = ",2,"; ","iMaxNum = ",10,"; ","iWeight = ",8,"; break; // ","Tul'k"," || FQ: ","Uncommon"," || HD: ",5,"case 21:sChoice = \"ds_tulk001\";  fCR = 6.0;  iMinNum = 2; iMaxNum = 10; iWeight = 8; break; // Tul'k || FQ: Uncommon || HD: 5"]
["case ",22,":sChoice = \"","dunebandit_001","\";  fCR = ",6,".0;  ","iMinNum = ",1,"; ","iMaxNum = ",8,"; ","iWeight = ",2,"; break; // ","Dune Bandit, Mul - Longsword"," || FQ: ","Very Rare"," || HD: ",6,"case 22:sChoice = \"dunebandit_001\";  fCR = 6.0;  iMinNum = 1; iMaxNum = 8; iWeight = 2; break; // Dune Bandit, Mul - Longsword || FQ: Very Rare || HD: 6"]
["case ",23,":sChoice = \"","elem_air_md001","\";  fCR = ",7,".0;  ","iMinNum = ",1,"; ","iMaxNum = ",1,"; ","iWeight = ",4,"; break; // ","[AR] Air Elemental, Medium"," || FQ: ","Rare"," || HD: ",4,"case 23:sChoice = \"elem_air_md001\";  fCR = 7.0;  iMinNum = 1; iMaxNum = 1; iWeight = 4; break; // [AR] Air Elemental, Medium || FQ: Rare || HD: 4"]
["case ",24,":sChoice = \"","ar_defiler_001","\";  fCR = ",7,".0;  ","iMinNum = ",1,"; ","iMaxNum = ",5,"; ","iWeight = ",4,"; break; // ","Defiler, Apprentice"," || FQ: ","Rare"," || HD: ",8,"case 24:sChoice = \"ar_defiler_001\";  fCR = 7.0;  iMinNum = 1; iMaxNum = 5; iWeight = 4; break; // Defiler, Apprentice || FQ: Rare || HD: 8"]
["case ",25,":sChoice = \"","shardspider001","\";  fCR = ",7,".0;  ","iMinNum = ",1,"; ","iMaxNum = ",2,"; ","iWeight = ",4,"; break; // ","Shard Spider"," || FQ: ","Rare"," || HD: ",6,"case 25:sChoice = \"shardspider001\";  fCR = 7.0;  iMinNum = 1; iMaxNum = 2; iWeight = 4; break; // Shard Spider || FQ: Rare || HD: 6"]
["case ",26,":sChoice = \"","ds_flailer001","\";  fCR = ",7,".0;  ","iMinNum = ",1,"; ","iMaxNum = ",1,"; ","iWeight = ",4,"; break; // ","Flailer"," || FQ: ","Rare"," || HD: ",6,"case 26:sChoice = \"ds_flailer001\";  fCR = 7.0;  iMinNum = 1; iMaxNum = 1; iWeight = 4; break; // Flailer || FQ: Rare || HD: 6"]
["case ",27,":sChoice = \"","dunebandit_002","\";  fCR = ",7,".0;  ","iMinNum = ",1,"; ","iMaxNum = ",5,"; ","iWeight = ",8,"; break; // ","Dune Bandit - Longbow"," || FQ: ","Uncommon"," || HD: ",7,"case 27:sChoice = \"dunebandit_002\";  fCR = 7.0;  iMinNum = 1; iMaxNum = 5; iWeight = 8; break; // Dune Bandit - Longbow || FQ: Uncommon || HD: 7"]
["case ",28,":sChoice = \"","ruve001","\";  fCR = ",7,".0;  ","iMinNum = ",1,"; ","iMaxNum = ",8,"; ","iWeight = ",8,"; break; // ","Ruve"," || FQ: ","Uncommon"," || HD: ",4,"case 28:sChoice = \"ruve001\";  fCR = 7.0;  iMinNum = 1; iMaxNum = 8; iWeight = 8; break; // Ruve || FQ: Uncommon || HD: 4"]
["case ",29,":sChoice = \"","ds_gboneclaw001","\";  fCR = ",7,".0;  ","iMinNum = ",1,"; ","iMaxNum = ",1,"; ","iWeight = ",8,"; break; // ","Boneclaw, Greater"," || FQ: ","Uncommon"," || HD: ",6,"case 29:sChoice = \"ds_gboneclaw001\";  fCR = 7.0;  iMinNum = 1; iMaxNum = 1; iWeight = 8; break; // Boneclaw, Greater || FQ: Uncommon || HD: 6"]
["case ",30,":sChoice = \"","blkmastyrial_001","\";  fCR = ",7,".0;  ","iMinNum = ",5,"; ","iMaxNum = ",20,"; ","iWeight = ",8,"; break; // ","Mastyrial, Black"," || FQ: ","Uncommon"," || HD: ",8,"case 30:sChoice = \"blkmastyrial_001\";  fCR = 7.0;  iMinNum = 5; iMaxNum = 20; iWeight = 8; break; // Mastyrial, Black || FQ: Uncommon || HD: 8"]
["case ",31,":sChoice = \"","ar_ssurran_002","\";  fCR = ",7,".0;  ","iMinNum = ",1,"; ","iMaxNum = ",4,"; ","iWeight = ",8,"; break; // ","Ssurran, Raider"," || FQ: ","Uncommon"," || HD: ",7,"case 31:sChoice = \"ar_ssurran_002\";  fCR = 7.0;  iMinNum = 1; iMaxNum = 4; iWeight = 8; break; // Ssurran, Raider || FQ: Uncommon || HD: 7"]
["case ",32,":sChoice = \"","windwalker001","\";  fCR = ",7,".0;  ","iMinNum = ",1,"; ","iMaxNum = ",4,"; ","iWeight = ",2,"; break; // ","Wind Walker"," || FQ: ","Very  Rare"," || HD: ",6,"case 32:sChoice = \"windwalker001\";  fCR = 7.0;  iMinNum = 1; iMaxNum = 4; iWeight = 2; break; // Wind Walker || FQ: Very  Rare || HD: 6"]
["case ",33,":sChoice = \"","giantshadow001","\";  fCR = ",7,".0;  ","iMinNum = ",2,"; ","iMaxNum = ",8,"; ","iWeight = ",2,"; break; // ","Giant, Shadow"," || FQ: ","Very Rare"," || HD: ",7,"case 33:sChoice = \"giantshadow001\";  fCR = 7.0;  iMinNum = 2; iMaxNum = 8; iWeight = 2; break; // Giant, Shadow || FQ: Very Rare || HD: 7"]
["case ",34,":sChoice = \"","ar_onyxsent001","\";  fCR = ",8,".0;  ","iMinNum = ",3,"; ","iMaxNum = ",6,"; ","iWeight = ",4,"; break; // ","Marble Sentinel, Onyx"," || FQ: ","Rare"," || HD: ",6,"case 34:sChoice = \"ar_onyxsent001\";  fCR = 8.0;  iMinNum = 3; iMaxNum = 6; iWeight = 4; break; // Marble Sentinel, Onyx || FQ: Rare || HD: 6"]
["case ",35,":sChoice = \"","ds_psishadow001","\";  fCR = ",8,".0;  ","iMinNum = ",1,"; ","iMaxNum = ",1,"; ","iWeight = ",2,"; break; // ","Psi-Shadow"," || FQ: ","Very Rare"," || HD: ",6,"case 35:sChoice = \"ds_psishadow001\";  fCR = 8.0;  iMinNum = 1; iMaxNum = 1; iWeight = 2; break; // Psi-Shadow || FQ: Very Rare || HD: 6"]
["case ",36,":sChoice = \"","ar_firenymph001","\";  fCR = ",8,".0;  ","iMinNum = ",1,"; ","iMaxNum = ",1,"; ","iWeight = ",2,"; break; // ","Fire Nymph"," || FQ: ","Very Rare"," || HD: ",6,"case 36:sChoice = \"ar_firenymph001\";  fCR = 8.0;  iMinNum = 1; iMaxNum = 1; iWeight = 2; break; // Fire Nymph || FQ: Very Rare || HD: 6"]
["case ",37,":sChoice = \"","tembo002","\";  fCR = ",9,".0;  ","iMinNum = ",1,"; ","iMaxNum = ",4,"; ","iWeight = ",4,"; break; // ","Tembo, Greater"," || FQ: ","Rare"," || HD: ",4,"case 37:sChoice = \"tembo002\";  fCR = 9.0;  iMinNum = 1; iMaxNum = 4; iWeight = 4; break; // Tembo, Greater || FQ: Rare || HD: 4"]
["case ",38,":sChoice = \"","ruve002","\";  fCR = ",9,".0;  ","iMinNum = ",1,"; ","iMaxNum = ",2,"; ","iWeight = ",4,"; break; // ","Ruve, Greater"," || FQ: ","Rare"," || HD: ",8,"case 38:sChoice = \"ruve002\";  fCR = 9.0;  iMinNum = 1; iMaxNum = 2; iWeight = 4; break; // Ruve, Greater || FQ: Rare || HD: 8"]
["case ",39,":sChoice = \"","blkmastyrial_002","\";  fCR = ",9,".0;  ","iMinNum = ",1,"; ","iMaxNum = ",4,"; ","iWeight = ",4,"; break; // ","Mastyrial, Black, Greater"," || FQ: ","Rare"," || HD: ",12,"case 39:sChoice = \"blkmastyrial_002\";  fCR = 9.0;  iMinNum = 1; iMaxNum = 4; iWeight = 4; break; // Mastyrial, Black, Greater || FQ: Rare || HD: 12"]
["case ",40,":sChoice = \"","ar_invstalk001","\";  fCR = ",9,".0;  ","iMinNum = ",1,"; ","iMaxNum = ",1,"; ","iWeight = ",2,"; break; // ","Invisible Stalker [AR]"," || FQ: ","Very Rare"," || HD: ",8,"case 40:sChoice = \"ar_invstalk001\";  fCR = 9.0;  iMinNum = 1; iMaxNum = 1; iWeight = 2; break; // Invisible Stalker [AR] || FQ: Very Rare || HD: 8"]
["case ",41,":sChoice = \"","ar_defiler_002","\";  fCR = ",9,".0;  ","iMinNum = ",1,"; ","iMaxNum = ",3,"; ","iWeight = ",2,"; break; // ","Defiler, Journeyman"," || FQ: ","Very Rare"," || HD: ",10,"case 41:sChoice = \"ar_defiler_002\";  fCR = 9.0;  iMinNum = 1; iMaxNum = 3; iWeight = 2; break; // Defiler, Journeyman || FQ: Very Rare || HD: 10"]
["case ",42,":sChoice = \"","ds_zik_trin_ak01","\";  fCR = ",10,".0;  ","iMinNum = ",1,"; ","iMaxNum = ",4,"; ","iWeight = ",2,"; break; // ","Zik-trin'ak"," || FQ: ","Very Rare"," || HD: ",8,"case 42:sChoice = \"ds_zik_trin_ak01\";  fCR = 10.0;  iMinNum = 1; iMaxNum = 4; iWeight = 2; break; // Zik-trin'ak || FQ: Very Rare || HD: 8"]
["case ",43,":sChoice = \"","ds_styr001","\";  fCR = ",11,".0;  ","iMinNum = ",1,"; ","iMaxNum = ",1,"; ","iWeight = ",4,"; break; // ","Styr"," || FQ: ","Rare"," || HD: ",14,"case 43:sChoice = \"ds_styr001\";  fCR = 11.0;  iMinNum = 1; iMaxNum = 1; iWeight = 4; break; // Styr || FQ: Rare || HD: 14"]
["case ",44,":sChoice = \"","elvenraider002","\";  fCR = ",11,".0;  ","iMinNum = ",1,"; ","iMaxNum = ",1,"; ","iWeight = ",4,"; break; // ","Elven Raider Defiler"," || FQ: ","Rare"," || HD: ",12,"case 44:sChoice = \"elvenraider002\";  fCR = 11.0;  iMinNum = 1; iMaxNum = 1; iWeight = 4; break; // Elven Raider Defiler || FQ: Rare || HD: 12"]
["case ",45,":sChoice = \"","wildmul002","\";  fCR = ",11,".0;  ","iMinNum = ",2,"; ","iMaxNum = ",7,"; ","iWeight = ",8,"; break; // ","Mul, Wild - Dragon's Paw"," || FQ: ","Uncommon"," || HD: ",12,"case 45:sChoice = \"wildmul002\";  fCR = 11.0;  iMinNum = 2; iMaxNum = 7; iWeight = 8; break; // Mul, Wild - Dragon's Paw || FQ: Uncommon || HD: 12"]
["case ",46,":sChoice = \"","ar_bloodsent001","\";  fCR = ",12,".0;  ","iMinNum = ",3,"; ","iMaxNum = ",5,"; ","iWeight = ",4,"; break; // ","Marble Sentinel, Bloodstone"," || FQ: ","Rare"," || HD: ",9,"case 46:sChoice = \"ar_bloodsent001\";  fCR = 12.0;  iMinNum = 3; iMaxNum = 5; iWeight = 4; break; // Marble Sentinel, Bloodstone || FQ: Rare || HD: 9"]
["case ",47,":sChoice = \"","klar001","\";  fCR = ",12,".0;  ","iMinNum = ",1,"; ","iMaxNum = ",4,"; ","iWeight = ",4,"; break; // ","Klar"," || FQ: ","Rare"," || HD: ",11,"case 47:sChoice = \"klar001\";  fCR = 12.0;  iMinNum = 1; iMaxNum = 4; iWeight = 4; break; // Klar || FQ: Rare || HD: 11"]
["case ",48,":sChoice = \"","ds_zik_trin_ta01","\";  fCR = ",12,".0;  ","iMinNum = ",1,"; ","iMaxNum = ",4,"; ","iWeight = ",2,"; break; // ","Zik-trin’ta"," || FQ: ","Very Rare"," || HD: ",7,"case 48:sChoice = \"ds_zik_trin_ta01\";  fCR = 12.0;  iMinNum = 1; iMaxNum = 4; iWeight = 2; break; // Zik-trin’ta || FQ: Very Rare || HD: 7"]
["case ",49,":sChoice = \"","elem_air_lg001","\";  fCR = ",13,".0;  ","iMinNum = ",1,"; ","iMaxNum = ",1,"; ","iWeight = ",4,"; break; // ","[AR] Air Elemental, Large"," || FQ: ","Rare"," || HD: ",8,"case 49:sChoice = \"elem_air_lg001\";  fCR = 13.0;  iMinNum = 1; iMaxNum = 1; iWeight = 4; break; // [AR] Air Elemental, Large || FQ: Rare || HD: 8"]
["case ",50,":sChoice = \"","ar_kreen_002","\";  fCR = ",13,".0;  ","iMinNum = ",1,"; ","iMaxNum = ",1,"; ","iWeight = ",4,"; break; // ","Thri-kreen, Ranger"," || FQ: ","Rare"," || HD: ",12,"case 50:sChoice = \"ar_kreen_002\";  fCR = 13.0;  iMinNum = 1; iMaxNum = 1; iWeight = 4; break; // Thri-kreen, Ranger || FQ: Rare || HD: 12"]
["case ",51,":sChoice = \"","ar_kreen_003","\";  fCR = ",14,".0;  ","iMinNum = ",1,"; ","iMaxNum = ",1,"; ","iWeight = ",4,"; break; // ","Thri-kreen, Druid"," || FQ: ","Rare"," || HD: ",12,"case 51:sChoice = \"ar_kreen_003\";  fCR = 14.0;  iMinNum = 1; iMaxNum = 1; iWeight = 4; break; // Thri-kreen, Druid || FQ: Rare || HD: 12"]
["case ",52,":sChoice = \"","cyclops001","\";  fCR = ",14,".0;  ","iMinNum = ",2,"; ","iMaxNum = ",10,"; ","iWeight = ",8,"; break; // ","Cyclops, Common"," || FQ: ","Uncommon"," || HD: ",13,"case 52:sChoice = \"cyclops001\";  fCR = 14.0;  iMinNum = 2; iMaxNum = 10; iWeight = 8; break; // Cyclops, Common || FQ: Uncommon || HD: 13"]
["case ",53,":sChoice = \"","ar_ebonsent001","\";  fCR = ",16,".0;  ","iMinNum = ",2,"; ","iMaxNum = ",4,"; ","iWeight = ",4,"; break; // ","Marble Sentinel, Ebon"," || FQ: ","Rare"," || HD: ",12,"case 53:sChoice = \"ar_ebonsent001\";  fCR = 16.0;  iMinNum = 2; iMaxNum = 4; iWeight = 4; break; // Marble Sentinel, Ebon || FQ: Rare || HD: 12"]
["case ",54,":sChoice = \"","drake_fire001","\";  fCR = ",16,".0;  ","iMinNum = ",1,"; ","iMaxNum = ",1,"; ","iWeight = ",2,"; break; // ","Drake, Fire"," || FQ: ","Very Rare"," || HD: ",20,"case 54:sChoice = \"drake_fire001\";  fCR = 16.0;  iMinNum = 1; iMaxNum = 1; iWeight = 2; break; // Drake, Fire || FQ: Very Rare || HD: 20"]
["case ",55,":sChoice = \"","drake_water001","\";  fCR = ",16,".0;  ","iMinNum = ",1,"; ","iMaxNum = ",1,"; ","iWeight = ",2,"; break; // ","Drake, Water"," || FQ: ","Very Rare"," || HD: ",20,"case 55:sChoice = \"drake_water001\";  fCR = 16.0;  iMinNum = 1; iMaxNum = 1; iWeight = 2; break; // Drake, Water || FQ: Very Rare || HD: 20"]
["case ",56,":sChoice = \"","wildmul003","\";  fCR = ",17,".0;  ","iMinNum = ",2,"; ","iMaxNum = ",7,"; ","iWeight = ",8,"; break; // ","Mul, Wild - Darts"," || FQ: ","Uncommon"," || HD: ",17,"case 56:sChoice = \"wildmul003\";  fCR = 17.0;  iMinNum = 2; iMaxNum = 7; iWeight = 8; break; // Mul, Wild - Darts || FQ: Uncommon || HD: 17"]
["case ",57,":sChoice = \"","ds_obretriever01","\";  fCR = ",19,".0;  ","iMinNum = ",1,"; ","iMaxNum = ",1,"; ","iWeight = ",2,"; break; // ","Obsidian Retriever"," || FQ: ","Very Rare"," || HD: ",12,"case 57:sChoice = \"ds_obretriever01\";  fCR = 19.0;  iMinNum = 1; iMaxNum = 1; iWeight = 2; break; // Obsidian Retriever || FQ: Very Rare || HD: 12"]
["case ",58,":sChoice = \"","drake_earth001","\";  fCR = ",19,".0;  ","iMinNum = ",1,"; ","iMaxNum = ",1,"; ","iWeight = ",2,"; break; // ","Drake, Earth"," || FQ: ","Very Rare"," || HD: ",25,"case 58:sChoice = \"drake_earth001\";  fCR = 19.0;  iMinNum = 1; iMaxNum = 1; iWeight = 2; break; // Drake, Earth || FQ: Very Rare || HD: 25"]
["case ",59,":sChoice = \"","ds_gr_fihyr001","\";  fCR = ",20,".0;  ","iMinNum = ",1,"; ","iMaxNum = ",1,"; ","iWeight = ",2,"; break; // ","Greater Fihyr"," || FQ: ","Very Rare"," || HD: ",16,"case 59:sChoice = \"ds_gr_fihyr001\";  fCR = 20.0;  iMinNum = 1; iMaxNum = 1; iWeight = 2; break; // Greater Fihyr || FQ: Very Rare || HD: 16"]
["case ",60,":sChoice = \"","drake_air001","\";  fCR = ",23,".0;  ","iMinNum = ",1,"; ","iMaxNum = ",1,"; ","iWeight = ",2,"; break; // ","Drake, Air"," || FQ: ","Very Rare"," || HD: ",25,"case 60:sChoice = \"drake_air001\";  fCR = 23.0;  iMinNum = 1; iMaxNum = 1; iWeight = 2; break; // Drake, Air || FQ: Very Rare || HD: 25"]
["case ",61,":sChoice = \"","drake_magma001","\";  fCR = ",23,".0;  ","iMinNum = ",1,"; ","iMaxNum = ",1,"; ","iWeight = ",2,"; break; // ","Drake, Magma"," || FQ: ","Very Rare"," || HD: ",20,"case 61:sChoice = \"drake_magma001\";  fCR = 23.0;  iMinNum = 1; iMaxNum = 1; iWeight = 2; break; // Drake, Magma || FQ: Very Rare || HD: 20"]
["case ",62,":sChoice = \"","elem_air_hg001","\";  fCR = ",25,".0;  ","iMinNum = ",1,"; ","iMaxNum = ",1,"; ","iWeight = ",4,"; break; // ","[AR] Air Elemental, Huge"," || FQ: ","Rare"," || HD: ",16,"case 62:sChoice = \"elem_air_hg001\";  fCR = 25.0;  iMinNum = 1; iMaxNum = 1; iWeight = 4; break; // [AR] Air Elemental, Huge || FQ: Rare || HD: 16"]
["case ",63,":sChoice = \"","ds_obretriever02","\";  fCR = ",27,".0;  ","iMinNum = ",1,"; ","iMaxNum = ",1,"; ","iWeight = ",2,"; break; // ","Obsidian Retriever, Greater"," || FQ: ","Very Rare"," || HD: ",22,"case 63:sChoice = \"ds_obretriever02\";  fCR = 27.0;  iMinNum = 1; iMaxNum = 1; iWeight = 2; break; // Obsidian Retriever, Greater || FQ: Very Rare || HD: 22"]
["case ",64,":sChoice = \"","ds_gr_fihyr002","\";  fCR = ",28,".0;  ","iMinNum = ",1,"; ","iMaxNum = ",1,"; ","iWeight = ",2,"; break; // ","Greater Fihyr, Advanced"," || FQ: ","Very Rare"," || HD: ",25,"case 64:sChoice = \"ds_gr_fihyr002\";  fCR = 28.0;  iMinNum = 1; iMaxNum = 1; iWeight = 2; break; // Greater Fihyr, Advanced || FQ: Very Rare || HD: 25"]
["case ",65,":sChoice = \"","elem_air_gr001","\";  fCR = ",33,".0;  ","iMinNum = ",1,"; ","iMaxNum = ",1,"; ","iWeight = ",4,"; break; // ","[AR] Air Elemental, Greater"," || FQ: ","Rare"," || HD: ",21,{"$f":"CONCATENATE(A67, B67, C67, D67, E67,F67,G67,H67,I67,J67,K67,L67,M67,N67,O67,P67,Q67, R67, S67, T67, U67)","v":"case 65:sChoice = \"elem_air_gr001\";  fCR = 33.0;  iMinNum = 1; iMaxNum = 1; iWeight = 4; break; // [AR] Air Elemental, Greater || FQ: Rare || HD: 21"}]
["case ",{"$f":"SUM(B67+1)","v":66},":sChoice = \"","elem_air_el001","\";  fCR = ",37,".0;  ","iMinNum = ",1,"; ","iMaxNum = ",1,"; ","iWeight = ",4,"; break; // ","[AR] Air Elemental, Elder"," || FQ: ","Rare"," || HD: ",24,"case 66:sChoice = \"elem_air_el001\";  fCR = 37.0;  iMinNum = 1; iMaxNum = 1; iWeight = 4; break; // [AR] Air Elemental, Elder || FQ: Rare || HD: 24"]
["case ",67,":sChoice = \"","elem_air_pr001","\";  fCR = ",109,".0;  ","iMinNum = ",1,"; ","iMaxNum = ",1,"; ","iWeight = ",2,"; break; // ","Air Elemental, Primal"," || FQ: ","Very  Rare"," || HD: ",60,"case 67:sChoice = \"elem_air_pr001\";  fCR = 109.0;  iMinNum = 1; iMaxNum = 1; iWeight = 2; break; // Air Elemental, Primal || FQ: Very  Rare || HD: 60"]

{"sheet":"Mountain - Undead","index":7,"n_rows":60,"n_cols":14,"rows_kept":60}
["Name","RezRef","Type","Region 1","Region 2","iWeight","Frequency","CR","HD","# Appearing","Activity","Notes","Crafting Drop","Crafting Drop Resref"]
["Boneklaw","boneclaw001","Undead","Any",null,4,"Rare",16,10,44207,"Night"]
["Boneyard","boneyard001","Undead","Any",null,4,"Rare",22,17,1,"Night"]
["Boneyard, Evolved Greater","boneyard002","Undead","Any",null,4,"Rare",55,50,1,"Night"]
["Cursed Dwarf","cursed_dwarf001","Undead","Any","Underground",4,"Rare",12,6,"1 to 10","Night"]
["Fael","fael001","Undead","Any",null,4,"Rare",14,8,1,"Night"]
["Fallen Archer","fallen001","Undead","Any",null,4,"Rare",48,35,44216,"Night"]
["Fallen Legionaire","fallen002","Undead","Any",null,4,"Rare",37,25,44216,"Night"]
["Ghast","ghast001","Undead","Any",null,4,"Rare",5,4,44231,"Night"]
["Ioramh","ioramh001","Undead","Any",null,4,"Rare",5,4,"1 to 12","Night"]
["Krag, Fire","krag_fire001","Undead","Any",null,4,"Rare",15,11,1,"Night"]
["Namech Cleric","ar_namech003","Undead","Any",null,4,"Rare",59,40,1,"Night"]
["Pridemane","pridemane001","Undead","Any","Trembling Plains",4,"Rare",14,9,1,"Night"]
["Pridemane Barbarian","pridemane003","Undead","Any","Trembling Plains",4,"Rare",24,19,1,"Night"]
["Pridemane Ranger","pridemane002","Undead","Any","Trembling Plains",4,"Rare",26,19,1,"Night"]
["Shadow Rat, Common","ar_shadowrat001","Undead","Underground","Any",4,"Rare",3,1,"6 - 20","Night"]
["Shadow, Greater","shadow002","Undead","Any",null,4,"Rare",11,9,1,"Night"]
["Skeleton, Dwarf","skeletondwarf001","Undead","Any","Any",4,"Rare",1,1,"Any","Night"]
["Skeleton, Dwarf","skeletondwarf001","Undead","Any","Any",4,"Rare",1,1,"Any","Night"]
["Visage, Evolved Greater","ar_visage003","Undead","Any",null,4,"Rare",36,25,1,"Night"]
["Shadow","shadow001","Undead (Incorporeal)","Underground","Any",4,"Rare",4,3,"1 - 11","Night"]
["Ghoul","ghoul001","Undead","Any",null,8,"Uncommon",3,2,"1 to 12","Night"]
["Kragling, Fire","kragling_f001","Undead","Any",null,8,"Uncommon",2,1,"1 to 4","Night"]
["Namech, Rogue","namech_rogue001","Undead","Any",null,8,"Uncommon",11,9,"1 to 2","Night"]
["Shadow [AR]","shadow001","Undead","Any",null,8,"Uncommon",4,3,"2 - 20","Night"]
["Skeleton, Half-Giant","skeletongiant001","Undead","Any","Any",8,"Uncommon",2,2,"Any","Night"]
["Skeleton, Half-Giant","skeletongiant001","Undead","Any","Any",8,"Uncommon",2,2,"Any","Night"]
["Skeleton, Human","skeletonhuman001","Undead","Any","Any",8,"Uncommon",1,1,"Any","Night"]
["Skeleton, Human","skeletonhuman001","Undead","Any","Any",8,"Uncommon",1,1,"Any","Night"]
["Skeleton, Human Archer","skeletonhuman002","Undead","Any","Any",8,"Uncommon",1,1,"Any","Night"]
["Skeleton, Human Archer","skeletonhuman002","Undead","Any","Any",8,"Uncommon",1,1,"Any","Night"]
["Zombie, Human","zombie003","Undead","Underground","Any",8,"Uncommon",7,7,"1 - 8","Night"]
["Zombie, Mul","zombie002","Undead","Underground","Any",8,"Uncommon",7,7,"1 - 4","Night"]
["Shadow, Lesser","shadow003","Undead (Incorporeal)","Underground","Any",8,"Uncommon",3,1,"1 - 11","Night"]
["Ancient Ghast","ghast003","Undead","Any",null,2,"Very Rare",7,5,1,"Night"]
["Angel of Decay","angelofdecay001","Undead","Any Land","Underground",2,"Very Rare",32,26,1,"Night"]
["Bleakborn","bleakborn001","Undead","Any","Any",2,"Very Rare",11,8,1,"Night"]
["Deathlock","deathlock001","Undead","Any",null,2,"Very Rare",5,3,"1 - 3","Night"]
["Dream Vestige","dreamvestige001","Undead","Any",null,2,"Very Rare",23,17,1,"Night"]
["Dwarven Banshee, Epic Stalker","dw_banshee001","Undead","Any",null,2,"Very Rare",37,30,"1 - 4","Night"]
["Dwarven Ghost, Epic Wizard","dw_ghost001","Undead","Any",null,2,"Very Rare",47,30,"1 - 4","Night"]
["Dwarven Raaig, Epic Cleric","dw_raaig001","Undead","Any",null,2,"Very Rare",47,30,"1 - 20","Night"]
["Ghast, Greater","ghast002","Undead","Any",null,2,"Very Rare",10,8,"1 to 2","Night"]
["Hulking Corpse","hulkcorpse001","Undead","Any","Any",2,"Very Rare",17,20,"1 - 2","Night"]
["Hunefer","hunefer001","Undead","Any",null,2,"Very Rare",75,50,1,"Night"]
["Malevolent Spirit ","malev_spirit001","Undead","Any","Crimson Ruins",2,"Very Rare",31,20,1,"Night"]
["Meorty","ar_meorty001","Undead","Any",null,2,"Very Rare",65,42,1,"Night"]
["Plague Blight","plagueblight001","Undead","Any","Any",2,"Very Rare",6,6,"1 - 6","Night"]
["Shadow Rat, Dire","ar_shadowrat002","Undead","Underground","Any",2,"Very Rare",3,1,"6 - 11","Night"]
["Skeletal Guardian 1","skeleguard001","Undead","Any","Underground",2,"Very Rare",11,10,1,"Night"]
["Skeletal Guardian 2","skeleguard002","Undead","Any","Underground",2,"Very Rare",11,10,1,"Night"]
["Slaughter Wight","slaughterwight01","Undead","Any",null,2,"Very Rare",20,18,"1 to 10","Night"]
["Thinking Zombie, Mul - Epic DwD","thinkzombie003","Undead","Any","Any",2,"Very Rare",30,30,"1 - 4","Night"]
["T'liz","tliz001","Undead","Any",null,2,"Very Rare",37,16,1,"Night"]
["Wheep","wheep001","Undead","Cold Mountains",null,2,"Very Rare",12,9,"1 - 10","Night"]
["Winterwight","winterwight001","Undead","Any",null,2,"Very Rare",41,32,"1 to 2","Night"]
["Wraith [AR]","ar_wraith001","Undead","Any",null,2,"Very Rare",7,5,"2 - 11","Night"]
["Wraith, Dread","ar_wraith002","Undead","Any",null,2,"Very Rare",23,16,1,"Night"]
["Voidwraith","voidwraith001","Undead (Air, Incorporeal)","Any",null,2,"Very Rare",9,6,"1 - 5","Night"]
["Cinderspawn","cinderspawn001","Undead (Fire)","Any","Any",2,"Very Rare",11,10,"1 - 5","Night"]